Workbook

Sheet Instructions
B6: Concessionary Travel for Older and Disabled People: Guidance on Reimbursing Bus Operators (England)
B7: Reimbursement Calculator
B9: Version 4.0 - November 2022
B10: Introduction
B11: This spreadsheet tool is designed to assist Travel Concession Authorities (TCAs) and operators in calculating reimbursement due from concessionary fares schemes. It should be used in conjunction with the appropriate written DfT guidance, the latest version of which can be found on the DfT website.
B12: The written guidance and this calculator set out DfT preferred methodology for calculating reimbursement based on the best available evidence. TCAs may use the methodology of their choice in calculating reimbursement for bus operators, subject to ensuring that operators are left no better, no worse off as a result of their participation into the scheme.
B14: This Calculator is subdivided into 7 separate worksheets. The Start Page, the Average Fares (AF) Model, the Reimbursement Factor (RF) Model, the Additional Costs (AC) Model, the Marginal Capacity Cost Model (MCC) and the Results Page. The 'Update Inflation' sheet allows users to update the CPI Index and GDP Deflator. The steps within each of these worksheets are described below. Additional hidden worksheets contain the detailed calculations underpinning the calculations for Average Fares and the Reimbursement Factor. All Additional Costs calculations are done in the model sheets. A worked example for MCC costs is provided in 'MCC example' and the 'PTE' and 'Non-PTE' sheets show the derivation of the Single Demand Curve. Hidden sheets can be 'unhidden' by going to Format\Sheet\Unhide. Some worksheets or cells may be protected to prevent overwriting formulae by mistake. A worksheet can be unprotected by going into Tools\Protection\Unprotect Sheet. Annex H of the guidance includes some worked examples based on this Calculator.
B15: Calculator cells are colour-coded as follows:
B16: User input
B17: Calculation or DfT assumption that cannot be overwritten
B18: Output (Intermediate/Final)
A20: Note Reference | B20: Instructions | C20: Paragraph reference in DfT guidance
B21: Start Page (Step 1)
A22: 1 | B22: Choose the suitable area type (PTE or Non PTE). | C22: 6.11-6.17
A23: 2 | B23: Choose the suitable period/year for which reimbursement is being calculated.
A24: 3 | B24: Enter the number of observed concessionary journeys in the relevant period/year. | C24: 4.1-4.2
B26: Average Fare Calculator (Step 2)
A27: 4 | B27: Choose the appropriate method with which to calculate the average fare forgone in Cell [C10]. The choices available are presented by buttons. Clicking on the "Discount Factor" button directs users to Cell [B16] to use the Discount Factor Calculator. Clicking on the "Basket of Fares" button directs users to Cell [B33] to use the basket of fares template. Clicking on the "Enter Average Fare" button directs users to Cell [C10] where the average fare forgone can be entered directly. Please refer to the guidance for application guidelines and advice on which method to use (Table 5.1). | C27: 5.5-5.13
A28: 5 | B28: The Discount Factor Method | C28: 5.14-5.37, H.6-H.28
B29: This method, The Discount Factor Method, consists in calculating a discount factor to adjust the full commercial adult cash fare so as to reflect the fact that in the absence of free-fare schemes, individuals would buy cash fares as well as discounted tickets. The discount factor is based on the prevailing ticket price structure of an operator and the journey distribution of concessionary travellers at zero fare suitably abated to allow for degeneration. There are two options. First option: (1) Clicking on the "Use template to calculate change in fares" will take users to Cell [B55] where the template can be used to estimate the cash fare. Then clicking on the "Calculate daily ticket price" button takes users to Cell [B69] which contains the appropriate template. Followed by clicking on the "Calculate weekly" button takes users to Cell [B83] where the appropriate template is available. Clicking on the "Done" button after entering appropriate values will redirect users to the next step and the associated Average Fare Foregone in [C10]. Second option: (2) Clicking on the "Enter average ticket prices directly" will take users to Cell [C21] where average fares for cash fares, daily and weekly tickets can be entered.
A30: 6 | B30: Enter the average cash fare for the calculation period. | C30: 5.22-5.29
A31: 7 | B31: Enter the average daily fare for the calculation period. If there are no daily tickets available, click on button 'No daily tickets' and the Calculator will automatically derive allocations based on cash fares and weekly tickets. | C31: 5.22-5.29
A32: 8 | B32: Enter the average weekly fare or the calculation period. If there are no weekly tickets available, click on button 'No weekly tickets' and the Calculator will automatically derive allocations based on cash fares and daily tickets. | C32: 5.22-5.29
A33: 9 | B33: Discount factor before degeneration: This is the discount factor at zero fares. | C33: H.17-H.21
A34: 10 | B34: FINAL discount factor after degeneration: This is the discount factor at full fares. | C34: H.22-H.28
A35: 11 | B35: Discounted average fare (forgone): this is the average cash fare discounted by the discount factor. | C35: 5.34-5.35
A36: 12 | B36: This table shows the final allocation of ticket types. If, the proportion of daily or period ticket to cash fare ticket sales is higher for concessionary passengers than current fare paying passengers, the discount method may not be appropriate. | C36: 5.10
A37: 13 | B37: Basket of Fares Method | C37: 5.38-5.47
B38: This method allows to estimate the effective discount rate by calculating a weighted average fare per journey from assumed usage of different commercial ticket types.
A39: 14 | B39: Type of Ticket: Enter all the ticket types that would have been purchased by concessionary passholders in the absence of the scheme. Operators or survey evidence will be helpful in deciding which tickets to include. | C39: 5.40-5.41
A40: 15 | B40: Price £: Enter the respective commercial price of each type of ticket that would have been purchased by concessionary passholders in the absence of the scheme. | C40: 5.40-5.41
A41: 16 | B41: Assumed journeys per ticket purchased: Enter assumed number of journeys typically made by holders of each ticket type. Although this is reasonably obvious for single and return tickets, it requires some judgements to be made on the use of pass-type tickets. Again hard evidence from operators or surveys will be helpful in deciding what assumptions to make here. | C41: 5.42-5.43
A42: 17 | B42: Implied Revenue per journey £: This is the ticket price for each ticket type divided by the number of journeys typically made by concessionary passholders. | C42: 5.45
A43: 18 | B43: % of total journeys with this ticket type: Assumed proportion of total journeys that are made by eligible concessionaires in the absence of the scheme using each type of ticket. These must add up to 100 per cent. | C43: 5.44
A44: 19 | B44: Weighted Revenue per Ticket: This is the implied revenue per journey multiplied by the percentage share of journeys made with each ticket type. | C44: 5.45-5.46
A45: 20 | B45: Weighted Average Fare: This is the average fare foregone calculated under the basket of fares method.
A46: 21 | B46: Average Fare Foregone: This cell displays the final average fare foregone to be used in the calculation of the appropriate reimbursement factor based on the chosen method of calculation.
A48: 22a | B48: Reimbursement Factor Calculator (Step 3)
B49: Reimbursement Factor Calculator: The reimbursement factor is the proportion of total concessionary journeys made at zero fare that are estimated to be made if the concessionaires were to pay full fare. The reimbursement rate is calculated based on the appropriate demand curve and the change in the average fare foregone calculated in the AF Worksheet. | C49: 6.4-6.10
A50: 22b | B50: In this section users can opt for one of three methods to input a change in fares in the Model using the appropriate buttons. In all cases, from 2010/11 onwards, it is the operator-specific fare that is used except in the case of new operators. Option (1) The change in operator-specific nominal fares between 2005/06 and the year of calculation is used. Option (2) The change in TCA-wide nominal fares between 2005/06 and 20010/11 is used. From 2010/11, the change in operator specific fares is used. Option (3) In the absence of appropriate data, a national bus index and the CPI index can be used between 2005/06 and 2010/11 and then the change in operator-specific fares from 2010/11. for new operators, the change in TCA wide nominal average fare between 2005/6 and current reimbursement period can be entered. However, there are many other combinations possible based on data availability and that TCAs and operators may end up having to use combinations of years which are not operationalised in the calculator. Please refer to guidance for advice on how to combine percentage changes over different years to calculate a compound percentage change across the whole period - the figure can be entered in Cell [C30]. It is important to use fare data on a like-with-like basis (i.e. covering a similar range of services) when making comparisons over time. | C50: 6.11-6.41, H.29
A51: 23 | B51: Area Type: Displays the relevant area type (PTE or Non-PTE) that was chosen in the Start Page. | C51: 6.11-6.41, H.29
A52: 24 | B52: Year: Displays the relevant period for which reimbursement is being calculated as chosen in the Start Page. | C52: 6.11-6.41, H.29
A53: 25 | B53: Current Average Fare: Displays the average fare forgone for the period for which reimbursement is being calculated in the Average Fare Calculator. | C53: 6.11-6.41, H.29
A54: 26 | B54: Reimbursement Factor: Generates the reimbursement factor from the single demand curve for the area type and average fare forgone based on the changes in local fares (PTE or non-PTE) | C54: 6.11-6.41, H.29
A55: 27 | B55: Option (1) - Percentage change in the operator specific nominal fares between 2005/06 and the period for which reimbursement is being calculated: This is estimated from comparable operator fare data, and is a nominal change. It is entered as a percentage. | C55: 6.11-6.41, H.29
A56: 28 | B56: Option (2) - TCA-wide change in nominal average fares. Two data items need to be entered: the change in TCA-wide nominal fares from 2005/06 to 2010/11 and from 2010/11 to the reimbursement period (for reimbursement periods beyond 2010/11) the change in the operator-specific nominal fares. | C56: 6.11-6.41, H.29
A57: 29 | B57: Enter TCA-wide change in nominal fare between 2005/06 and 2010/11. This is the percentage change in the TCA average fare between 2005/06 and 2010/11 in nominal terms. It is entered as a percentage. | C57: 6.11-6.41, H.29
A58: 30 | B58: Enter operator specific change in nominal fare between 2010/11 and current reimbursement period (if reimbursement is calculated in latter years). This is the percentage change in the operator specific fare for comparable operator fare data, and is a nominal change. It is entered as a percentage. | C58: 6.11-6.41, H.29
A59: 31 | B59: Option (3) - National Bus Fare Index: This is the average change in fares by broad area derived from the DfT’s bus fare index, but using general estimates for 2005/06 and 2010/11 for which comparable data is not available. The Calculator already holds this data, so there is no need to enter data apart operator-specific data from 2010/11 onwards. Cell [C40] displays the nominal change in fares based on the Bus Index between 2005/06 and 2010/11 for ease of reference. | C59: 6.11-6.41, H.29
A60: 32 | B60: Percentage change in operator specific nominal fare 2010/11 and current reimbursement period. This is the percentage change in the operator specific fare for comparable operator fare data, and is a nominal change. It is entered as a percentage. | C60: 6.11-6.41, H.29
A61: 33 | B61: New operator: This is the section for operators who are new or who have had significantly changed services since 2010/11. | C61: 6.11-6.41, H.29
A62: 34 | B62: Enter TCA wide change in nominal fare between 2005/06 and current reimbursement period: This is the percentage change in the TCA average fare between 2005/06 and current reimbursement period in nominal terms. It is entered as a percentage. | C62: 6.11-6.41, H.29
A64: 35 | B64: Additional Costs Calculator (Step 4)
B65: Additional costs include up to 4 distinct elements. These are scheme administration costs, marginal operating costs (MOCs) marginal capacity costs (MCCs) and Peak Vehicle Requirement (PVR). | C65: 7.1-7.5
A66: 36 | B66: Reimbursement Period and Area Type: Displays the reimbursement period and area type chosen in the Start Page
A67: 37 | B67: Administration costs are those costs to the operator from the scheme such as publicity, timetables etc.
A68: 38 | B68: Enter Administration Costs: Enter locally determined administration costs | C68: 7.6-7.8
A69: 39 | B69: Marginal Operating Costs: These are the additional costs to the operator for carrying one additional passenger assuming a fixed service level and include fuel, tyres and oil, maintenance etc. | C69: 7.9-7.10
A70: 40 | B70: Fixed Element (£): This is the fixed component of the marginal operating costs per additional concessionary passenger. This is equal to 5.5p in 2009/10 prices. The Calculator will automatically convert this into real prices, i.e. into prices in the current year of calculation. | C70: 7.12-7.14
A71: 41 | B71: Journey Length: The marginal operating cost can also be varied by journey length. You can either use the default national average journey length (NTS) of 3.9 miles, or choose a journey length that is locally derived. If there is evidence to suggest that the local journey length is significantly different from this default, choose "Use Local Trip Length in the drop down menu in Cell [C15] to enter a locally derived journey length in Cell [D16]. | C71: 7.12-7.14
A72: 42 | B72: Variable Element (£): This calculates the variable element of the marginal operating cost with the chosen average journey length. The variable element is 0.6p x AvgJourneyLength / 3.9 miles (in 2009/10 prices). The Calculator will automatically convert this into real prices, i.e. into prices in the current year of calculation. | C72: 7.12-7.14
A73: 43 | B73: Total Marginal Operating Costs: Displays total marginal operating costs uprated to the year of calculation (this has been uprated to prices in the year of calculation). | C73: 7.12-7.14
A74: 44 | B74: Marginal Capacity Costs Button: Click on this button to get to the MCC Model. Marginal Additional Capacity Costs are the costs to the operator of carrying additional passengers and allowing the additional capacity of the bus to increase by using the existing fleet of buses more intensively to provide increased frequency. | C74: 7.18-7.58, H.48-H.59, I1-I21
A75: 45 | B75: Peak Vehicle Requirement Costs: These are the costs associated with the requirement to run additional vehicles in the peak period due to generated concessionary travel. Where the operator supplies information for a claim for additional peak vehicle costs. | C75: 7.59-7.74
A76: 46 | B76: Enter total Peak Vehicle Requirement Costs | C76: 7.59-7.74
B78: Marginal Capacity Costs Model (Step 5) | C78: 7.18-7.58, H.48-H.59, I1-I21
A79: 47 | B79: This Calculator can be used to estimate MCCs for a whole network (use the first line only) or for a subset of networks (use multiple lines). To activate calculation for a particular line, select 'Yes' in dropdown menu. There is a presumption that marginal capacity costs could potentially apply to all routes within a network. However, it is not expected that there will be positive marginal capacity costs on every route. It is advised that the Calculator should be at network level or for a subset of routes within a network, i.e. route data should be aggregated into a network line (see Annex J of Guidance for advice on aggregation). The guidance also advises that users should avoid mixing local and default values. Please refer to guidance Paragraphs 7.22-7.32. | C79: 7.18-7.58, H.48-H.59, I1-I21
A80: 48 | B80: Enter Network/Subset of networks description. The analysis can be done for a whole network or for separate mini-networks of routes sharing similar characteristics. | C80: 7.25-7.27
A81: 49 | B81: The Generation Factor derived from the Reimbursement Factor estimated in the RF model. | C81: 7.56
A82: 50 | B82: The total concessionary journeys on a network/subset of networks.
A83: 51 | B83: Mohring Power: This is the relationship between demand and bus service level. This is set at 0.6 as a network average and applied to the whole network/subsets of networks. | C83: 7.33-7.34, E.64
A84: 52 | B84: Unit cost per vehicle hour: the default average value is £13.30 per veh/hour in 2009/10 prices. The guidance recommends that the default values should be used even when using local data for other inputs due to the difficulty in estimating a true marginal unit cost from local data. It should be noted that the DfT default value for vehicle hour costs is likely to be an overestimate of the true unit cost (in particular, it includes London). However, if TCAs can satisfy themselves that locally derived values are an accurate measure of the true marginal costs and can be validated, then a local value may be used. Please refer to Paragraphs 7.42-7.45 and E.56-E.59 of the guidance. The amount is adjusted for inflation to the year of calculation. | C84: 7.41-7.44, E.56-E.59
A85: 53 | B85: Unit cost per vehicle mile: the default average value is £0.70 per veh/mile in 2009/10 prices. The guidance recommends that the default value should be used even when using local data for other inputs due to the difficulty in estimating a true marginal unit cost from local data. However, if TCAs can satisfy themselves that locally derived values are an accurate measure of the true marginal costs and can be validated, then a local value may be used. Please refer to Paragraphs 7.42-7.45 and E.60-E.61 of the guidance. The amount is adjusted for inflation to the year of calculation. | C85: 7.41-7.44, E.60-E.61
A86: 54 | B86: Speed (miles per hour): This is the average bus speed (including turn times and recover times but excluding planned breaks) for the network/subset of networks. The default value is a national average of 8.79 miles/hour for PTE areas and 10.03 miles for Non-PTE areas (first line). If there is evidence to suggest that bus speed for your local area is significantly different from these averages, choose "Use Local Value" from the drop down menu in the second line and enter local value in second line. The Comparison of Urban Bus Systems (CUBS) website (follow link: http://cubs.reseaulutions.com/towninformation-overview.php) contains average bus speed data by area type. | C86: 7.37-7.40
A87: 55 | B87: Mean Vehicle Occupancy: The default average is 10 passengers per bus mile. If there is evidence to suggest that the mean vehicle occupancy for the local area under consideration is different, choose "Use Local Value" in the drop down menu and enter local average in the second line. An estimate of average occupancy can be calculated from passenger journeys x journey length / vehicle miles. | C87: 7.37-7.40
A88: 56 | B88: Mean journey length: The default average is 3.1 miles in PTEs and 3.6 miles in NPTEs. If there is evidence to suggest that the mean journey length for the local area under consideration is different, choose "Use Local Value" in the drop down menu and enter local average in the second line. A rule of thumb that the average journey length is 50 per cent of the route length may be used although TCAs/operators may wish to take account of how this relationship may vary for different types of services based on local evidence. | C88: 7.37-7.40
A89: 57 | B89: Mean route length: The default average is 6.2 miles in PTEs and 7.1 miles in NPTEs. If there is evidence to suggest that the mean route length for the local area under consideration is different, choose "Use Local Value" in the drop down menu and enter local average in the second line. | C89: 7.37-7.40
A90: 58 | B90: Average Commercial Fare: Enter the locally derived average commercial fare in the relevant reimbursement period for the network/subset of networks. This includes commercial adults and full-fare paying children. | C90: 7.49-7.51
A91: 59 | B91: Commercial journeys as a percentage of total journeys: The default average value provided is 60%. If there is evidence to suggest that commercial journeys as a percentage of the total is significantly different, choose "Use Local Value" from the drop down menu and enter local value in second line. Commercial journeys include adults and full-fare paying children. | C91: 7.45-7.48
A92: 60 | B92: This is the service or frequency elasticity. It measures the responsiveness of demand to changes in frequency. It is set at 0.66 as a network average and is applied to the network/subsets of networks. | C92: 7.52, E.65-E.66
A93: 61 | B93: This is the calculated rate of net marginal capacity cost per additional (generated) concessionary passenger by for the network/subset of routes. It allows for inflation to the year of calculation and is capped at £0.00 (is not allowed to be negative). | C93: 7.18-7.58, H.48-H.59, I1-I21
A94: 62 | B94: This is the total amount of marginal capacity cost for the network/each subset of routes. It is calculated as generation factor x concessionary journeys on network/subset of routes x MCC per generated journey. It allows for inflation to the year of calculation. | C94: 7.18-7.58, H.48-H.59, I1-I21
A95: 63 | B95: This is the total generated concessionary journeys on the network (summed across all activated lines). An error message appears if the total is different from the figure entered on the start page. | C95: 7.18-7.58, H.48-H.59, I1-I21
A96: 64 | B96: This is the total marginal capacity costs on the network (summed across all activated lines) | C96: 7.19-7.59, H.45-H.59, I.1-I.21
A98: 65 | B98: Result Page (Step 6) | C98: Annex D
A99: 66 | B99: Observed Concessionary journeys: Displays the number of concessionary journeys observed in the relevant reimbursement period as entered in the Start Page.
A100: 67 | B100: Average Fare Forgone: Displays the average fare forgone as derived in AF Model.
A101: 68 | B101: Reimbursement Factor: Displays the reimbursement factor as derived in the RF Model.
A102: 69 | B102: Total Reimbursement for Revenue Forgone: Calculated as Observed Concessionary journeys x Reimbursement Factor x Average Fare Forgone.
A103: 70 | B103: Generation Factor: This is the 1- Reimbursement Factor%.
A104: 71 | B104: Additional Marginal Operating Cost per Journey: Displays the marginal operating cost per journey calculated in the AC Model.
A105: 72 | B105: Total Marginal Operating Costs: calculated as total concessionary journeys x Generation Factor x MOC in pence per journey.
A106: 73 | B106: Display Scheme Administration Costs entered in AC model.
A107: 74 | B107: Total Marginal Capacity Costs calculated in MCC model.
A108: 75 | B108: PVR Costs: Displays Peak Vehicle Requirement Costs entered in AC Model.
A109: 76 | B109: Total Reimbursement for Additional Costs: Calculated as Generation Factor x Concessionary journeys x (Marginal Operating Cost per journey + Marginal Capacity Cost per journey) + Peak Vehicle Requirement costs.
A110: 77 | B110: Total Reimbursement: Calculated as Total Reimbursement for Revenue Forgone + Total Reimbursement for Additional Costs.
B112: Update Inflation Index
A113: 78 | B113: A facility is provided to update the CPI Index and GDP Deflator when new data is published. The CPI Index and GDP Deflator are used to convert nominal changes in fares into real changes in fares for the purpose of calculating the RF and to update costs to the year of calculation (e.g. MOC, unit costs). The data can be obtained from the links given in Rows 23 and 24. The CPI Index will be a number such as e.g. 123.2. For a given year, it is the value of the Index at March which should be used. The GDP Deflator will be expressed as a % (e.g. 2.3%) and can be found in column D of the Spreadsheet whose link is given in Row 18.
A114: 79 | B114: In Cells [C27:C39] enter updated CPI Index values obtained from the link given above. The data which was published at the time of the publication of the guidance can be seen in Cells [B3:C21].
A115: 80 | B115: In Cells [D27:D39] enter updated GDP Deflator values obtained from the link given above. The data which was published at the time of the publication of the guidance can be seen in Cells [B3:C21].
A116: 81 | B116: When the new data has been entered, click on the 'Update Index' button. The inflation series will be automatically updated and appear in Cells [I3:I18] - this then feeds through to Cells [F3:F21] in 'RF Workings' in . Where values have been entered both for the CPI Index and the GDP Deflator for a given year in Cells [C27:D39], the Calculator will give preference to the CPI Index as this is based on actual values rather than forecasts.
A117: 82 | B117: Click on 'Revert to Original' to revert to the original data series.

Sheet Start Page
B1: Start Page
A3: 1 | B3: Area Type | G3: Non-PTE
A4: 2 | B4: Year | G4: 2023/24
A6: 3 | B6: Observed Concessionary Journeys

Sheet AF model
B1: Average Fare Calculator
A3: 4
A10: 21 | B10: Average Fare Foregone
A16: 5 | B16: Discount Factor Method
B20: Ticket prices (£) | G20: 12
A21: 6 | B21: Average cash fare | G21: Final allocation of tickets (after degeneration)
A22: 7 | B22: Average daily ticket price | D22: =IF(OR('AF Workings'!D6>10,'AF Workings'!W6>10), "Warning: Ratio of daily to cash fares not in Lookup - use Basket of Fares","") ->  | G22: Ticket Type | H22: %
A23: 8 | B23: Average weekly ticket price | G23: Cash Fare | H23: ='AF Workings'!$AG$25 -> 
G24: Daily | H24: ='AF Workings'!$AG$26 -> 
A25: 9 | B25: Discount factor before degeneration | C25: ='AF Workings'!$H$18 ->  | G25: Weekly | H25: ='AF Workings'!$AG$27 -> 
A27: 10 | B27: FINAL discount factor | C27: ='AF Workings'!$AG$18 -> 
A29: 11 | B29: Discounted Average Fare | C29: =C21-(C21*C27) -> 
A33: 13 | B33: Basket of Fares Method
B34: 14 | C34: 15 | D34: 16 | E34: 17 | F34: 18 | G34: 19
B35: Type of ticket | C35: Price £ | D35: Assumed journeys per ticket purchased | E35: Implied revenue per journey (£s) | F35: % of total journeys with this ticket type | G35: Weighted revenue per ticket
B36: <Insert ticket type here> | E36: =IF(D36="","",C36/D36) ->  | G36: =IF(OR(C36="",D36="",F36=""),"",F36*E36) -> 
B37: <Insert ticket type here>
B38: <Insert ticket type here>
B39: <Insert ticket type here>
B40: <Insert ticket type here>
B41: <Insert ticket type here>
B42: <Insert ticket type here>
B43: <Insert ticket type here>
B44: <Insert ticket type here>
B45: <Insert ticket type here>
B46: <Insert ticket type here>
B47: Total | F47: =SUM(F36:F46) -> 0
A48: 20 | B48: Weighted Average Fare: | G48: =SUM(G36:G46) -> 0
A53: 22 | B53: Estimation of Average Fare Foregone using Discount Fare Method - Template
A55: 23 | B55: CASH FARE | C55: 24 | D55: 25 | E55: 26
B56: Product | C56: Single journey multiplier | D56: Number of tickets sold | E56: Total revenue (£) | F56: Equivalent number of journeys
B57: <Insert ticket type here> | F57: =C57*D57 -> 0
B58: <Insert ticket type here> | F58: 0
B59: <Insert ticket type here> | F59: 0
B60: <Insert ticket type here> | F60: 0
B61: <Insert ticket type here> | F61: 0
B62: <Insert ticket type here> | F62: 0
B63: <Insert ticket type here> | F63: 0
B64: <Insert ticket type here> | F64: 0
B65: Total all cash fares | E65: =SUM(E57:E64) -> 0 | F65: =SUM(F57:F64) -> 0
B66: Average cash fare (per journey) | F66: =E65/F65 -> 
B69: DAY TICKETS
B70: Product | C70: Number of tickets sold | D70: Total revenue (£)
B71: <Insert ticket type here>
B72: <Insert ticket type here>
B73: <Insert ticket type here>
B74: <Insert ticket type here>
B75: <Insert ticket type here>
B76: <Insert ticket type here>
B77: <Insert ticket type here>
B78: <Insert ticket type here>
B79: Total all day tickets | C79: =SUM(C71:C78) -> 0 | D79: =SUM(D71:D78) -> 0
B80: Average day ticket price | D80: =D79/C79 -> 
B83: WEEKLY TICKETS
B84: Product | C84: Number of tickets sold | D84: Total revenue (£)
B85: <Insert ticket type here>
B86: <Insert ticket type here>
B87: <Insert ticket type here>
B88: <Insert ticket type here>
B89: <Insert ticket type here>
B90: <Insert ticket type here>
B91: <Insert ticket type here>
B92: <Insert ticket type here>
B93: Total all weekly tickets | C93: =SUM(C85:C92) -> 0 | D93: =SUM(D85:D92) -> 0
B94: Average weekly ticket price | D94: =D93/C93 -> 

Sheet RF model
A1: 22a | B1: Reimbursement Factor Calculator
A3: 22b | B3: Choose option for change in fares
A4: 23 | B4: Area Type | C4: ='Start Page'!$G$3 -> Non-PTE
A5: 24 | B5: Year | C5: ='Start Page'!$G$4 -> 2023/24
A6: 25 | B6: Current Average Fare Forgone | D6: Fare from Average Fare Model
A14: 26 | B14: Reimbursement Factor | C14: ='RF Workings'!G55 -> 
B28: OPTIONS
A30: 27 | B30: Option (1) Percentage change in operator-specific nominal fares between 2005/6 and the current reimbursement period
A33: 28 | B33: Option (2) TCA-wide change in nominal average fares
A35: 29 | B35: Enter TCA-wide percentage change in nominal fare between 2005/6 and 2010/11
A36: 30 | B36: Enter operator-specific percentage change in nominal fare between 2010/11 and current reimbursement period
A38: 31 | B38: Option (3) National Bus Fare Index
A39: 32 | B39: Percentage change in operator specific nominal fare between 2010/11 and current reimbursement period
B40: National Bus Index - Nominal increase between 2005/06 and 2010/11 | C40: =IF(C4="Non-PTE",'RF Workings'!$G$44,'RF Workings'!$F$44) -> 0.2064816431
A42: 33 | B42: New Operator
A48: 34 | B48: Enter TCA-wide percentage change in nominal fare between 2005/6 and current reimbursement period

Sheet AC model
A1: 35 | B1: Additional Costs Calculator
A3: 36 | B3: Reimbursement Period | D3: ='Start Page'!$G$4 -> 2023/24
B4: Area type | D4: ='Start Page'!$G$3 -> Non-PTE
A7: 37 | B7: Administration Costs
A9: 38 | B9: Enter Local Administration Cost of Scheme (£) | D9: 0
A12: 39 | B12: Marginal Operating Costs
A14: 40 | B14: Fixed Element (£) | D14: =0.055*(VLOOKUP('Start Page'!G4,'RF Workings'!$E$3:$G$21,2,TRUE)/'RF Workings'!$F$7) -> 0.07859948844
A15: 41 | B15: Journey Length (miles) | C15: Use Local Trip Length | D15: =IF(C15="Use Default Trip Length",3.9,"") -> 
C16: =IF(C15="Vary by local trip length","Enter Local Trip Length","") -> 
A17: 42 | B17: Variable Element (£) | D17: =IF(C15="Use default trip length",0.006,0.006*(D16/3.9))*(VLOOKUP('Start Page'!G4,'RF Workings'!$E$3:$G$21,2)/'RF Workings'!$F$7) -> 0
A18: 43 | B18: Marginal Operating Cost per generated journey | D18: =D17+D14 -> 0.07859948844
B21: Marginal Capacity Costs
A23: 44
A28: 45 | B28: Peak Vehicle Requirement Costs
A29: 46 | B29: PVR Costs (£) | D29: 0

Sheet MCC Model
A1: Marginal Capacity Cost Calculator | E1: Area Type | F1: ='Start Page'!$G$3 -> Non-PTE | Z1: MODEL INPUTS
E2: Year | F2: ='Start Page'!$G$4 -> 2023/24 | AA2: PTE | AB2: Non-PTE
X3: Detailed workings are on the right ® | Z3: Overall speed incl turns | AA3: 8.785714286 | AB3: 10.02771429 | AC3: miles per hour
V4: [Select Cols X and BB and | Z4: Default Mean Vehicle Occupancy | AA4: 10 | AB4: 10 | AC4: passengers per bus miles
J5: Use Default | V5: go to Format\Column\Unhide | Z5: Mean Journey Length | AA5: 3.106855961 | AB5: 3.572884335 | AC5: miles
J6: Use Local Value | V6: to unhide columns] | Z6: Mean Route Length | AA6: 6.213711922 | AB6: 7.14576868 | AC6: miles
Z7: Default Percentage of Commercial Journeys | AA7: 0.6 | AB7: 0.6
C8: Total Concessionary Journeys | E8: 63 | F8: =IF(D8='Start Page'!G6,"","NOTE - number of concessionary journeys does not equal the number entered on the start page") ->  | V8: Total net marginal capacity costs | W8: =SUM(W11:W160) -> 0 | X8: 64 | Z8: Base frequency | AA8: 6 | AB8: 6 | AC8: buses/hr
A9: 47 | B9: 48 | C9: 49 | D9: 50 | E9: 51 | F9: 52 | H9: 53 | J9: 54 | L9: 55 | N9: 56 | P9: 57 | R9: 58 | S9: 59 | U9: 60 | V9: 61 | W9: 62
A10: Activate calculation | B10: Network/Subset of networks | C10: Generation Factor | D10: Total Concessionary Journeys on Network/Subset of networks | E10: Mohring Power | F10: Cost/Vehicle Hour (£) | H10: Cost/Vehicle Mile (£) | J10: Speed (mph) | L10: Mean vehicle occupancy (passengers per bus mile) | N10: Mean Journey Length (miles) | P10: Mean route length (miles) | R10: Average commercial fare (£) | S10: Commercial Journeys as a % of Total | U10: Service elasticity | V10: Net additional capacity cost per generated passenger journey (£) | W10: Total net costs for the network/subset of networks (£) | Z10: WORKINGS | AA10: Base frequency (buses/hr) | AB10: Pax boardings/m of route/bus | AC10: Pax boardings/m of route/hr | AD10: Additional pax per m of route/hr | AE10: χ1 (Buses/hr) | AF10: Veh hrs/hr to operate BOTH sides of the route - Without marginal pax | AG10: Veh hrs/hr to operate on ONE side of the route - Without marginal pax | AH10: Veh hrs/hr to operate BOTH sides of the route - With marginal pax | AI10: Veh hrs/hr to operate on ONE side of the route - With marginal pax | AJ10: Δveh hrs | AK10: £ per additional passenger journey | AL10: Veh miles/hr to operate BOTH sides of the route - Without marginal pax | AM10: Veh miles/hr to operate on ONE side of the route - Without marginal pax | AN10: Veh miles/hr to operate BOTH sides of the route - With marginal pax | AO10: Veh ,iles/hr to operate on ONE side of the route - With marginal pax | AP10: Δveh miles | AQ10: £ per additional passenger journey | AR10: Total additional capacity cost per generated passenger journey excluding any effect on the PVR | AS10: Percentage change in frequency | AT10: Percentage change in demand | AU10: Total boardings/hr BOTH WAYS | AV10: Total boardings/hr ONE WAY | AW10: Of which commercial journeys | AX10: Change in commercial journeys | AY10: Revenue Gain | AZ10: Net of marginal costs of commercial journeys generated by the service elasticity | BA10: Net additional capacity cost per generated passenger journey
A11: No | B11: <Add network desc> | C11: =IF(A11="No","",1-'RF model'!$C$14) ->  | E11: =IF(A11="No","",0.6) ->  | F11: Use Default | G11: =IF(A11="No","",IF(F11="Use Default",13.3*(VLOOKUP('Start Page'!$G$4,'RF Workings'!$E$3:$G$21,2)/'RF Workings'!$F$7),"")) ->  | H11: Use Default | I11: =IF(A11="No","",IF(H11="Use Default",0.7*(VLOOKUP('Start Page'!$G$4,'RF Workings'!$E$3:$G$21,2)/'RF Workings'!$F$7),"")) ->  | J11: Use Default | K11: =IF(A11="No","",IF(J11="Use Default",IF($F$1="Non-PTE",$AB$3,$AA$3),"")) ->  | L11: Use Default | M11: =IF(A11="No","",IF(L11="Use Default",IF($F$1="Non-PTE",$AB$4,$AA$4),"")) ->  | N11: Use Default | O11: =IF(A11="No","",IF(N11="Use Default",IF($F$1="Non-PTE",$AB$5,$AA$5),"")) ->  | P11: Use Default | Q11: =IF(A11="No","",(IF(P11="Use Default",IF($F$1="Non-PTE",$AB$6,$AA$6),""))) ->  | S11: Use Default | T11: =IF(A11="No","",IF(S11="Use Default",IF('MCC Model '!$F$1="Non-PTE",$AB$7,$AA$7),"")) ->  | U11: =IF(A11="No","",0.66) ->  | V11: =IF(A11="Yes",(IF(BA11<0,0,BA11)),"") ->  | W11: =IF(A11="Yes",V11*C11*D11,"") ->  | AA11: =IF(F1="Non-PTE",AB8,AA8) -> 6 | AB11: =IF(AND(N11="Use Default",P11="Use Default"),Q11/O11,IF(AND(N11="Use Local Value",P11="Use Default"),Q11/O12,IF(AND(N11="Use Default",P11="Use Local Value"),Q12/O11,IF(AND(N11="Use Local Value",P11="Use Local Value"),Q12/O12))))*IF($M11="",$M12,$M11)/IF($Q11="",Q12,$Q11) ->  | AC11: =AA11*AB11 ->  | AD11: =1/IF(Q11="",Q12,Q11) ->  | AE11: =AA11*((AC11+AD11)/AC11)^E11 ->  | AF11: =AA11/((IF(K11="",K12,K11)/(IF(Q11="",Q12,Q11)*2))) ->  | AG11: =AF11/2 ->  | AH11: =AE11/((IF(K11="",K12,K11)/(IF(Q11="",Q12,Q11)*2))) ->  | AI11: =AH11/2 ->  | AJ11: =AI11-AG11 ->  | AK11: =AJ11*IF(F11="Use Default",G11,G12) ->  | AL11: =AA11*IF(K11="",K12,K11)/((IF(K11="",K12,K11)/(IF(Q11="",Q12,Q11)*2))) ->  | AM11: =AL11/2 ->  | AN11: =AE11*IF(K11="",K12,K11)/((IF(K11="",K12,K11)/(IF(Q11="",Q12,Q11)*2))) ->  | AO11: =AN11/2 ->  | AP11: =AO11-AM11 ->  | AQ11: =AP11*IF(H11="Use Default",I11,I12) ->  | AR11: =AQ11+AK11 ->  | AS11: =(AE11-AA11)/AA11 ->  | AT11: =AS11*U11 ->  | AU11: =AC11*IF(Q11="",Q12,Q11)*2 ->  | AV11: =AU11/2 ->  | AW11: =AV11*IF(T11="",T12,T11) ->  | AX11: =AW11*AT11 ->  | AY11: =AX11*R11 ->  | AZ11: =AX11*'AC model'!$D$18 ->  | BA11: =AR11-AY11+AZ11 -> 
F12: =IF(F11="Use Local Value", "Enter Local Value","") ->  | H12: =IF(H11="Use Local Value", "Enter Local Value","") ->  | J12: =IF(J11="Use Local Value", "Enter Local Value","") ->  | L12: =IF(L11="Use Local Value","Enter Local Value","") ->  | N12: =IF(N11="Use Local Value","Enter Local Value","") ->  | P12: =IF(P11="Use Local Value","Enter Local Value","") ->  | S12: =IF(S11="Use Local Value", "Enter Local Value","") -> 
A14: No | B14: <Add network desc> | C14: =IF(A14="No","",1-'RF model'!$C$14) ->  | E14: =IF(A14="No","",0.6) ->  | F14: Use Default | G14: =IF(A14="No","",IF(F14="Use Default",13.3*(VLOOKUP('Start Page'!$G$4,'RF Workings'!$E$3:$G$21,2)/'RF Workings'!$F$7),"")) ->  | H14: Use Default | I14: =IF(A14="No","",IF(H14="Use Default",0.7*(VLOOKUP('Start Page'!$G$4,'RF Workings'!$E$3:$G$21,2)/'RF Workings'!$F$7),"")) ->  | J14: Use Default | K14: =IF(A14="No","",IF(J14="Use Default",IF($F$1="Non-PTE",$AB$3,$AA$3),"")) ->  | L14: Use Default | M14: =IF(A14="No","",IF(L14="Use Default",IF($F$1="Non-PTE",$AB$4,$AA$4),"")) ->  | N14: Use Default | O14: =IF(A14="No","",IF(N14="Use Default",IF($F$1="Non-PTE",$AB$5,$AA$5),"")) ->  | P14: Use Default | Q14: =IF(A14="No","",(IF(P14="Use Default",IF($F$1="Non-PTE",$AB$6,$AA$6),""))) ->  | S14: Use Default | T14: =IF(A14="No","",IF(S14="Use Default",IF('MCC Model '!$F$1="Non-PTE",$AB$7,$AA$7),"")) ->  | U14: =IF(A14="No","",0.66) ->  | V14: =IF(A14="Yes",(IF(BA14<0,0,BA14)),"") ->  | W14: =IF(A14="Yes",V14*C14*D14,"") ->  | AA14: =IF(F4="Non-PTE",AB11,AA11) -> 6 | AB14: =IF(AND(N14="Use Default",P14="Use Default"),Q14/O14,IF(AND(N14="Use Local Value",P14="Use Default"),Q14/O15,IF(AND(N14="Use Default",P14="Use Local Value"),Q15/O14,IF(AND(N14="Use Local Value",P14="Use Local Value"),Q15/O15))))*IF($M14="",$M15,$M14)/IF($Q14="",Q15,$Q14) ->  | AC14: =AA14*AB14 ->  | AD14: =1/IF(Q14="",Q15,Q14) ->  | AE14: =AA14*((AC14+AD14)/AC14)^E14 ->  | AF14: =AA14/((IF(K14="",K15,K14)/(IF(Q14="",Q15,Q14)*2))) ->  | AG14: =AF14/2 ->  | AH14: =AE14/((IF(K14="",K15,K14)/(IF(Q14="",Q15,Q14)*2))) ->  | AI14: =AH14/2 ->  | AJ14: =AI14-AG14 ->  | AK14: =AJ14*IF(F14="Use Default",G14,G15) ->  | AL14: =AA14*IF(K14="",K15,K14)/((IF(K14="",K15,K14)/(IF(Q14="",Q15,Q14)*2))) ->  | AM14: =AL14/2 ->  | AN14: =AE14*IF(K14="",K15,K14)/((IF(K14="",K15,K14)/(IF(Q14="",Q15,Q14)*2))) ->  | AO14: =AN14/2 ->  | AP14: =AO14-AM14 ->  | AQ14: =AP14*IF(H14="Use Default",I14,I15) ->  | AR14: =AQ14+AK14 ->  | AS14: =(AE14-AA14)/AA14 ->  | AT14: =AS14*U14 ->  | AU14: =AC14*IF(Q14="",Q15,Q14)*2 ->  | AV14: =AU14/2 ->  | AW14: =AV14*IF(T14="",T15,T14) ->  | AX14: =AW14*AT14 ->  | AY14: =AX14*R14 ->  | AZ14: =AX14*'AC model'!$D$18 ->  | BA14: =AR14-AY14+AZ14 -> 
F15: =IF(F14="Use Local Value", "Enter Local Value","") ->  | H15: =IF(H14="Use Local Value", "Enter Local Value","") ->  | J15: =IF(J14="Use Local Value", "Enter Local Value","") ->  | L15: =IF(L14="Use Local Value","Enter Local Value","") ->  | N15: =IF(N14="Use Local Value","Enter Local Value","") ->  | P15: =IF(P14="Use Local Value","Enter Local Value","") ->  | S15: =IF(S14="Use Local Value", "Enter Local Value","") -> 
A17: No | B17: <Add network desc> | C17: =IF(A17="No","",1-'RF model'!$C$14) ->  | E17: =IF(A17="No","",0.6) ->  | F17: Use Default | G17: =IF(A17="No","",IF(F17="Use Default",13.3*(VLOOKUP('Start Page'!$G$4,'RF Workings'!$E$3:$G$21,2)/'RF Workings'!$F$7),"")) ->  | H17: Use Default | I17: =IF(A17="No","",IF(H17="Use Default",0.7*(VLOOKUP('Start Page'!$G$4,'RF Workings'!$E$3:$G$21,2)/'RF Workings'!$F$7),"")) ->  | J17: Use Default | K17: =IF(A17="No","",IF(J17="Use Default",IF($F$1="Non-PTE",$AB$3,$AA$3),"")) ->  | L17: Use Default | M17: =IF(A17="No","",IF(L17="Use Default",IF($F$1="Non-PTE",$AB$4,$AA$4),"")) ->  | N17: Use Default | O17: =IF(A17="No","",IF(N17="Use Default",IF($F$1="Non-PTE",$AB$5,$AA$5),"")) ->  | P17: Use Default | Q17: =IF(A17="No","",(IF(P17="Use Default",IF($F$1="Non-PTE",$AB$6,$AA$6),""))) ->  | S17: Use Default | T17: =IF(A17="No","",IF(S17="Use Default",IF('MCC Model '!$F$1="Non-PTE",$AB$7,$AA$7),"")) ->  | U17: =IF(A17="No","",0.66) ->  | V17: =IF(A17="Yes",(IF(BA17<0,0,BA17)),"") ->  | W17: =IF(A17="Yes",V17*C17*D17,"") ->  | AA17: =IF(F7="Non-PTE",AB14,AA14) -> 6 | AB17: =IF(AND(N17="Use Default",P17="Use Default"),Q17/O17,IF(AND(N17="Use Local Value",P17="Use Default"),Q17/O18,IF(AND(N17="Use Default",P17="Use Local Value"),Q18/O17,IF(AND(N17="Use Local Value",P17="Use Local Value"),Q18/O18))))*IF($M17="",$M18,$M17)/IF($Q17="",Q18,$Q17) ->  | AC17: =AA17*AB17 ->  | AD17: =1/IF(Q17="",Q18,Q17) ->  | AE17: =AA17*((AC17+AD17)/AC17)^E17 ->  | AF17: =AA17/((IF(K17="",K18,K17)/(IF(Q17="",Q18,Q17)*2))) ->  | AG17: =AF17/2 ->  | AH17: =AE17/((IF(K17="",K18,K17)/(IF(Q17="",Q18,Q17)*2))) ->  | AI17: =AH17/2 ->  | AJ17: =AI17-AG17 ->  | AK17: =AJ17*IF(F17="Use Default",G17,G18) ->  | AL17: =AA17*IF(K17="",K18,K17)/((IF(K17="",K18,K17)/(IF(Q17="",Q18,Q17)*2))) ->  | AM17: =AL17/2 ->  | AN17: =AE17*IF(K17="",K18,K17)/((IF(K17="",K18,K17)/(IF(Q17="",Q18,Q17)*2))) ->  | AO17: =AN17/2 ->  | AP17: =AO17-AM17 ->  | AQ17: =AP17*IF(H17="Use Default",I17,I18) ->  | AR17: =AQ17+AK17 ->  | AS17: =(AE17-AA17)/AA17 ->  | AT17: =AS17*U17 ->  | AU17: =AC17*IF(Q17="",Q18,Q17)*2 ->  | AV17: =AU17/2 ->  | AW17: =AV17*IF(T17="",T18,T17) ->  | AX17: =AW17*AT17 ->  | AY17: =AX17*R17 ->  | AZ17: =AX17*'AC model'!$D$18 ->  | BA17: =AR17-AY17+AZ17 -> 
F18: =IF(F17="Use Local Value", "Enter Local Value","") ->  | H18: =IF(H17="Use Local Value", "Enter Local Value","") ->  | J18: =IF(J17="Use Local Value", "Enter Local Value","") ->  | L18: =IF(L17="Use Local Value","Enter Local Value","") ->  | N18: =IF(N17="Use Local Value","Enter Local Value","") ->  | P18: =IF(P17="Use Local Value","Enter Local Value","") ->  | S18: =IF(S17="Use Local Value", "Enter Local Value","") -> 
A20: No | B20: <Add network desc> | C20: =IF(A20="No","",1-'RF model'!$C$14) ->  | E20: =IF(A20="No","",0.6) ->  | F20: Use Default | G20: =IF(A20="No","",IF(F20="Use Default",13.3*(VLOOKUP('Start Page'!$G$4,'RF Workings'!$E$3:$G$21,2)/'RF Workings'!$F$7),"")) ->  | H20: Use Default | I20: =IF(A20="No","",IF(H20="Use Default",0.7*(VLOOKUP('Start Page'!$G$4,'RF Workings'!$E$3:$G$21,2)/'RF Workings'!$F$7),"")) ->  | J20: Use Default | K20: =IF(A20="No","",IF(J20="Use Default",IF($F$1="Non-PTE",$AB$3,$AA$3),"")) ->  | L20: Use Default | M20: =IF(A20="No","",IF(L20="Use Default",IF($F$1="Non-PTE",$AB$4,$AA$4),"")) ->  | N20: Use Default | O20: =IF(A20="No","",IF(N20="Use Default",IF($F$1="Non-PTE",$AB$5,$AA$5),"")) ->  | P20: Use Default | Q20: =IF(A20="No","",(IF(P20="Use Default",IF($F$1="Non-PTE",$AB$6,$AA$6),""))) ->  | S20: Use Default | T20: =IF(A20="No","",IF(S20="Use Default",IF('MCC Model '!$F$1="Non-PTE",$AB$7,$AA$7),"")) ->  | U20: =IF(A20="No","",0.66) ->  | V20: =IF(A20="Yes",(IF(BA20<0,0,BA20)),"") ->  | W20: =IF(A20="Yes",V20*C20*D20,"") ->  | AA20: =IF(F10="Non-PTE",AB17,AA17) -> 6 | AB20: =IF(AND(N20="Use Default",P20="Use Default"),Q20/O20,IF(AND(N20="Use Local Value",P20="Use Default"),Q20/O21,IF(AND(N20="Use Default",P20="Use Local Value"),Q21/O20,IF(AND(N20="Use Local Value",P20="Use Local Value"),Q21/O21))))*IF($M20="",$M21,$M20)/IF($Q20="",Q21,$Q20) ->  | AC20: =AA20*AB20 ->  | AD20: =1/IF(Q20="",Q21,Q20) ->  | AE20: =AA20*((AC20+AD20)/AC20)^E20 ->  | AF20: =AA20/((IF(K20="",K21,K20)/(IF(Q20="",Q21,Q20)*2))) ->  | AG20: =AF20/2 ->  | AH20: =AE20/((IF(K20="",K21,K20)/(IF(Q20="",Q21,Q20)*2))) ->  | AI20: =AH20/2 ->  | AJ20: =AI20-AG20 ->  | AK20: =AJ20*IF(F20="Use Default",G20,G21) ->  | AL20: =AA20*IF(K20="",K21,K20)/((IF(K20="",K21,K20)/(IF(Q20="",Q21,Q20)*2))) ->  | AM20: =AL20/2 ->  | AN20: =AE20*IF(K20="",K21,K20)/((IF(K20="",K21,K20)/(IF(Q20="",Q21,Q20)*2))) ->  | AO20: =AN20/2 ->  | AP20: =AO20-AM20 ->  | AQ20: =AP20*IF(H20="Use Default",I20,I21) ->  | AR20: =AQ20+AK20 ->  | AS20: =(AE20-AA20)/AA20 ->  | AT20: =AS20*U20 ->  | AU20: =AC20*IF(Q20="",Q21,Q20)*2 ->  | AV20: =AU20/2 ->  | AW20: =AV20*IF(T20="",T21,T20) ->  | AX20: =AW20*AT20 ->  | AY20: =AX20*R20 ->  | AZ20: =AX20*'AC model'!$D$18 ->  | BA20: =AR20-AY20+AZ20 -> 
F21: =IF(F20="Use Local Value", "Enter Local Value","") ->  | H21: =IF(H20="Use Local Value", "Enter Local Value","") ->  | J21: =IF(J20="Use Local Value", "Enter Local Value","") ->  | L21: =IF(L20="Use Local Value","Enter Local Value","") ->  | N21: =IF(N20="Use Local Value","Enter Local Value","") ->  | P21: =IF(P20="Use Local Value","Enter Local Value","") ->  | S21: =IF(S20="Use Local Value", "Enter Local Value","") -> 
A23: No | B23: <Add network desc> | C23: =IF(A23="No","",1-'RF model'!$C$14) ->  | E23: =IF(A23="No","",0.6) ->  | F23: Use Default | G23: =IF(A23="No","",IF(F23="Use Default",13.3*(VLOOKUP('Start Page'!$G$4,'RF Workings'!$E$3:$G$21,2)/'RF Workings'!$F$7),"")) ->  | H23: Use Default | I23: =IF(A23="No","",IF(H23="Use Default",0.7*(VLOOKUP('Start Page'!$G$4,'RF Workings'!$E$3:$G$21,2)/'RF Workings'!$F$7),"")) ->  | J23: Use Default | K23: =IF(A23="No","",IF(J23="Use Default",IF($F$1="Non-PTE",$AB$3,$AA$3),"")) ->  | L23: Use Default | M23: =IF(A23="No","",IF(L23="Use Default",IF($F$1="Non-PTE",$AB$4,$AA$4),"")) ->  | N23: Use Default | O23: =IF(A23="No","",IF(N23="Use Default",IF($F$1="Non-PTE",$AB$5,$AA$5),"")) ->  | P23: Use Default | Q23: =IF(A23="No","",(IF(P23="Use Default",IF($F$1="Non-PTE",$AB$6,$AA$6),""))) ->  | S23: Use Default | T23: =IF(A23="No","",IF(S23="Use Default",IF('MCC Model '!$F$1="Non-PTE",$AB$7,$AA$7),"")) ->  | U23: =IF(A23="No","",0.66) ->  | V23: =IF(A23="Yes",(IF(BA23<0,0,BA23)),"") ->  | W23: =IF(A23="Yes",V23*C23*D23,"") ->  | AA23: =IF(F13="Non-PTE",AB20,AA20) -> 6 | AB23: =IF(AND(N23="Use Default",P23="Use Default"),Q23/O23,IF(AND(N23="Use Local Value",P23="Use Default"),Q23/O24,IF(AND(N23="Use Default",P23="Use Local Value"),Q24/O23,IF(AND(N23="Use Local Value",P23="Use Local Value"),Q24/O24))))*IF($M23="",$M24,$M23)/IF($Q23="",Q24,$Q23) ->  | AC23: =AA23*AB23 ->  | AD23: =1/IF(Q23="",Q24,Q23) ->  | AE23: =AA23*((AC23+AD23)/AC23)^E23 ->  | AF23: =AA23/((IF(K23="",K24,K23)/(IF(Q23="",Q24,Q23)*2))) ->  | AG23: =AF23/2 ->  | AH23: =AE23/((IF(K23="",K24,K23)/(IF(Q23="",Q24,Q23)*2))) ->  | AI23: =AH23/2 ->  | AJ23: =AI23-AG23 ->  | AK23: =AJ23*IF(F23="Use Default",G23,G24) ->  | AL23: =AA23*IF(K23="",K24,K23)/((IF(K23="",K24,K23)/(IF(Q23="",Q24,Q23)*2))) ->  | AM23: =AL23/2 ->  | AN23: =AE23*IF(K23="",K24,K23)/((IF(K23="",K24,K23)/(IF(Q23="",Q24,Q23)*2))) ->  | AO23: =AN23/2 ->  | AP23: =AO23-AM23 ->  | AQ23: =AP23*IF(H23="Use Default",I23,I24) ->  | AR23: =AQ23+AK23 ->  | AS23: =(AE23-AA23)/AA23 ->  | AT23: =AS23*U23 ->  | AU23: =AC23*IF(Q23="",Q24,Q23)*2 ->  | AV23: =AU23/2 ->  | AW23: =AV23*IF(T23="",T24,T23) ->  | AX23: =AW23*AT23 ->  | AY23: =AX23*R23 ->  | AZ23: =AX23*'AC model'!$D$18 ->  | BA23: =AR23-AY23+AZ23 -> 
F24: =IF(F23="Use Local Value", "Enter Local Value","") ->  | H24: =IF(H23="Use Local Value", "Enter Local Value","") ->  | J24: =IF(J23="Use Local Value", "Enter Local Value","") ->  | L24: =IF(L23="Use Local Value","Enter Local Value","") ->  | N24: =IF(N23="Use Local Value","Enter Local Value","") ->  | P24: =IF(P23="Use Local Value","Enter Local Value","") ->  | S24: =IF(S23="Use Local Value", "Enter Local Value","") -> 
A26: No | B26: <Add network desc> | C26: =IF(A26="No","",1-'RF model'!$C$14) ->  | E26: =IF(A26="No","",0.6) ->  | F26: Use Default | G26: =IF(A26="No","",IF(F26="Use Default",13.3*(VLOOKUP('Start Page'!$G$4,'RF Workings'!$E$3:$G$21,2)/'RF Workings'!$F$7),"")) ->  | H26: Use Default | I26: =IF(A26="No","",IF(H26="Use Default",0.7*(VLOOKUP('Start Page'!$G$4,'RF Workings'!$E$3:$G$21,2)/'RF Workings'!$F$7),"")) ->  | J26: Use Default | K26: =IF(A26="No","",IF(J26="Use Default",IF($F$1="Non-PTE",$AB$3,$AA$3),"")) ->  | L26: Use Default | M26: =IF(A26="No","",IF(L26="Use Default",IF($F$1="Non-PTE",$AB$4,$AA$4),"")) ->  | N26: Use Default | O26: =IF(A26="No","",IF(N26="Use Default",IF($F$1="Non-PTE",$AB$5,$AA$5),"")) ->  | P26: Use Default | Q26: =IF(A26="No","",(IF(P26="Use Default",IF($F$1="Non-PTE",$AB$6,$AA$6),""))) ->  | S26: Use Default | T26: =IF(A26="No","",IF(S26="Use Default",IF('MCC Model '!$F$1="Non-PTE",$AB$7,$AA$7),"")) ->  | U26: =IF(A26="No","",0.66) ->  | V26: =IF(A26="Yes",(IF(BA26<0,0,BA26)),"") ->  | W26: =IF(A26="Yes",V26*C26*D26,"") ->  | AA26: =IF(F16="Non-PTE",AB23,AA23) -> 6 | AB26: =IF(AND(N26="Use Default",P26="Use Default"),Q26/O26,IF(AND(N26="Use Local Value",P26="Use Default"),Q26/O27,IF(AND(N26="Use Default",P26="Use Local Value"),Q27/O26,IF(AND(N26="Use Local Value",P26="Use Local Value"),Q27/O27))))*IF($M26="",$M27,$M26)/IF($Q26="",Q27,$Q26) ->  | AC26: =AA26*AB26 ->  | AD26: =1/IF(Q26="",Q27,Q26) ->  | AE26: =AA26*((AC26+AD26)/AC26)^E26 ->  | AF26: =AA26/((IF(K26="",K27,K26)/(IF(Q26="",Q27,Q26)*2))) ->  | AG26: =AF26/2 ->  | AH26: =AE26/((IF(K26="",K27,K26)/(IF(Q26="",Q27,Q26)*2))) ->  | AI26: =AH26/2 ->  | AJ26: =AI26-AG26 ->  | AK26: =AJ26*IF(F26="Use Default",G26,G27) ->  | AL26: =AA26*IF(K26="",K27,K26)/((IF(K26="",K27,K26)/(IF(Q26="",Q27,Q26)*2))) ->  | AM26: =AL26/2 ->  | AN26: =AE26*IF(K26="",K27,K26)/((IF(K26="",K27,K26)/(IF(Q26="",Q27,Q26)*2))) ->  | AO26: =AN26/2 ->  | AP26: =AO26-AM26 ->  | AQ26: =AP26*IF(H26="Use Default",I26,I27) ->  | AR26: =AQ26+AK26 ->  | AS26: =(AE26-AA26)/AA26 ->  | AT26: =AS26*U26 ->  | AU26: =AC26*IF(Q26="",Q27,Q26)*2 ->  | AV26: =AU26/2 ->  | AW26: =AV26*IF(T26="",T27,T26) ->  | AX26: =AW26*AT26 ->  | AY26: =AX26*R26 ->  | AZ26: =AX26*'AC model'!$D$18 ->  | BA26: =AR26-AY26+AZ26 -> 
F27: =IF(F26="Use Local Value", "Enter Local Value","") ->  | H27: =IF(H26="Use Local Value", "Enter Local Value","") ->  | J27: =IF(J26="Use Local Value", "Enter Local Value","") ->  | L27: =IF(L26="Use Local Value","Enter Local Value","") ->  | N27: =IF(N26="Use Local Value","Enter Local Value","") ->  | P27: =IF(P26="Use Local Value","Enter Local Value","") ->  | S27: =IF(S26="Use Local Value", "Enter Local Value","") -> 
A29: No | B29: <Add network desc> | C29: =IF(A29="No","",1-'RF model'!$C$14) ->  | E29: =IF(A29="No","",0.6) ->  | F29: Use Default | G29: =IF(A29="No","",IF(F29="Use Default",13.3*(VLOOKUP('Start Page'!$G$4,'RF Workings'!$E$3:$G$21,2)/'RF Workings'!$F$7),"")) ->  | H29: Use Default | I29: =IF(A29="No","",IF(H29="Use Default",0.7*(VLOOKUP('Start Page'!$G$4,'RF Workings'!$E$3:$G$21,2)/'RF Workings'!$F$7),"")) ->  | J29: Use Default | K29: =IF(A29="No","",IF(J29="Use Default",IF($F$1="Non-PTE",$AB$3,$AA$3),"")) ->  | L29: Use Default | M29: =IF(A29="No","",IF(L29="Use Default",IF($F$1="Non-PTE",$AB$4,$AA$4),"")) ->  | N29: Use Default | O29: =IF(A29="No","",IF(N29="Use Default",IF($F$1="Non-PTE",$AB$5,$AA$5),"")) ->  | P29: Use Default | Q29: =IF(A29="No","",(IF(P29="Use Default",IF($F$1="Non-PTE",$AB$6,$AA$6),""))) ->  | S29: Use Default | T29: =IF(A29="No","",IF(S29="Use Default",IF('MCC Model '!$F$1="Non-PTE",$AB$7,$AA$7),"")) ->  | U29: =IF(A29="No","",0.66) ->  | V29: =IF(A29="Yes",(IF(BA29<0,0,BA29)),"") ->  | W29: =IF(A29="Yes",V29*C29*D29,"") ->  | AA29: =IF(F19="Non-PTE",AB26,AA26) -> 6 | AB29: =IF(AND(N29="Use Default",P29="Use Default"),Q29/O29,IF(AND(N29="Use Local Value",P29="Use Default"),Q29/O30,IF(AND(N29="Use Default",P29="Use Local Value"),Q30/O29,IF(AND(N29="Use Local Value",P29="Use Local Value"),Q30/O30))))*IF($M29="",$M30,$M29)/IF($Q29="",Q30,$Q29) ->  | AC29: =AA29*AB29 ->  | AD29: =1/IF(Q29="",Q30,Q29) ->  | AE29: =AA29*((AC29+AD29)/AC29)^E29 ->  | AF29: =AA29/((IF(K29="",K30,K29)/(IF(Q29="",Q30,Q29)*2))) ->  | AG29: =AF29/2 ->  | AH29: =AE29/((IF(K29="",K30,K29)/(IF(Q29="",Q30,Q29)*2))) ->  | AI29: =AH29/2 ->  | AJ29: =AI29-AG29 ->  | AK29: =AJ29*IF(F29="Use Default",G29,G30) ->  | AL29: =AA29*IF(K29="",K30,K29)/((IF(K29="",K30,K29)/(IF(Q29="",Q30,Q29)*2))) ->  | AM29: =AL29/2 ->  | AN29: =AE29*IF(K29="",K30,K29)/((IF(K29="",K30,K29)/(IF(Q29="",Q30,Q29)*2))) ->  | AO29: =AN29/2 ->  | AP29: =AO29-AM29 ->  | AQ29: =AP29*IF(H29="Use Default",I29,I30) ->  | AR29: =AQ29+AK29 ->  | AS29: =(AE29-AA29)/AA29 ->  | AT29: =AS29*U29 ->  | AU29: =AC29*IF(Q29="",Q30,Q29)*2 ->  | AV29: =AU29/2 ->  | AW29: =AV29*IF(T29="",T30,T29) ->  | AX29: =AW29*AT29 ->  | AY29: =AX29*R29 ->  | AZ29: =AX29*'AC model'!$D$18 ->  | BA29: =AR29-AY29+AZ29 -> 
F30: =IF(F29="Use Local Value", "Enter Local Value","") ->  | H30: =IF(H29="Use Local Value", "Enter Local Value","") ->  | J30: =IF(J29="Use Local Value", "Enter Local Value","") ->  | L30: =IF(L29="Use Local Value","Enter Local Value","") ->  | N30: =IF(N29="Use Local Value","Enter Local Value","") ->  | P30: =IF(P29="Use Local Value","Enter Local Value","") ->  | S30: =IF(S29="Use Local Value", "Enter Local Value","") -> 
A32: No | B32: <Add network desc> | C32: =IF(A32="No","",1-'RF model'!$C$14) ->  | E32: =IF(A32="No","",0.6) ->  | F32: Use Default | G32: =IF(A32="No","",IF(F32="Use Default",13.3*(VLOOKUP('Start Page'!$G$4,'RF Workings'!$E$3:$G$21,2)/'RF Workings'!$F$7),"")) ->  | H32: Use Default | I32: =IF(A32="No","",IF(H32="Use Default",0.7*(VLOOKUP('Start Page'!$G$4,'RF Workings'!$E$3:$G$21,2)/'RF Workings'!$F$7),"")) ->  | J32: Use Default | K32: =IF(A32="No","",IF(J32="Use Default",IF($F$1="Non-PTE",$AB$3,$AA$3),"")) ->  | L32: Use Default | M32: =IF(A32="No","",IF(L32="Use Default",IF($F$1="Non-PTE",$AB$4,$AA$4),"")) ->  | N32: Use Default | O32: =IF(A32="No","",IF(N32="Use Default",IF($F$1="Non-PTE",$AB$5,$AA$5),"")) ->  | P32: Use Default | Q32: =IF(A32="No","",(IF(P32="Use Default",IF($F$1="Non-PTE",$AB$6,$AA$6),""))) ->  | S32: Use Default | T32: =IF(A32="No","",IF(S32="Use Default",IF('MCC Model '!$F$1="Non-PTE",$AB$7,$AA$7),"")) ->  | U32: =IF(A32="No","",0.66) ->  | V32: =IF(A32="Yes",(IF(BA32<0,0,BA32)),"") ->  | W32: =IF(A32="Yes",V32*C32*D32,"") ->  | AA32: =IF(F22="Non-PTE",AB29,AA29) -> 6 | AB32: =IF(AND(N32="Use Default",P32="Use Default"),Q32/O32,IF(AND(N32="Use Local Value",P32="Use Default"),Q32/O33,IF(AND(N32="Use Default",P32="Use Local Value"),Q33/O32,IF(AND(N32="Use Local Value",P32="Use Local Value"),Q33/O33))))*IF($M32="",$M33,$M32)/IF($Q32="",Q33,$Q32) ->  | AC32: =AA32*AB32 ->  | AD32: =1/IF(Q32="",Q33,Q32) ->  | AE32: =AA32*((AC32+AD32)/AC32)^E32 ->  | AF32: =AA32/((IF(K32="",K33,K32)/(IF(Q32="",Q33,Q32)*2))) ->  | AG32: =AF32/2 ->  | AH32: =AE32/((IF(K32="",K33,K32)/(IF(Q32="",Q33,Q32)*2))) ->  | AI32: =AH32/2 ->  | AJ32: =AI32-AG32 ->  | AK32: =AJ32*IF(F32="Use Default",G32,G33) ->  | AL32: =AA32*IF(K32="",K33,K32)/((IF(K32="",K33,K32)/(IF(Q32="",Q33,Q32)*2))) ->  | AM32: =AL32/2 ->  | AN32: =AE32*IF(K32="",K33,K32)/((IF(K32="",K33,K32)/(IF(Q32="",Q33,Q32)*2))) ->  | AO32: =AN32/2 ->  | AP32: =AO32-AM32 ->  | AQ32: =AP32*IF(H32="Use Default",I32,I33) ->  | AR32: =AQ32+AK32 ->  | AS32: =(AE32-AA32)/AA32 ->  | AT32: =AS32*U32 ->  | AU32: =AC32*IF(Q32="",Q33,Q32)*2 ->  | AV32: =AU32/2 ->  | AW32: =AV32*IF(T32="",T33,T32) ->  | AX32: =AW32*AT32 ->  | AY32: =AX32*R32 ->  | AZ32: =AX32*'AC model'!$D$18 ->  | BA32: =AR32-AY32+AZ32 -> 
F33: =IF(F32="Use Local Value", "Enter Local Value","") ->  | H33: =IF(H32="Use Local Value", "Enter Local Value","") ->  | J33: =IF(J32="Use Local Value", "Enter Local Value","") ->  | L33: =IF(L32="Use Local Value","Enter Local Value","") ->  | N33: =IF(N32="Use Local Value","Enter Local Value","") ->  | P33: =IF(P32="Use Local Value","Enter Local Value","") ->  | S33: =IF(S32="Use Local Value", "Enter Local Value","") -> 
A35: No | B35: <Add network desc> | C35: =IF(A35="No","",1-'RF model'!$C$14) ->  | E35: =IF(A35="No","",0.6) ->  | F35: Use Default | G35: =IF(A35="No","",IF(F35="Use Default",13.3*(VLOOKUP('Start Page'!$G$4,'RF Workings'!$E$3:$G$21,2)/'RF Workings'!$F$7),"")) ->  | H35: Use Default | I35: =IF(A35="No","",IF(H35="Use Default",0.7*(VLOOKUP('Start Page'!$G$4,'RF Workings'!$E$3:$G$21,2)/'RF Workings'!$F$7),"")) ->  | J35: Use Default | K35: =IF(A35="No","",IF(J35="Use Default",IF($F$1="Non-PTE",$AB$3,$AA$3),"")) ->  | L35: Use Default | M35: =IF(A35="No","",IF(L35="Use Default",IF($F$1="Non-PTE",$AB$4,$AA$4),"")) ->  | N35: Use Default | O35: =IF(A35="No","",IF(N35="Use Default",IF($F$1="Non-PTE",$AB$5,$AA$5),"")) ->  | P35: Use Default | Q35: =IF(A35="No","",(IF(P35="Use Default",IF($F$1="Non-PTE",$AB$6,$AA$6),""))) ->  | S35: Use Default | T35: =IF(A35="No","",IF(S35="Use Default",IF('MCC Model '!$F$1="Non-PTE",$AB$7,$AA$7),"")) ->  | U35: =IF(A35="No","",0.66) ->  | V35: =IF(A35="Yes",(IF(BA35<0,0,BA35)),"") ->  | W35: =IF(A35="Yes",V35*C35*D35,"") ->  | AA35: =IF(F25="Non-PTE",AB32,AA32) -> 6 | AB35: =IF(AND(N35="Use Default",P35="Use Default"),Q35/O35,IF(AND(N35="Use Local Value",P35="Use Default"),Q35/O36,IF(AND(N35="Use Default",P35="Use Local Value"),Q36/O35,IF(AND(N35="Use Local Value",P35="Use Local Value"),Q36/O36))))*IF($M35="",$M36,$M35)/IF($Q35="",Q36,$Q35) ->  | AC35: =AA35*AB35 ->  | AD35: =1/IF(Q35="",Q36,Q35) ->  | AE35: =AA35*((AC35+AD35)/AC35)^E35 ->  | AF35: =AA35/((IF(K35="",K36,K35)/(IF(Q35="",Q36,Q35)*2))) ->  | AG35: =AF35/2 ->  | AH35: =AE35/((IF(K35="",K36,K35)/(IF(Q35="",Q36,Q35)*2))) ->  | AI35: =AH35/2 ->  | AJ35: =AI35-AG35 ->  | AK35: =AJ35*IF(F35="Use Default",G35,G36) ->  | AL35: =AA35*IF(K35="",K36,K35)/((IF(K35="",K36,K35)/(IF(Q35="",Q36,Q35)*2))) ->  | AM35: =AL35/2 ->  | AN35: =AE35*IF(K35="",K36,K35)/((IF(K35="",K36,K35)/(IF(Q35="",Q36,Q35)*2))) ->  | AO35: =AN35/2 ->  | AP35: =AO35-AM35 ->  | AQ35: =AP35*IF(H35="Use Default",I35,I36) ->  | AR35: =AQ35+AK35 ->  | AS35: =(AE35-AA35)/AA35 ->  | AT35: =AS35*U35 ->  | AU35: =AC35*IF(Q35="",Q36,Q35)*2 ->  | AV35: =AU35/2 ->  | AW35: =AV35*IF(T35="",T36,T35) ->  | AX35: =AW35*AT35 ->  | AY35: =AX35*R35 ->  | AZ35: =AX35*'AC model'!$D$18 ->  | BA35: =AR35-AY35+AZ35 -> 
F36: =IF(F35="Use Local Value", "Enter Local Value","") ->  | H36: =IF(H35="Use Local Value", "Enter Local Value","") ->  | J36: =IF(J35="Use Local Value", "Enter Local Value","") ->  | L36: =IF(L35="Use Local Value","Enter Local Value","") ->  | N36: =IF(N35="Use Local Value","Enter Local Value","") ->  | P36: =IF(P35="Use Local Value","Enter Local Value","") ->  | S36: =IF(S35="Use Local Value", "Enter Local Value","") -> 
A38: No | B38: <Add network desc> | C38: =IF(A38="No","",1-'RF model'!$C$14) ->  | E38: =IF(A38="No","",0.6) ->  | F38: Use Default | G38: =IF(A38="No","",IF(F38="Use Default",13.3*(VLOOKUP('Start Page'!$G$4,'RF Workings'!$E$3:$G$21,2)/'RF Workings'!$F$7),"")) ->  | H38: Use Default | I38: =IF(A38="No","",IF(H38="Use Default",0.7*(VLOOKUP('Start Page'!$G$4,'RF Workings'!$E$3:$G$21,2)/'RF Workings'!$F$7),"")) ->  | J38: Use Default | K38: =IF(A38="No","",IF(J38="Use Default",IF($F$1="Non-PTE",$AB$3,$AA$3),"")) ->  | L38: Use Default | M38: =IF(A38="No","",IF(L38="Use Default",IF($F$1="Non-PTE",$AB$4,$AA$4),"")) ->  | N38: Use Default | O38: =IF(A38="No","",IF(N38="Use Default",IF($F$1="Non-PTE",$AB$5,$AA$5),"")) ->  | P38: Use Default | Q38: =IF(A38="No","",(IF(P38="Use Default",IF($F$1="Non-PTE",$AB$6,$AA$6),""))) ->  | S38: Use Default | T38: =IF(A38="No","",IF(S38="Use Default",IF('MCC Model '!$F$1="Non-PTE",$AB$7,$AA$7),"")) ->  | U38: =IF(A38="No","",0.66) ->  | V38: =IF(A38="Yes",(IF(BA38<0,0,BA38)),"") ->  | W38: =IF(A38="Yes",V38*C38*D38,"") ->  | AA38: =IF(F28="Non-PTE",AB35,AA35) -> 6 | AB38: =IF(AND(N38="Use Default",P38="Use Default"),Q38/O38,IF(AND(N38="Use Local Value",P38="Use Default"),Q38/O39,IF(AND(N38="Use Default",P38="Use Local Value"),Q39/O38,IF(AND(N38="Use Local Value",P38="Use Local Value"),Q39/O39))))*IF($M38="",$M39,$M38)/IF($Q38="",Q39,$Q38) ->  | AC38: =AA38*AB38 ->  | AD38: =1/IF(Q38="",Q39,Q38) ->  | AE38: =AA38*((AC38+AD38)/AC38)^E38 ->  | AF38: =AA38/((IF(K38="",K39,K38)/(IF(Q38="",Q39,Q38)*2))) ->  | AG38: =AF38/2 ->  | AH38: =AE38/((IF(K38="",K39,K38)/(IF(Q38="",Q39,Q38)*2))) ->  | AI38: =AH38/2 ->  | AJ38: =AI38-AG38 ->  | AK38: =AJ38*IF(F38="Use Default",G38,G39) ->  | AL38: =AA38*IF(K38="",K39,K38)/((IF(K38="",K39,K38)/(IF(Q38="",Q39,Q38)*2))) ->  | AM38: =AL38/2 ->  | AN38: =AE38*IF(K38="",K39,K38)/((IF(K38="",K39,K38)/(IF(Q38="",Q39,Q38)*2))) ->  | AO38: =AN38/2 ->  | AP38: =AO38-AM38 ->  | AQ38: =AP38*IF(H38="Use Default",I38,I39) ->  | AR38: =AQ38+AK38 ->  | AS38: =(AE38-AA38)/AA38 ->  | AT38: =AS38*U38 ->  | AU38: =AC38*IF(Q38="",Q39,Q38)*2 ->  | AV38: =AU38/2 ->  | AW38: =AV38*IF(T38="",T39,T38) ->  | AX38: =AW38*AT38 ->  | AY38: =AX38*R38 ->  | AZ38: =AX38*'AC model'!$D$18 ->  | BA38: =AR38-AY38+AZ38 -> 
F39: =IF(F38="Use Local Value", "Enter Local Value","") ->  | H39: =IF(H38="Use Local Value", "Enter Local Value","") ->  | J39: =IF(J38="Use Local Value", "Enter Local Value","") ->  | L39: =IF(L38="Use Local Value","Enter Local Value","") ->  | N39: =IF(N38="Use Local Value","Enter Local Value","") ->  | P39: =IF(P38="Use Local Value","Enter Local Value","") ->  | S39: =IF(S38="Use Local Value", "Enter Local Value","") -> 
A41: No | B41: <Add network desc> | C41: =IF(A41="No","",1-'RF model'!$C$14) ->  | E41: =IF(A41="No","",0.6) ->  | F41: Use Default | G41: =IF(A41="No","",IF(F41="Use Default",13.3*(VLOOKUP('Start Page'!$G$4,'RF Workings'!$E$3:$G$21,2)/'RF Workings'!$F$7),"")) ->  | H41: Use Default | I41: =IF(A41="No","",IF(H41="Use Default",0.7*(VLOOKUP('Start Page'!$G$4,'RF Workings'!$E$3:$G$21,2)/'RF Workings'!$F$7),"")) ->  | J41: Use Default | K41: =IF(A41="No","",IF(J41="Use Default",IF($F$1="Non-PTE",$AB$3,$AA$3),"")) ->  | L41: Use Default | M41: =IF(A41="No","",IF(L41="Use Default",IF($F$1="Non-PTE",$AB$4,$AA$4),"")) ->  | N41: Use Default | O41: =IF(A41="No","",IF(N41="Use Default",IF($F$1="Non-PTE",$AB$5,$AA$5),"")) ->  | P41: Use Default | Q41: =IF(A41="No","",(IF(P41="Use Default",IF($F$1="Non-PTE",$AB$6,$AA$6),""))) ->  | S41: Use Default | T41: =IF(A41="No","",IF(S41="Use Default",IF('MCC Model '!$F$1="Non-PTE",$AB$7,$AA$7),"")) ->  | U41: =IF(A41="No","",0.66) ->  | V41: =IF(A41="Yes",(IF(BA41<0,0,BA41)),"") ->  | W41: =IF(A41="Yes",V41*C41*D41,"") ->  | AA41: =IF(F31="Non-PTE",AB38,AA38) -> 6 | AB41: =IF(AND(N41="Use Default",P41="Use Default"),Q41/O41,IF(AND(N41="Use Local Value",P41="Use Default"),Q41/O42,IF(AND(N41="Use Default",P41="Use Local Value"),Q42/O41,IF(AND(N41="Use Local Value",P41="Use Local Value"),Q42/O42))))*IF($M41="",$M42,$M41)/IF($Q41="",Q42,$Q41) ->  | AC41: =AA41*AB41 ->  | AD41: =1/IF(Q41="",Q42,Q41) ->  | AE41: =AA41*((AC41+AD41)/AC41)^E41 ->  | AF41: =AA41/((IF(K41="",K42,K41)/(IF(Q41="",Q42,Q41)*2))) ->  | AG41: =AF41/2 ->  | AH41: =AE41/((IF(K41="",K42,K41)/(IF(Q41="",Q42,Q41)*2))) ->  | AI41: =AH41/2 ->  | AJ41: =AI41-AG41 ->  | AK41: =AJ41*IF(F41="Use Default",G41,G42) ->  | AL41: =AA41*IF(K41="",K42,K41)/((IF(K41="",K42,K41)/(IF(Q41="",Q42,Q41)*2))) ->  | AM41: =AL41/2 ->  | AN41: =AE41*IF(K41="",K42,K41)/((IF(K41="",K42,K41)/(IF(Q41="",Q42,Q41)*2))) ->  | AO41: =AN41/2 ->  | AP41: =AO41-AM41 ->  | AQ41: =AP41*IF(H41="Use Default",I41,I42) ->  | AR41: =AQ41+AK41 ->  | AS41: =(AE41-AA41)/AA41 ->  | AT41: =AS41*U41 ->  | AU41: =AC41*IF(Q41="",Q42,Q41)*2 ->  | AV41: =AU41/2 ->  | AW41: =AV41*IF(T41="",T42,T41) ->  | AX41: =AW41*AT41 ->  | AY41: =AX41*R41 ->  | AZ41: =AX41*'AC model'!$D$18 ->  | BA41: =AR41-AY41+AZ41 -> 
F42: =IF(F41="Use Local Value", "Enter Local Value","") ->  | H42: =IF(H41="Use Local Value", "Enter Local Value","") ->  | J42: =IF(J41="Use Local Value", "Enter Local Value","") ->  | L42: =IF(L41="Use Local Value","Enter Local Value","") ->  | N42: =IF(N41="Use Local Value","Enter Local Value","") ->  | P42: =IF(P41="Use Local Value","Enter Local Value","") ->  | S42: =IF(S41="Use Local Value", "Enter Local Value","") -> 
A44: No | B44: <Add network desc> | C44: =IF(A44="No","",1-'RF model'!$C$14) ->  | E44: =IF(A44="No","",0.6) ->  | F44: Use Default | G44: =IF(A44="No","",IF(F44="Use Default",13.3*(VLOOKUP('Start Page'!$G$4,'RF Workings'!$E$3:$G$21,2)/'RF Workings'!$F$7),"")) ->  | H44: Use Default | I44: =IF(A44="No","",IF(H44="Use Default",0.7*(VLOOKUP('Start Page'!$G$4,'RF Workings'!$E$3:$G$21,2)/'RF Workings'!$F$7),"")) ->  | J44: Use Default | K44: =IF(A44="No","",IF(J44="Use Default",IF($F$1="Non-PTE",$AB$3,$AA$3),"")) ->  | L44: Use Default | M44: =IF(A44="No","",IF(L44="Use Default",IF($F$1="Non-PTE",$AB$4,$AA$4),"")) ->  | N44: Use Default | O44: =IF(A44="No","",IF(N44="Use Default",IF($F$1="Non-PTE",$AB$5,$AA$5),"")) ->  | P44: Use Default | Q44: =IF(A44="No","",(IF(P44="Use Default",IF($F$1="Non-PTE",$AB$6,$AA$6),""))) ->  | S44: Use Default | T44: =IF(A44="No","",IF(S44="Use Default",IF('MCC Model '!$F$1="Non-PTE",$AB$7,$AA$7),"")) ->  | U44: =IF(A44="No","",0.66) ->  | V44: =IF(A44="Yes",(IF(BA44<0,0,BA44)),"") ->  | W44: =IF(A44="Yes",V44*C44*D44,"") ->  | AA44: =IF(F34="Non-PTE",AB41,AA41) -> 6 | AB44: =IF(AND(N44="Use Default",P44="Use Default"),Q44/O44,IF(AND(N44="Use Local Value",P44="Use Default"),Q44/O45,IF(AND(N44="Use Default",P44="Use Local Value"),Q45/O44,IF(AND(N44="Use Local Value",P44="Use Local Value"),Q45/O45))))*IF($M44="",$M45,$M44)/IF($Q44="",Q45,$Q44) ->  | AC44: =AA44*AB44 ->  | AD44: =1/IF(Q44="",Q45,Q44) ->  | AE44: =AA44*((AC44+AD44)/AC44)^E44 ->  | AF44: =AA44/((IF(K44="",K45,K44)/(IF(Q44="",Q45,Q44)*2))) ->  | AG44: =AF44/2 ->  | AH44: =AE44/((IF(K44="",K45,K44)/(IF(Q44="",Q45,Q44)*2))) ->  | AI44: =AH44/2 ->  | AJ44: =AI44-AG44 ->  | AK44: =AJ44*IF(F44="Use Default",G44,G45) ->  | AL44: =AA44*IF(K44="",K45,K44)/((IF(K44="",K45,K44)/(IF(Q44="",Q45,Q44)*2))) ->  | AM44: =AL44/2 ->  | AN44: =AE44*IF(K44="",K45,K44)/((IF(K44="",K45,K44)/(IF(Q44="",Q45,Q44)*2))) ->  | AO44: =AN44/2 ->  | AP44: =AO44-AM44 ->  | AQ44: =AP44*IF(H44="Use Default",I44,I45) ->  | AR44: =AQ44+AK44 ->  | AS44: =(AE44-AA44)/AA44 ->  | AT44: =AS44*U44 ->  | AU44: =AC44*IF(Q44="",Q45,Q44)*2 ->  | AV44: =AU44/2 ->  | AW44: =AV44*IF(T44="",T45,T44) ->  | AX44: =AW44*AT44 ->  | AY44: =AX44*R44 ->  | AZ44: =AX44*'AC model'!$D$18 ->  | BA44: =AR44-AY44+AZ44 -> 
F45: =IF(F44="Use Local Value", "Enter Local Value","") ->  | H45: =IF(H44="Use Local Value", "Enter Local Value","") ->  | J45: =IF(J44="Use Local Value", "Enter Local Value","") ->  | L45: =IF(L44="Use Local Value","Enter Local Value","") ->  | N45: =IF(N44="Use Local Value","Enter Local Value","") ->  | P45: =IF(P44="Use Local Value","Enter Local Value","") ->  | S45: =IF(S44="Use Local Value", "Enter Local Value","") -> 
A47: No | B47: <Add network desc> | C47: =IF(A47="No","",1-'RF model'!$C$14) ->  | E47: =IF(A47="No","",0.6) ->  | F47: Use Default | G47: =IF(A47="No","",IF(F47="Use Default",13.3*(VLOOKUP('Start Page'!$G$4,'RF Workings'!$E$3:$G$21,2)/'RF Workings'!$F$7),"")) ->  | H47: Use Default | I47: =IF(A47="No","",IF(H47="Use Default",0.7*(VLOOKUP('Start Page'!$G$4,'RF Workings'!$E$3:$G$21,2)/'RF Workings'!$F$7),"")) ->  | J47: Use Default | K47: =IF(A47="No","",IF(J47="Use Default",IF($F$1="Non-PTE",$AB$3,$AA$3),"")) ->  | L47: Use Default | M47: =IF(A47="No","",IF(L47="Use Default",IF($F$1="Non-PTE",$AB$4,$AA$4),"")) ->  | N47: Use Default | O47: =IF(A47="No","",IF(N47="Use Default",IF($F$1="Non-PTE",$AB$5,$AA$5),"")) ->  | P47: Use Default | Q47: =IF(A47="No","",(IF(P47="Use Default",IF($F$1="Non-PTE",$AB$6,$AA$6),""))) ->  | S47: Use Default | T47: =IF(A47="No","",IF(S47="Use Default",IF('MCC Model '!$F$1="Non-PTE",$AB$7,$AA$7),"")) ->  | U47: =IF(A47="No","",0.66) ->  | V47: =IF(A47="Yes",(IF(BA47<0,0,BA47)),"") ->  | W47: =IF(A47="Yes",V47*C47*D47,"") ->  | AA47: =IF(F37="Non-PTE",AB44,AA44) -> 6 | AB47: =IF(AND(N47="Use Default",P47="Use Default"),Q47/O47,IF(AND(N47="Use Local Value",P47="Use Default"),Q47/O48,IF(AND(N47="Use Default",P47="Use Local Value"),Q48/O47,IF(AND(N47="Use Local Value",P47="Use Local Value"),Q48/O48))))*IF($M47="",$M48,$M47)/IF($Q47="",Q48,$Q47) ->  | AC47: =AA47*AB47 ->  | AD47: =1/IF(Q47="",Q48,Q47) ->  | AE47: =AA47*((AC47+AD47)/AC47)^E47 ->  | AF47: =AA47/((IF(K47="",K48,K47)/(IF(Q47="",Q48,Q47)*2))) ->  | AG47: =AF47/2 ->  | AH47: =AE47/((IF(K47="",K48,K47)/(IF(Q47="",Q48,Q47)*2))) ->  | AI47: =AH47/2 ->  | AJ47: =AI47-AG47 ->  | AK47: =AJ47*IF(F47="Use Default",G47,G48) ->  | AL47: =AA47*IF(K47="",K48,K47)/((IF(K47="",K48,K47)/(IF(Q47="",Q48,Q47)*2))) ->  | AM47: =AL47/2 ->  | AN47: =AE47*IF(K47="",K48,K47)/((IF(K47="",K48,K47)/(IF(Q47="",Q48,Q47)*2))) ->  | AO47: =AN47/2 ->  | AP47: =AO47-AM47 ->  | AQ47: =AP47*IF(H47="Use Default",I47,I48) ->  | AR47: =AQ47+AK47 ->  | AS47: =(AE47-AA47)/AA47 ->  | AT47: =AS47*U47 ->  | AU47: =AC47*IF(Q47="",Q48,Q47)*2 ->  | AV47: =AU47/2 ->  | AW47: =AV47*IF(T47="",T48,T47) ->  | AX47: =AW47*AT47 ->  | AY47: =AX47*R47 ->  | AZ47: =AX47*'AC model'!$D$18 ->  | BA47: =AR47-AY47+AZ47 -> 
F48: =IF(F47="Use Local Value", "Enter Local Value","") ->  | H48: =IF(H47="Use Local Value", "Enter Local Value","") ->  | J48: =IF(J47="Use Local Value", "Enter Local Value","") ->  | L48: =IF(L47="Use Local Value","Enter Local Value","") ->  | N48: =IF(N47="Use Local Value","Enter Local Value","") ->  | P48: =IF(P47="Use Local Value","Enter Local Value","") ->  | S48: =IF(S47="Use Local Value", "Enter Local Value","") -> 
A50: No | B50: <Add network desc> | C50: =IF(A50="No","",1-'RF model'!$C$14) ->  | E50: =IF(A50="No","",0.6) ->  | F50: Use Default | G50: =IF(A50="No","",IF(F50="Use Default",13.3*(VLOOKUP('Start Page'!$G$4,'RF Workings'!$E$3:$G$21,2)/'RF Workings'!$F$7),"")) ->  | H50: Use Default | I50: =IF(A50="No","",IF(H50="Use Default",0.7*(VLOOKUP('Start Page'!$G$4,'RF Workings'!$E$3:$G$21,2)/'RF Workings'!$F$7),"")) ->  | J50: Use Default | K50: =IF(A50="No","",IF(J50="Use Default",IF($F$1="Non-PTE",$AB$3,$AA$3),"")) ->  | L50: Use Default | M50: =IF(A50="No","",IF(L50="Use Default",IF($F$1="Non-PTE",$AB$4,$AA$4),"")) ->  | N50: Use Default | O50: =IF(A50="No","",IF(N50="Use Default",IF($F$1="Non-PTE",$AB$5,$AA$5),"")) ->  | P50: Use Default | Q50: =IF(A50="No","",(IF(P50="Use Default",IF($F$1="Non-PTE",$AB$6,$AA$6),""))) ->  | S50: Use Default | T50: =IF(A50="No","",IF(S50="Use Default",IF('MCC Model '!$F$1="Non-PTE",$AB$7,$AA$7),"")) ->  | U50: =IF(A50="No","",0.66) ->  | V50: =IF(A50="Yes",(IF(BA50<0,0,BA50)),"") ->  | W50: =IF(A50="Yes",V50*C50*D50,"") ->  | AA50: =IF(F40="Non-PTE",AB47,AA47) -> 6 | AB50: =IF(AND(N50="Use Default",P50="Use Default"),Q50/O50,IF(AND(N50="Use Local Value",P50="Use Default"),Q50/O51,IF(AND(N50="Use Default",P50="Use Local Value"),Q51/O50,IF(AND(N50="Use Local Value",P50="Use Local Value"),Q51/O51))))*IF($M50="",$M51,$M50)/IF($Q50="",Q51,$Q50) ->  | AC50: =AA50*AB50 ->  | AD50: =1/IF(Q50="",Q51,Q50) ->  | AE50: =AA50*((AC50+AD50)/AC50)^E50 ->  | AF50: =AA50/((IF(K50="",K51,K50)/(IF(Q50="",Q51,Q50)*2))) ->  | AG50: =AF50/2 ->  | AH50: =AE50/((IF(K50="",K51,K50)/(IF(Q50="",Q51,Q50)*2))) ->  | AI50: =AH50/2 ->  | AJ50: =AI50-AG50 ->  | AK50: =AJ50*IF(F50="Use Default",G50,G51) ->  | AL50: =AA50*IF(K50="",K51,K50)/((IF(K50="",K51,K50)/(IF(Q50="",Q51,Q50)*2))) ->  | AM50: =AL50/2 ->  | AN50: =AE50*IF(K50="",K51,K50)/((IF(K50="",K51,K50)/(IF(Q50="",Q51,Q50)*2))) ->  | AO50: =AN50/2 ->  | AP50: =AO50-AM50 ->  | AQ50: =AP50*IF(H50="Use Default",I50,I51) ->  | AR50: =AQ50+AK50 ->  | AS50: =(AE50-AA50)/AA50 ->  | AT50: =AS50*U50 ->  | AU50: =AC50*IF(Q50="",Q51,Q50)*2 ->  | AV50: =AU50/2 ->  | AW50: =AV50*IF(T50="",T51,T50) ->  | AX50: =AW50*AT50 ->  | AY50: =AX50*R50 ->  | AZ50: =AX50*'AC model'!$D$18 ->  | BA50: =AR50-AY50+AZ50 -> 
F51: =IF(F50="Use Local Value", "Enter Local Value","") ->  | H51: =IF(H50="Use Local Value", "Enter Local Value","") ->  | J51: =IF(J50="Use Local Value", "Enter Local Value","") ->  | L51: =IF(L50="Use Local Value","Enter Local Value","") ->  | N51: =IF(N50="Use Local Value","Enter Local Value","") ->  | P51: =IF(P50="Use Local Value","Enter Local Value","") ->  | S51: =IF(S50="Use Local Value", "Enter Local Value","") -> 
A53: No | B53: <Add network desc> | C53: =IF(A53="No","",1-'RF model'!$C$14) ->  | E53: =IF(A53="No","",0.6) ->  | F53: Use Default | G53: =IF(A53="No","",IF(F53="Use Default",13.3*(VLOOKUP('Start Page'!$G$4,'RF Workings'!$E$3:$G$21,2)/'RF Workings'!$F$7),"")) ->  | H53: Use Default | I53: =IF(A53="No","",IF(H53="Use Default",0.7*(VLOOKUP('Start Page'!$G$4,'RF Workings'!$E$3:$G$21,2)/'RF Workings'!$F$7),"")) ->  | J53: Use Default | K53: =IF(A53="No","",IF(J53="Use Default",IF($F$1="Non-PTE",$AB$3,$AA$3),"")) ->  | L53: Use Default | M53: =IF(A53="No","",IF(L53="Use Default",IF($F$1="Non-PTE",$AB$4,$AA$4),"")) ->  | N53: Use Default | O53: =IF(A53="No","",IF(N53="Use Default",IF($F$1="Non-PTE",$AB$5,$AA$5),"")) ->  | P53: Use Default | Q53: =IF(A53="No","",(IF(P53="Use Default",IF($F$1="Non-PTE",$AB$6,$AA$6),""))) ->  | S53: Use Default | T53: =IF(A53="No","",IF(S53="Use Default",IF('MCC Model '!$F$1="Non-PTE",$AB$7,$AA$7),"")) ->  | U53: =IF(A53="No","",0.66) ->  | V53: =IF(A53="Yes",(IF(BA53<0,0,BA53)),"") ->  | W53: =IF(A53="Yes",V53*C53*D53,"") ->  | AA53: =IF(F43="Non-PTE",AB50,AA50) -> 6 | AB53: =IF(AND(N53="Use Default",P53="Use Default"),Q53/O53,IF(AND(N53="Use Local Value",P53="Use Default"),Q53/O54,IF(AND(N53="Use Default",P53="Use Local Value"),Q54/O53,IF(AND(N53="Use Local Value",P53="Use Local Value"),Q54/O54))))*IF($M53="",$M54,$M53)/IF($Q53="",Q54,$Q53) ->  | AC53: =AA53*AB53 ->  | AD53: =1/IF(Q53="",Q54,Q53) ->  | AE53: =AA53*((AC53+AD53)/AC53)^E53 ->  | AF53: =AA53/((IF(K53="",K54,K53)/(IF(Q53="",Q54,Q53)*2))) ->  | AG53: =AF53/2 ->  | AH53: =AE53/((IF(K53="",K54,K53)/(IF(Q53="",Q54,Q53)*2))) ->  | AI53: =AH53/2 ->  | AJ53: =AI53-AG53 ->  | AK53: =AJ53*IF(F53="Use Default",G53,G54) ->  | AL53: =AA53*IF(K53="",K54,K53)/((IF(K53="",K54,K53)/(IF(Q53="",Q54,Q53)*2))) ->  | AM53: =AL53/2 ->  | AN53: =AE53*IF(K53="",K54,K53)/((IF(K53="",K54,K53)/(IF(Q53="",Q54,Q53)*2))) ->  | AO53: =AN53/2 ->  | AP53: =AO53-AM53 ->  | AQ53: =AP53*IF(H53="Use Default",I53,I54) ->  | AR53: =AQ53+AK53 ->  | AS53: =(AE53-AA53)/AA53 ->  | AT53: =AS53*U53 ->  | AU53: =AC53*IF(Q53="",Q54,Q53)*2 ->  | AV53: =AU53/2 ->  | AW53: =AV53*IF(T53="",T54,T53) ->  | AX53: =AW53*AT53 ->  | AY53: =AX53*R53 ->  | AZ53: =AX53*'AC model'!$D$18 ->  | BA53: =AR53-AY53+AZ53 -> 
F54: =IF(F53="Use Local Value", "Enter Local Value","") ->  | H54: =IF(H53="Use Local Value", "Enter Local Value","") ->  | J54: =IF(J53="Use Local Value", "Enter Local Value","") ->  | L54: =IF(L53="Use Local Value","Enter Local Value","") ->  | N54: =IF(N53="Use Local Value","Enter Local Value","") ->  | P54: =IF(P53="Use Local Value","Enter Local Value","") ->  | S54: =IF(S53="Use Local Value", "Enter Local Value","") -> 
A56: No | B56: <Add network desc> | C56: =IF(A56="No","",1-'RF model'!$C$14) ->  | E56: =IF(A56="No","",0.6) ->  | F56: Use Default | G56: =IF(A56="No","",IF(F56="Use Default",13.3*(VLOOKUP('Start Page'!$G$4,'RF Workings'!$E$3:$G$21,2)/'RF Workings'!$F$7),"")) ->  | H56: Use Default | I56: =IF(A56="No","",IF(H56="Use Default",0.7*(VLOOKUP('Start Page'!$G$4,'RF Workings'!$E$3:$G$21,2)/'RF Workings'!$F$7),"")) ->  | J56: Use Default | K56: =IF(A56="No","",IF(J56="Use Default",IF($F$1="Non-PTE",$AB$3,$AA$3),"")) ->  | L56: Use Default | M56: =IF(A56="No","",IF(L56="Use Default",IF($F$1="Non-PTE",$AB$4,$AA$4),"")) ->  | N56: Use Default | O56: =IF(A56="No","",IF(N56="Use Default",IF($F$1="Non-PTE",$AB$5,$AA$5),"")) ->  | P56: Use Default | Q56: =IF(A56="No","",(IF(P56="Use Default",IF($F$1="Non-PTE",$AB$6,$AA$6),""))) ->  | S56: Use Default | T56: =IF(A56="No","",IF(S56="Use Default",IF('MCC Model '!$F$1="Non-PTE",$AB$7,$AA$7),"")) ->  | U56: =IF(A56="No","",0.66) ->  | V56: =IF(A56="Yes",(IF(BA56<0,0,BA56)),"") ->  | W56: =IF(A56="Yes",V56*C56*D56,"") ->  | AA56: =IF(F46="Non-PTE",AB53,AA53) -> 6 | AB56: =IF(AND(N56="Use Default",P56="Use Default"),Q56/O56,IF(AND(N56="Use Local Value",P56="Use Default"),Q56/O57,IF(AND(N56="Use Default",P56="Use Local Value"),Q57/O56,IF(AND(N56="Use Local Value",P56="Use Local Value"),Q57/O57))))*IF($M56="",$M57,$M56)/IF($Q56="",Q57,$Q56) ->  | AC56: =AA56*AB56 ->  | AD56: =1/IF(Q56="",Q57,Q56) ->  | AE56: =AA56*((AC56+AD56)/AC56)^E56 ->  | AF56: =AA56/((IF(K56="",K57,K56)/(IF(Q56="",Q57,Q56)*2))) ->  | AG56: =AF56/2 ->  | AH56: =AE56/((IF(K56="",K57,K56)/(IF(Q56="",Q57,Q56)*2))) ->  | AI56: =AH56/2 ->  | AJ56: =AI56-AG56 ->  | AK56: =AJ56*IF(F56="Use Default",G56,G57) ->  | AL56: =AA56*IF(K56="",K57,K56)/((IF(K56="",K57,K56)/(IF(Q56="",Q57,Q56)*2))) ->  | AM56: =AL56/2 ->  | AN56: =AE56*IF(K56="",K57,K56)/((IF(K56="",K57,K56)/(IF(Q56="",Q57,Q56)*2))) ->  | AO56: =AN56/2 ->  | AP56: =AO56-AM56 ->  | AQ56: =AP56*IF(H56="Use Default",I56,I57) ->  | AR56: =AQ56+AK56 ->  | AS56: =(AE56-AA56)/AA56 ->  | AT56: =AS56*U56 ->  | AU56: =AC56*IF(Q56="",Q57,Q56)*2 ->  | AV56: =AU56/2 ->  | AW56: =AV56*IF(T56="",T57,T56) ->  | AX56: =AW56*AT56 ->  | AY56: =AX56*R56 ->  | AZ56: =AX56*'AC model'!$D$18 ->  | BA56: =AR56-AY56+AZ56 -> 
F57: =IF(F56="Use Local Value", "Enter Local Value","") ->  | H57: =IF(H56="Use Local Value", "Enter Local Value","") ->  | J57: =IF(J56="Use Local Value", "Enter Local Value","") ->  | L57: =IF(L56="Use Local Value","Enter Local Value","") ->  | N57: =IF(N56="Use Local Value","Enter Local Value","") ->  | P57: =IF(P56="Use Local Value","Enter Local Value","") ->  | S57: =IF(S56="Use Local Value", "Enter Local Value","") -> 
A59: No | B59: <Add network desc> | C59: =IF(A59="No","",1-'RF model'!$C$14) ->  | E59: =IF(A59="No","",0.6) ->  | F59: Use Default | G59: =IF(A59="No","",IF(F59="Use Default",13.3*(VLOOKUP('Start Page'!$G$4,'RF Workings'!$E$3:$G$21,2)/'RF Workings'!$F$7),"")) ->  | H59: Use Default | I59: =IF(A59="No","",IF(H59="Use Default",0.7*(VLOOKUP('Start Page'!$G$4,'RF Workings'!$E$3:$G$21,2)/'RF Workings'!$F$7),"")) ->  | J59: Use Default | K59: =IF(A59="No","",IF(J59="Use Default",IF($F$1="Non-PTE",$AB$3,$AA$3),"")) ->  | L59: Use Default | M59: =IF(A59="No","",IF(L59="Use Default",IF($F$1="Non-PTE",$AB$4,$AA$4),"")) ->  | N59: Use Default | O59: =IF(A59="No","",IF(N59="Use Default",IF($F$1="Non-PTE",$AB$5,$AA$5),"")) ->  | P59: Use Default | Q59: =IF(A59="No","",(IF(P59="Use Default",IF($F$1="Non-PTE",$AB$6,$AA$6),""))) ->  | S59: Use Default | T59: =IF(A59="No","",IF(S59="Use Default",IF('MCC Model '!$F$1="Non-PTE",$AB$7,$AA$7),"")) ->  | U59: =IF(A59="No","",0.66) ->  | V59: =IF(A59="Yes",(IF(BA59<0,0,BA59)),"") ->  | W59: =IF(A59="Yes",V59*C59*D59,"") ->  | AA59: =IF(F49="Non-PTE",AB56,AA56) -> 6 | AB59: =IF(AND(N59="Use Default",P59="Use Default"),Q59/O59,IF(AND(N59="Use Local Value",P59="Use Default"),Q59/O60,IF(AND(N59="Use Default",P59="Use Local Value"),Q60/O59,IF(AND(N59="Use Local Value",P59="Use Local Value"),Q60/O60))))*IF($M59="",$M60,$M59)/IF($Q59="",Q60,$Q59) ->  | AC59: =AA59*AB59 ->  | AD59: =1/IF(Q59="",Q60,Q59) ->  | AE59: =AA59*((AC59+AD59)/AC59)^E59 ->  | AF59: =AA59/((IF(K59="",K60,K59)/(IF(Q59="",Q60,Q59)*2))) ->  | AG59: =AF59/2 ->  | AH59: =AE59/((IF(K59="",K60,K59)/(IF(Q59="",Q60,Q59)*2))) ->  | AI59: =AH59/2 ->  | AJ59: =AI59-AG59 ->  | AK59: =AJ59*IF(F59="Use Default",G59,G60) ->  | AL59: =AA59*IF(K59="",K60,K59)/((IF(K59="",K60,K59)/(IF(Q59="",Q60,Q59)*2))) ->  | AM59: =AL59/2 ->  | AN59: =AE59*IF(K59="",K60,K59)/((IF(K59="",K60,K59)/(IF(Q59="",Q60,Q59)*2))) ->  | AO59: =AN59/2 ->  | AP59: =AO59-AM59 ->  | AQ59: =AP59*IF(H59="Use Default",I59,I60) ->  | AR59: =AQ59+AK59 ->  | AS59: =(AE59-AA59)/AA59 ->  | AT59: =AS59*U59 ->  | AU59: =AC59*IF(Q59="",Q60,Q59)*2 ->  | AV59: =AU59/2 ->  | AW59: =AV59*IF(T59="",T60,T59) ->  | AX59: =AW59*AT59 ->  | AY59: =AX59*R59 ->  | AZ59: =AX59*'AC model'!$D$18 ->  | BA59: =AR59-AY59+AZ59 -> 
F60: =IF(F59="Use Local Value", "Enter Local Value","") ->  | H60: =IF(H59="Use Local Value", "Enter Local Value","") ->  | J60: =IF(J59="Use Local Value", "Enter Local Value","") ->  | L60: =IF(L59="Use Local Value","Enter Local Value","") ->  | N60: =IF(N59="Use Local Value","Enter Local Value","") ->  | P60: =IF(P59="Use Local Value","Enter Local Value","") ->  | S60: =IF(S59="Use Local Value", "Enter Local Value","") -> 
A62: No | B62: <Add network desc> | C62: =IF(A62="No","",1-'RF model'!$C$14) ->  | E62: =IF(A62="No","",0.6) ->  | F62: Use Default | G62: =IF(A62="No","",IF(F62="Use Default",13.3*(VLOOKUP('Start Page'!$G$4,'RF Workings'!$E$3:$G$21,2)/'RF Workings'!$F$7),"")) ->  | H62: Use Default | I62: =IF(A62="No","",IF(H62="Use Default",0.7*(VLOOKUP('Start Page'!$G$4,'RF Workings'!$E$3:$G$21,2)/'RF Workings'!$F$7),"")) ->  | J62: Use Default | K62: =IF(A62="No","",IF(J62="Use Default",IF($F$1="Non-PTE",$AB$3,$AA$3),"")) ->  | L62: Use Default | M62: =IF(A62="No","",IF(L62="Use Default",IF($F$1="Non-PTE",$AB$4,$AA$4),"")) ->  | N62: Use Default | O62: =IF(A62="No","",IF(N62="Use Default",IF($F$1="Non-PTE",$AB$5,$AA$5),"")) ->  | P62: Use Default | Q62: =IF(A62="No","",(IF(P62="Use Default",IF($F$1="Non-PTE",$AB$6,$AA$6),""))) ->  | S62: Use Default | T62: =IF(A62="No","",IF(S62="Use Default",IF('MCC Model '!$F$1="Non-PTE",$AB$7,$AA$7),"")) ->  | U62: =IF(A62="No","",0.66) ->  | V62: =IF(A62="Yes",(IF(BA62<0,0,BA62)),"") ->  | W62: =IF(A62="Yes",V62*C62*D62,"") ->  | AA62: =IF(F52="Non-PTE",AB59,AA59) -> 6 | AB62: =IF(AND(N62="Use Default",P62="Use Default"),Q62/O62,IF(AND(N62="Use Local Value",P62="Use Default"),Q62/O63,IF(AND(N62="Use Default",P62="Use Local Value"),Q63/O62,IF(AND(N62="Use Local Value",P62="Use Local Value"),Q63/O63))))*IF($M62="",$M63,$M62)/IF($Q62="",Q63,$Q62) ->  | AC62: =AA62*AB62 ->  | AD62: =1/IF(Q62="",Q63,Q62) ->  | AE62: =AA62*((AC62+AD62)/AC62)^E62 ->  | AF62: =AA62/((IF(K62="",K63,K62)/(IF(Q62="",Q63,Q62)*2))) ->  | AG62: =AF62/2 ->  | AH62: =AE62/((IF(K62="",K63,K62)/(IF(Q62="",Q63,Q62)*2))) ->  | AI62: =AH62/2 ->  | AJ62: =AI62-AG62 ->  | AK62: =AJ62*IF(F62="Use Default",G62,G63) ->  | AL62: =AA62*IF(K62="",K63,K62)/((IF(K62="",K63,K62)/(IF(Q62="",Q63,Q62)*2))) ->  | AM62: =AL62/2 ->  | AN62: =AE62*IF(K62="",K63,K62)/((IF(K62="",K63,K62)/(IF(Q62="",Q63,Q62)*2))) ->  | AO62: =AN62/2 ->  | AP62: =AO62-AM62 ->  | AQ62: =AP62*IF(H62="Use Default",I62,I63) ->  | AR62: =AQ62+AK62 ->  | AS62: =(AE62-AA62)/AA62 ->  | AT62: =AS62*U62 ->  | AU62: =AC62*IF(Q62="",Q63,Q62)*2 ->  | AV62: =AU62/2 ->  | AW62: =AV62*IF(T62="",T63,T62) ->  | AX62: =AW62*AT62 ->  | AY62: =AX62*R62 ->  | AZ62: =AX62*'AC model'!$D$18 ->  | BA62: =AR62-AY62+AZ62 -> 
F63: =IF(F62="Use Local Value", "Enter Local Value","") ->  | H63: =IF(H62="Use Local Value", "Enter Local Value","") ->  | J63: =IF(J62="Use Local Value", "Enter Local Value","") ->  | L63: =IF(L62="Use Local Value","Enter Local Value","") ->  | N63: =IF(N62="Use Local Value","Enter Local Value","") ->  | P63: =IF(P62="Use Local Value","Enter Local Value","") ->  | S63: =IF(S62="Use Local Value", "Enter Local Value","") -> 
A65: No | B65: <Add network desc> | C65: =IF(A65="No","",1-'RF model'!$C$14) ->  | E65: =IF(A65="No","",0.6) ->  | F65: Use Default | G65: =IF(A65="No","",IF(F65="Use Default",13.3*(VLOOKUP('Start Page'!$G$4,'RF Workings'!$E$3:$G$21,2)/'RF Workings'!$F$7),"")) ->  | H65: Use Default | I65: =IF(A65="No","",IF(H65="Use Default",0.7*(VLOOKUP('Start Page'!$G$4,'RF Workings'!$E$3:$G$21,2)/'RF Workings'!$F$7),"")) ->  | J65: Use Default | K65: =IF(A65="No","",IF(J65="Use Default",IF($F$1="Non-PTE",$AB$3,$AA$3),"")) ->  | L65: Use Default | M65: =IF(A65="No","",IF(L65="Use Default",IF($F$1="Non-PTE",$AB$4,$AA$4),"")) ->  | N65: Use Default | O65: =IF(A65="No","",IF(N65="Use Default",IF($F$1="Non-PTE",$AB$5,$AA$5),"")) ->  | P65: Use Default | Q65: =IF(A65="No","",(IF(P65="Use Default",IF($F$1="Non-PTE",$AB$6,$AA$6),""))) ->  | S65: Use Default | T65: =IF(A65="No","",IF(S65="Use Default",IF('MCC Model '!$F$1="Non-PTE",$AB$7,$AA$7),"")) ->  | U65: =IF(A65="No","",0.66) ->  | V65: =IF(A65="Yes",(IF(BA65<0,0,BA65)),"") ->  | W65: =IF(A65="Yes",V65*C65*D65,"") ->  | AA65: =IF(F55="Non-PTE",AB62,AA62) -> 6 | AB65: =IF(AND(N65="Use Default",P65="Use Default"),Q65/O65,IF(AND(N65="Use Local Value",P65="Use Default"),Q65/O66,IF(AND(N65="Use Default",P65="Use Local Value"),Q66/O65,IF(AND(N65="Use Local Value",P65="Use Local Value"),Q66/O66))))*IF($M65="",$M66,$M65)/IF($Q65="",Q66,$Q65) ->  | AC65: =AA65*AB65 ->  | AD65: =1/IF(Q65="",Q66,Q65) ->  | AE65: =AA65*((AC65+AD65)/AC65)^E65 ->  | AF65: =AA65/((IF(K65="",K66,K65)/(IF(Q65="",Q66,Q65)*2))) ->  | AG65: =AF65/2 ->  | AH65: =AE65/((IF(K65="",K66,K65)/(IF(Q65="",Q66,Q65)*2))) ->  | AI65: =AH65/2 ->  | AJ65: =AI65-AG65 ->  | AK65: =AJ65*IF(F65="Use Default",G65,G66) ->  | AL65: =AA65*IF(K65="",K66,K65)/((IF(K65="",K66,K65)/(IF(Q65="",Q66,Q65)*2))) ->  | AM65: =AL65/2 ->  | AN65: =AE65*IF(K65="",K66,K65)/((IF(K65="",K66,K65)/(IF(Q65="",Q66,Q65)*2))) ->  | AO65: =AN65/2 ->  | AP65: =AO65-AM65 ->  | AQ65: =AP65*IF(H65="Use Default",I65,I66) ->  | AR65: =AQ65+AK65 ->  | AS65: =(AE65-AA65)/AA65 ->  | AT65: =AS65*U65 ->  | AU65: =AC65*IF(Q65="",Q66,Q65)*2 ->  | AV65: =AU65/2 ->  | AW65: =AV65*IF(T65="",T66,T65) ->  | AX65: =AW65*AT65 ->  | AY65: =AX65*R65 ->  | AZ65: =AX65*'AC model'!$D$18 ->  | BA65: =AR65-AY65+AZ65 -> 
F66: =IF(F65="Use Local Value", "Enter Local Value","") ->  | H66: =IF(H65="Use Local Value", "Enter Local Value","") ->  | J66: =IF(J65="Use Local Value", "Enter Local Value","") ->  | L66: =IF(L65="Use Local Value","Enter Local Value","") ->  | N66: =IF(N65="Use Local Value","Enter Local Value","") ->  | P66: =IF(P65="Use Local Value","Enter Local Value","") ->  | S66: =IF(S65="Use Local Value", "Enter Local Value","") -> 
A68: No | B68: <Add network desc> | C68: =IF(A68="No","",1-'RF model'!$C$14) ->  | E68: =IF(A68="No","",0.6) ->  | F68: Use Default | G68: =IF(A68="No","",IF(F68="Use Default",13.3*(VLOOKUP('Start Page'!$G$4,'RF Workings'!$E$3:$G$21,2)/'RF Workings'!$F$7),"")) ->  | H68: Use Default | I68: =IF(A68="No","",IF(H68="Use Default",0.7*(VLOOKUP('Start Page'!$G$4,'RF Workings'!$E$3:$G$21,2)/'RF Workings'!$F$7),"")) ->  | J68: Use Default | K68: =IF(A68="No","",IF(J68="Use Default",IF($F$1="Non-PTE",$AB$3,$AA$3),"")) ->  | L68: Use Default | M68: =IF(A68="No","",IF(L68="Use Default",IF($F$1="Non-PTE",$AB$4,$AA$4),"")) ->  | N68: Use Default | O68: =IF(A68="No","",IF(N68="Use Default",IF($F$1="Non-PTE",$AB$5,$AA$5),"")) ->  | P68: Use Default | Q68: =IF(A68="No","",(IF(P68="Use Default",IF($F$1="Non-PTE",$AB$6,$AA$6),""))) ->  | S68: Use Default | T68: =IF(A68="No","",IF(S68="Use Default",IF('MCC Model '!$F$1="Non-PTE",$AB$7,$AA$7),"")) ->  | U68: =IF(A68="No","",0.66) ->  | V68: =IF(A68="Yes",(IF(BA68<0,0,BA68)),"") ->  | W68: =IF(A68="Yes",V68*C68*D68,"") ->  | AA68: =IF(F58="Non-PTE",AB65,AA65) -> 6 | AB68: =IF(AND(N68="Use Default",P68="Use Default"),Q68/O68,IF(AND(N68="Use Local Value",P68="Use Default"),Q68/O69,IF(AND(N68="Use Default",P68="Use Local Value"),Q69/O68,IF(AND(N68="Use Local Value",P68="Use Local Value"),Q69/O69))))*IF($M68="",$M69,$M68)/IF($Q68="",Q69,$Q68) ->  | AC68: =AA68*AB68 ->  | AD68: =1/IF(Q68="",Q69,Q68) ->  | AE68: =AA68*((AC68+AD68)/AC68)^E68 ->  | AF68: =AA68/((IF(K68="",K69,K68)/(IF(Q68="",Q69,Q68)*2))) ->  | AG68: =AF68/2 ->  | AH68: =AE68/((IF(K68="",K69,K68)/(IF(Q68="",Q69,Q68)*2))) ->  | AI68: =AH68/2 ->  | AJ68: =AI68-AG68 ->  | AK68: =AJ68*IF(F68="Use Default",G68,G69) ->  | AL68: =AA68*IF(K68="",K69,K68)/((IF(K68="",K69,K68)/(IF(Q68="",Q69,Q68)*2))) ->  | AM68: =AL68/2 ->  | AN68: =AE68*IF(K68="",K69,K68)/((IF(K68="",K69,K68)/(IF(Q68="",Q69,Q68)*2))) ->  | AO68: =AN68/2 ->  | AP68: =AO68-AM68 ->  | AQ68: =AP68*IF(H68="Use Default",I68,I69) ->  | AR68: =AQ68+AK68 ->  | AS68: =(AE68-AA68)/AA68 ->  | AT68: =AS68*U68 ->  | AU68: =AC68*IF(Q68="",Q69,Q68)*2 ->  | AV68: =AU68/2 ->  | AW68: =AV68*IF(T68="",T69,T68) ->  | AX68: =AW68*AT68 ->  | AY68: =AX68*R68 ->  | AZ68: =AX68*'AC model'!$D$18 ->  | BA68: =AR68-AY68+AZ68 -> 
F69: =IF(F68="Use Local Value", "Enter Local Value","") ->  | H69: =IF(H68="Use Local Value", "Enter Local Value","") ->  | J69: =IF(J68="Use Local Value", "Enter Local Value","") ->  | L69: =IF(L68="Use Local Value","Enter Local Value","") ->  | N69: =IF(N68="Use Local Value","Enter Local Value","") ->  | P69: =IF(P68="Use Local Value","Enter Local Value","") ->  | S69: =IF(S68="Use Local Value", "Enter Local Value","") -> 
A71: No | B71: <Add network desc> | C71: =IF(A71="No","",1-'RF model'!$C$14) ->  | E71: =IF(A71="No","",0.6) ->  | F71: Use Default | G71: =IF(A71="No","",IF(F71="Use Default",13.3*(VLOOKUP('Start Page'!$G$4,'RF Workings'!$E$3:$G$21,2)/'RF Workings'!$F$7),"")) ->  | H71: Use Default | I71: =IF(A71="No","",IF(H71="Use Default",0.7*(VLOOKUP('Start Page'!$G$4,'RF Workings'!$E$3:$G$21,2)/'RF Workings'!$F$7),"")) ->  | J71: Use Default | K71: =IF(A71="No","",IF(J71="Use Default",IF($F$1="Non-PTE",$AB$3,$AA$3),"")) ->  | L71: Use Default | M71: =IF(A71="No","",IF(L71="Use Default",IF($F$1="Non-PTE",$AB$4,$AA$4),"")) ->  | N71: Use Default | O71: =IF(A71="No","",IF(N71="Use Default",IF($F$1="Non-PTE",$AB$5,$AA$5),"")) ->  | P71: Use Default | Q71: =IF(A71="No","",(IF(P71="Use Default",IF($F$1="Non-PTE",$AB$6,$AA$6),""))) ->  | S71: Use Default | T71: =IF(A71="No","",IF(S71="Use Default",IF('MCC Model '!$F$1="Non-PTE",$AB$7,$AA$7),"")) ->  | U71: =IF(A71="No","",0.66) ->  | V71: =IF(A71="Yes",(IF(BA71<0,0,BA71)),"") ->  | W71: =IF(A71="Yes",V71*C71*D71,"") ->  | AA71: =IF(F61="Non-PTE",AB68,AA68) -> 6 | AB71: =IF(AND(N71="Use Default",P71="Use Default"),Q71/O71,IF(AND(N71="Use Local Value",P71="Use Default"),Q71/O72,IF(AND(N71="Use Default",P71="Use Local Value"),Q72/O71,IF(AND(N71="Use Local Value",P71="Use Local Value"),Q72/O72))))*IF($M71="",$M72,$M71)/IF($Q71="",Q72,$Q71) ->  | AC71: =AA71*AB71 ->  | AD71: =1/IF(Q71="",Q72,Q71) ->  | AE71: =AA71*((AC71+AD71)/AC71)^E71 ->  | AF71: =AA71/((IF(K71="",K72,K71)/(IF(Q71="",Q72,Q71)*2))) ->  | AG71: =AF71/2 ->  | AH71: =AE71/((IF(K71="",K72,K71)/(IF(Q71="",Q72,Q71)*2))) ->  | AI71: =AH71/2 ->  | AJ71: =AI71-AG71 ->  | AK71: =AJ71*IF(F71="Use Default",G71,G72) ->  | AL71: =AA71*IF(K71="",K72,K71)/((IF(K71="",K72,K71)/(IF(Q71="",Q72,Q71)*2))) ->  | AM71: =AL71/2 ->  | AN71: =AE71*IF(K71="",K72,K71)/((IF(K71="",K72,K71)/(IF(Q71="",Q72,Q71)*2))) ->  | AO71: =AN71/2 ->  | AP71: =AO71-AM71 ->  | AQ71: =AP71*IF(H71="Use Default",I71,I72) ->  | AR71: =AQ71+AK71 ->  | AS71: =(AE71-AA71)/AA71 ->  | AT71: =AS71*U71 ->  | AU71: =AC71*IF(Q71="",Q72,Q71)*2 ->  | AV71: =AU71/2 ->  | AW71: =AV71*IF(T71="",T72,T71) ->  | AX71: =AW71*AT71 ->  | AY71: =AX71*R71 ->  | AZ71: =AX71*'AC model'!$D$18 ->  | BA71: =AR71-AY71+AZ71 -> 
F72: =IF(F71="Use Local Value", "Enter Local Value","") ->  | H72: =IF(H71="Use Local Value", "Enter Local Value","") ->  | J72: =IF(J71="Use Local Value", "Enter Local Value","") ->  | L72: =IF(L71="Use Local Value","Enter Local Value","") ->  | N72: =IF(N71="Use Local Value","Enter Local Value","") ->  | P72: =IF(P71="Use Local Value","Enter Local Value","") ->  | S72: =IF(S71="Use Local Value", "Enter Local Value","") -> 
A74: No | B74: <Add network desc> | C74: =IF(A74="No","",1-'RF model'!$C$14) ->  | E74: =IF(A74="No","",0.6) ->  | F74: Use Default | G74: =IF(A74="No","",IF(F74="Use Default",13.3*(VLOOKUP('Start Page'!$G$4,'RF Workings'!$E$3:$G$21,2)/'RF Workings'!$F$7),"")) ->  | H74: Use Default | I74: =IF(A74="No","",IF(H74="Use Default",0.7*(VLOOKUP('Start Page'!$G$4,'RF Workings'!$E$3:$G$21,2)/'RF Workings'!$F$7),"")) ->  | J74: Use Default | K74: =IF(A74="No","",IF(J74="Use Default",IF($F$1="Non-PTE",$AB$3,$AA$3),"")) ->  | L74: Use Default | M74: =IF(A74="No","",IF(L74="Use Default",IF($F$1="Non-PTE",$AB$4,$AA$4),"")) ->  | N74: Use Default | O74: =IF(A74="No","",IF(N74="Use Default",IF($F$1="Non-PTE",$AB$5,$AA$5),"")) ->  | P74: Use Default | Q74: =IF(A74="No","",(IF(P74="Use Default",IF($F$1="Non-PTE",$AB$6,$AA$6),""))) ->  | S74: Use Default | T74: =IF(A74="No","",IF(S74="Use Default",IF('MCC Model '!$F$1="Non-PTE",$AB$7,$AA$7),"")) ->  | U74: =IF(A74="No","",0.66) ->  | V74: =IF(A74="Yes",(IF(BA74<0,0,BA74)),"") ->  | W74: =IF(A74="Yes",V74*C74*D74,"") ->  | AA74: =IF(F64="Non-PTE",AB71,AA71) -> 6 | AB74: =IF(AND(N74="Use Default",P74="Use Default"),Q74/O74,IF(AND(N74="Use Local Value",P74="Use Default"),Q74/O75,IF(AND(N74="Use Default",P74="Use Local Value"),Q75/O74,IF(AND(N74="Use Local Value",P74="Use Local Value"),Q75/O75))))*IF($M74="",$M75,$M74)/IF($Q74="",Q75,$Q74) ->  | AC74: =AA74*AB74 ->  | AD74: =1/IF(Q74="",Q75,Q74) ->  | AE74: =AA74*((AC74+AD74)/AC74)^E74 ->  | AF74: =AA74/((IF(K74="",K75,K74)/(IF(Q74="",Q75,Q74)*2))) ->  | AG74: =AF74/2 ->  | AH74: =AE74/((IF(K74="",K75,K74)/(IF(Q74="",Q75,Q74)*2))) ->  | AI74: =AH74/2 ->  | AJ74: =AI74-AG74 ->  | AK74: =AJ74*IF(F74="Use Default",G74,G75) ->  | AL74: =AA74*IF(K74="",K75,K74)/((IF(K74="",K75,K74)/(IF(Q74="",Q75,Q74)*2))) ->  | AM74: =AL74/2 ->  | AN74: =AE74*IF(K74="",K75,K74)/((IF(K74="",K75,K74)/(IF(Q74="",Q75,Q74)*2))) ->  | AO74: =AN74/2 ->  | AP74: =AO74-AM74 ->  | AQ74: =AP74*IF(H74="Use Default",I74,I75) ->  | AR74: =AQ74+AK74 ->  | AS74: =(AE74-AA74)/AA74 ->  | AT74: =AS74*U74 ->  | AU74: =AC74*IF(Q74="",Q75,Q74)*2 ->  | AV74: =AU74/2 ->  | AW74: =AV74*IF(T74="",T75,T74) ->  | AX74: =AW74*AT74 ->  | AY74: =AX74*R74 ->  | AZ74: =AX74*'AC model'!$D$18 ->  | BA74: =AR74-AY74+AZ74 -> 
F75: =IF(F74="Use Local Value", "Enter Local Value","") ->  | H75: =IF(H74="Use Local Value", "Enter Local Value","") ->  | J75: =IF(J74="Use Local Value", "Enter Local Value","") ->  | L75: =IF(L74="Use Local Value","Enter Local Value","") ->  | N75: =IF(N74="Use Local Value","Enter Local Value","") ->  | P75: =IF(P74="Use Local Value","Enter Local Value","") ->  | S75: =IF(S74="Use Local Value", "Enter Local Value","") -> 
A77: No | B77: <Add network desc> | C77: =IF(A77="No","",1-'RF model'!$C$14) ->  | E77: =IF(A77="No","",0.6) ->  | F77: Use Default | G77: =IF(A77="No","",IF(F77="Use Default",13.3*(VLOOKUP('Start Page'!$G$4,'RF Workings'!$E$3:$G$21,2)/'RF Workings'!$F$7),"")) ->  | H77: Use Default | I77: =IF(A77="No","",IF(H77="Use Default",0.7*(VLOOKUP('Start Page'!$G$4,'RF Workings'!$E$3:$G$21,2)/'RF Workings'!$F$7),"")) ->  | J77: Use Default | K77: =IF(A77="No","",IF(J77="Use Default",IF($F$1="Non-PTE",$AB$3,$AA$3),"")) ->  | L77: Use Default | M77: =IF(A77="No","",IF(L77="Use Default",IF($F$1="Non-PTE",$AB$4,$AA$4),"")) ->  | N77: Use Default | O77: =IF(A77="No","",IF(N77="Use Default",IF($F$1="Non-PTE",$AB$5,$AA$5),"")) ->  | P77: Use Default | Q77: =IF(A77="No","",(IF(P77="Use Default",IF($F$1="Non-PTE",$AB$6,$AA$6),""))) ->  | S77: Use Default | T77: =IF(A77="No","",IF(S77="Use Default",IF('MCC Model '!$F$1="Non-PTE",$AB$7,$AA$7),"")) ->  | U77: =IF(A77="No","",0.66) ->  | V77: =IF(A77="Yes",(IF(BA77<0,0,BA77)),"") ->  | W77: =IF(A77="Yes",V77*C77*D77,"") ->  | AA77: =IF(F67="Non-PTE",AB74,AA74) -> 6 | AB77: =IF(AND(N77="Use Default",P77="Use Default"),Q77/O77,IF(AND(N77="Use Local Value",P77="Use Default"),Q77/O78,IF(AND(N77="Use Default",P77="Use Local Value"),Q78/O77,IF(AND(N77="Use Local Value",P77="Use Local Value"),Q78/O78))))*IF($M77="",$M78,$M77)/IF($Q77="",Q78,$Q77) ->  | AC77: =AA77*AB77 ->  | AD77: =1/IF(Q77="",Q78,Q77) ->  | AE77: =AA77*((AC77+AD77)/AC77)^E77 ->  | AF77: =AA77/((IF(K77="",K78,K77)/(IF(Q77="",Q78,Q77)*2))) ->  | AG77: =AF77/2 ->  | AH77: =AE77/((IF(K77="",K78,K77)/(IF(Q77="",Q78,Q77)*2))) ->  | AI77: =AH77/2 ->  | AJ77: =AI77-AG77 ->  | AK77: =AJ77*IF(F77="Use Default",G77,G78) ->  | AL77: =AA77*IF(K77="",K78,K77)/((IF(K77="",K78,K77)/(IF(Q77="",Q78,Q77)*2))) ->  | AM77: =AL77/2 ->  | AN77: =AE77*IF(K77="",K78,K77)/((IF(K77="",K78,K77)/(IF(Q77="",Q78,Q77)*2))) ->  | AO77: =AN77/2 ->  | AP77: =AO77-AM77 ->  | AQ77: =AP77*IF(H77="Use Default",I77,I78) ->  | AR77: =AQ77+AK77 ->  | AS77: =(AE77-AA77)/AA77 ->  | AT77: =AS77*U77 ->  | AU77: =AC77*IF(Q77="",Q78,Q77)*2 ->  | AV77: =AU77/2 ->  | AW77: =AV77*IF(T77="",T78,T77) ->  | AX77: =AW77*AT77 ->  | AY77: =AX77*R77 ->  | AZ77: =AX77*'AC model'!$D$18 ->  | BA77: =AR77-AY77+AZ77 -> 
F78: =IF(F77="Use Local Value", "Enter Local Value","") ->  | H78: =IF(H77="Use Local Value", "Enter Local Value","") ->  | J78: =IF(J77="Use Local Value", "Enter Local Value","") ->  | L78: =IF(L77="Use Local Value","Enter Local Value","") ->  | N78: =IF(N77="Use Local Value","Enter Local Value","") ->  | P78: =IF(P77="Use Local Value","Enter Local Value","") ->  | S78: =IF(S77="Use Local Value", "Enter Local Value","") -> 
A80: No | B80: <Add network desc> | C80: =IF(A80="No","",1-'RF model'!$C$14) ->  | E80: =IF(A80="No","",0.6) ->  | F80: Use Default | G80: =IF(A80="No","",IF(F80="Use Default",13.3*(VLOOKUP('Start Page'!$G$4,'RF Workings'!$E$3:$G$21,2)/'RF Workings'!$F$7),"")) ->  | H80: Use Default | I80: =IF(A80="No","",IF(H80="Use Default",0.7*(VLOOKUP('Start Page'!$G$4,'RF Workings'!$E$3:$G$21,2)/'RF Workings'!$F$7),"")) ->  | J80: Use Default | K80: =IF(A80="No","",IF(J80="Use Default",IF($F$1="Non-PTE",$AB$3,$AA$3),"")) ->  | L80: Use Default | M80: =IF(A80="No","",IF(L80="Use Default",IF($F$1="Non-PTE",$AB$4,$AA$4),"")) ->  | N80: Use Default | O80: =IF(A80="No","",IF(N80="Use Default",IF($F$1="Non-PTE",$AB$5,$AA$5),"")) ->  | P80: Use Default | Q80: =IF(A80="No","",(IF(P80="Use Default",IF($F$1="Non-PTE",$AB$6,$AA$6),""))) ->  | S80: Use Default | T80: =IF(A80="No","",IF(S80="Use Default",IF('MCC Model '!$F$1="Non-PTE",$AB$7,$AA$7),"")) ->  | U80: =IF(A80="No","",0.66) ->  | V80: =IF(A80="Yes",(IF(BA80<0,0,BA80)),"") ->  | W80: =IF(A80="Yes",V80*C80*D80,"") ->  | AA80: =IF(F70="Non-PTE",AB77,AA77) -> 6 | AB80: =IF(AND(N80="Use Default",P80="Use Default"),Q80/O80,IF(AND(N80="Use Local Value",P80="Use Default"),Q80/O81,IF(AND(N80="Use Default",P80="Use Local Value"),Q81/O80,IF(AND(N80="Use Local Value",P80="Use Local Value"),Q81/O81))))*IF($M80="",$M81,$M80)/IF($Q80="",Q81,$Q80) ->  | AC80: =AA80*AB80 ->  | AD80: =1/IF(Q80="",Q81,Q80) ->  | AE80: =AA80*((AC80+AD80)/AC80)^E80 ->  | AF80: =AA80/((IF(K80="",K81,K80)/(IF(Q80="",Q81,Q80)*2))) ->  | AG80: =AF80/2 ->  | AH80: =AE80/((IF(K80="",K81,K80)/(IF(Q80="",Q81,Q80)*2))) ->  | AI80: =AH80/2 ->  | AJ80: =AI80-AG80 ->  | AK80: =AJ80*IF(F80="Use Default",G80,G81) ->  | AL80: =AA80*IF(K80="",K81,K80)/((IF(K80="",K81,K80)/(IF(Q80="",Q81,Q80)*2))) ->  | AM80: =AL80/2 ->  | AN80: =AE80*IF(K80="",K81,K80)/((IF(K80="",K81,K80)/(IF(Q80="",Q81,Q80)*2))) ->  | AO80: =AN80/2 ->  | AP80: =AO80-AM80 ->  | AQ80: =AP80*IF(H80="Use Default",I80,I81) ->  | AR80: =AQ80+AK80 ->  | AS80: =(AE80-AA80)/AA80 ->  | AT80: =AS80*U80 ->  | AU80: =AC80*IF(Q80="",Q81,Q80)*2 ->  | AV80: =AU80/2 ->  | AW80: =AV80*IF(T80="",T81,T80) ->  | AX80: =AW80*AT80 ->  | AY80: =AX80*R80 ->  | AZ80: =AX80*'AC model'!$D$18 ->  | BA80: =AR80-AY80+AZ80 -> 
F81: =IF(F80="Use Local Value", "Enter Local Value","") ->  | H81: =IF(H80="Use Local Value", "Enter Local Value","") ->  | J81: =IF(J80="Use Local Value", "Enter Local Value","") ->  | L81: =IF(L80="Use Local Value","Enter Local Value","") ->  | N81: =IF(N80="Use Local Value","Enter Local Value","") ->  | P81: =IF(P80="Use Local Value","Enter Local Value","") ->  | S81: =IF(S80="Use Local Value", "Enter Local Value","") -> 
A83: No | B83: <Add network desc> | C83: =IF(A83="No","",1-'RF model'!$C$14) ->  | E83: =IF(A83="No","",0.6) ->  | F83: Use Default | G83: =IF(A83="No","",IF(F83="Use Default",13.3*(VLOOKUP('Start Page'!$G$4,'RF Workings'!$E$3:$G$21,2)/'RF Workings'!$F$7),"")) ->  | H83: Use Default | I83: =IF(A83="No","",IF(H83="Use Default",0.7*(VLOOKUP('Start Page'!$G$4,'RF Workings'!$E$3:$G$21,2)/'RF Workings'!$F$7),"")) ->  | J83: Use Default | K83: =IF(A83="No","",IF(J83="Use Default",IF($F$1="Non-PTE",$AB$3,$AA$3),"")) ->  | L83: Use Default | M83: =IF(A83="No","",IF(L83="Use Default",IF($F$1="Non-PTE",$AB$4,$AA$4),"")) ->  | N83: Use Default | O83: =IF(A83="No","",IF(N83="Use Default",IF($F$1="Non-PTE",$AB$5,$AA$5),"")) ->  | P83: Use Default | Q83: =IF(A83="No","",(IF(P83="Use Default",IF($F$1="Non-PTE",$AB$6,$AA$6),""))) ->  | S83: Use Default | T83: =IF(A83="No","",IF(S83="Use Default",IF('MCC Model '!$F$1="Non-PTE",$AB$7,$AA$7),"")) ->  | U83: =IF(A83="No","",0.66) ->  | V83: =IF(A83="Yes",(IF(BA83<0,0,BA83)),"") ->  | W83: =IF(A83="Yes",V83*C83*D83,"") ->  | AA83: =IF(F73="Non-PTE",AB80,AA80) -> 6 | AB83: =IF(AND(N83="Use Default",P83="Use Default"),Q83/O83,IF(AND(N83="Use Local Value",P83="Use Default"),Q83/O84,IF(AND(N83="Use Default",P83="Use Local Value"),Q84/O83,IF(AND(N83="Use Local Value",P83="Use Local Value"),Q84/O84))))*IF($M83="",$M84,$M83)/IF($Q83="",Q84,$Q83) ->  | AC83: =AA83*AB83 ->  | AD83: =1/IF(Q83="",Q84,Q83) ->  | AE83: =AA83*((AC83+AD83)/AC83)^E83 ->  | AF83: =AA83/((IF(K83="",K84,K83)/(IF(Q83="",Q84,Q83)*2))) ->  | AG83: =AF83/2 ->  | AH83: =AE83/((IF(K83="",K84,K83)/(IF(Q83="",Q84,Q83)*2))) ->  | AI83: =AH83/2 ->  | AJ83: =AI83-AG83 ->  | AK83: =AJ83*IF(F83="Use Default",G83,G84) ->  | AL83: =AA83*IF(K83="",K84,K83)/((IF(K83="",K84,K83)/(IF(Q83="",Q84,Q83)*2))) ->  | AM83: =AL83/2 ->  | AN83: =AE83*IF(K83="",K84,K83)/((IF(K83="",K84,K83)/(IF(Q83="",Q84,Q83)*2))) ->  | AO83: =AN83/2 ->  | AP83: =AO83-AM83 ->  | AQ83: =AP83*IF(H83="Use Default",I83,I84) ->  | AR83: =AQ83+AK83 ->  | AS83: =(AE83-AA83)/AA83 ->  | AT83: =AS83*U83 ->  | AU83: =AC83*IF(Q83="",Q84,Q83)*2 ->  | AV83: =AU83/2 ->  | AW83: =AV83*IF(T83="",T84,T83) ->  | AX83: =AW83*AT83 ->  | AY83: =AX83*R83 ->  | AZ83: =AX83*'AC model'!$D$18 ->  | BA83: =AR83-AY83+AZ83 -> 
F84: =IF(F83="Use Local Value", "Enter Local Value","") ->  | H84: =IF(H83="Use Local Value", "Enter Local Value","") ->  | J84: =IF(J83="Use Local Value", "Enter Local Value","") ->  | L84: =IF(L83="Use Local Value","Enter Local Value","") ->  | N84: =IF(N83="Use Local Value","Enter Local Value","") ->  | P84: =IF(P83="Use Local Value","Enter Local Value","") ->  | S84: =IF(S83="Use Local Value", "Enter Local Value","") -> 
A86: No | B86: <Add network desc> | C86: =IF(A86="No","",1-'RF model'!$C$14) ->  | E86: =IF(A86="No","",0.6) ->  | F86: Use Default | G86: =IF(A86="No","",IF(F86="Use Default",13.3*(VLOOKUP('Start Page'!$G$4,'RF Workings'!$E$3:$G$21,2)/'RF Workings'!$F$7),"")) ->  | H86: Use Default | I86: =IF(A86="No","",IF(H86="Use Default",0.7*(VLOOKUP('Start Page'!$G$4,'RF Workings'!$E$3:$G$21,2)/'RF Workings'!$F$7),"")) ->  | J86: Use Default | K86: =IF(A86="No","",IF(J86="Use Default",IF($F$1="Non-PTE",$AB$3,$AA$3),"")) ->  | L86: Use Default | M86: =IF(A86="No","",IF(L86="Use Default",IF($F$1="Non-PTE",$AB$4,$AA$4),"")) ->  | N86: Use Default | O86: =IF(A86="No","",IF(N86="Use Default",IF($F$1="Non-PTE",$AB$5,$AA$5),"")) ->  | P86: Use Default | Q86: =IF(A86="No","",(IF(P86="Use Default",IF($F$1="Non-PTE",$AB$6,$AA$6),""))) ->  | S86: Use Default | T86: =IF(A86="No","",IF(S86="Use Default",IF('MCC Model '!$F$1="Non-PTE",$AB$7,$AA$7),"")) ->  | U86: =IF(A86="No","",0.66) ->  | V86: =IF(A86="Yes",(IF(BA86<0,0,BA86)),"") ->  | W86: =IF(A86="Yes",V86*C86*D86,"") ->  | AA86: =IF(F76="Non-PTE",AB83,AA83) -> 6 | AB86: =IF(AND(N86="Use Default",P86="Use Default"),Q86/O86,IF(AND(N86="Use Local Value",P86="Use Default"),Q86/O87,IF(AND(N86="Use Default",P86="Use Local Value"),Q87/O86,IF(AND(N86="Use Local Value",P86="Use Local Value"),Q87/O87))))*IF($M86="",$M87,$M86)/IF($Q86="",Q87,$Q86) ->  | AC86: =AA86*AB86 ->  | AD86: =1/IF(Q86="",Q87,Q86) ->  | AE86: =AA86*((AC86+AD86)/AC86)^E86 ->  | AF86: =AA86/((IF(K86="",K87,K86)/(IF(Q86="",Q87,Q86)*2))) ->  | AG86: =AF86/2 ->  | AH86: =AE86/((IF(K86="",K87,K86)/(IF(Q86="",Q87,Q86)*2))) ->  | AI86: =AH86/2 ->  | AJ86: =AI86-AG86 ->  | AK86: =AJ86*IF(F86="Use Default",G86,G87) ->  | AL86: =AA86*IF(K86="",K87,K86)/((IF(K86="",K87,K86)/(IF(Q86="",Q87,Q86)*2))) ->  | AM86: =AL86/2 ->  | AN86: =AE86*IF(K86="",K87,K86)/((IF(K86="",K87,K86)/(IF(Q86="",Q87,Q86)*2))) ->  | AO86: =AN86/2 ->  | AP86: =AO86-AM86 ->  | AQ86: =AP86*IF(H86="Use Default",I86,I87) ->  | AR86: =AQ86+AK86 ->  | AS86: =(AE86-AA86)/AA86 ->  | AT86: =AS86*U86 ->  | AU86: =AC86*IF(Q86="",Q87,Q86)*2 ->  | AV86: =AU86/2 ->  | AW86: =AV86*IF(T86="",T87,T86) ->  | AX86: =AW86*AT86 ->  | AY86: =AX86*R86 ->  | AZ86: =AX86*'AC model'!$D$18 ->  | BA86: =AR86-AY86+AZ86 -> 
F87: =IF(F86="Use Local Value", "Enter Local Value","") ->  | H87: =IF(H86="Use Local Value", "Enter Local Value","") ->  | J87: =IF(J86="Use Local Value", "Enter Local Value","") ->  | L87: =IF(L86="Use Local Value","Enter Local Value","") ->  | N87: =IF(N86="Use Local Value","Enter Local Value","") ->  | P87: =IF(P86="Use Local Value","Enter Local Value","") ->  | S87: =IF(S86="Use Local Value", "Enter Local Value","") -> 
A89: No | B89: <Add network desc> | C89: =IF(A89="No","",1-'RF model'!$C$14) ->  | E89: =IF(A89="No","",0.6) ->  | F89: Use Default | G89: =IF(A89="No","",IF(F89="Use Default",13.3*(VLOOKUP('Start Page'!$G$4,'RF Workings'!$E$3:$G$21,2)/'RF Workings'!$F$7),"")) ->  | H89: Use Default | I89: =IF(A89="No","",IF(H89="Use Default",0.7*(VLOOKUP('Start Page'!$G$4,'RF Workings'!$E$3:$G$21,2)/'RF Workings'!$F$7),"")) ->  | J89: Use Default | K89: =IF(A89="No","",IF(J89="Use Default",IF($F$1="Non-PTE",$AB$3,$AA$3),"")) ->  | L89: Use Default | M89: =IF(A89="No","",IF(L89="Use Default",IF($F$1="Non-PTE",$AB$4,$AA$4),"")) ->  | N89: Use Default | O89: =IF(A89="No","",IF(N89="Use Default",IF($F$1="Non-PTE",$AB$5,$AA$5),"")) ->  | P89: Use Default | Q89: =IF(A89="No","",(IF(P89="Use Default",IF($F$1="Non-PTE",$AB$6,$AA$6),""))) ->  | S89: Use Default | T89: =IF(A89="No","",IF(S89="Use Default",IF('MCC Model '!$F$1="Non-PTE",$AB$7,$AA$7),"")) ->  | U89: =IF(A89="No","",0.66) ->  | V89: =IF(A89="Yes",(IF(BA89<0,0,BA89)),"") ->  | W89: =IF(A89="Yes",V89*C89*D89,"") ->  | AA89: =IF(F79="Non-PTE",AB86,AA86) -> 6 | AB89: =IF(AND(N89="Use Default",P89="Use Default"),Q89/O89,IF(AND(N89="Use Local Value",P89="Use Default"),Q89/O90,IF(AND(N89="Use Default",P89="Use Local Value"),Q90/O89,IF(AND(N89="Use Local Value",P89="Use Local Value"),Q90/O90))))*IF($M89="",$M90,$M89)/IF($Q89="",Q90,$Q89) ->  | AC89: =AA89*AB89 ->  | AD89: =1/IF(Q89="",Q90,Q89) ->  | AE89: =AA89*((AC89+AD89)/AC89)^E89 ->  | AF89: =AA89/((IF(K89="",K90,K89)/(IF(Q89="",Q90,Q89)*2))) ->  | AG89: =AF89/2 ->  | AH89: =AE89/((IF(K89="",K90,K89)/(IF(Q89="",Q90,Q89)*2))) ->  | AI89: =AH89/2 ->  | AJ89: =AI89-AG89 ->  | AK89: =AJ89*IF(F89="Use Default",G89,G90) ->  | AL89: =AA89*IF(K89="",K90,K89)/((IF(K89="",K90,K89)/(IF(Q89="",Q90,Q89)*2))) ->  | AM89: =AL89/2 ->  | AN89: =AE89*IF(K89="",K90,K89)/((IF(K89="",K90,K89)/(IF(Q89="",Q90,Q89)*2))) ->  | AO89: =AN89/2 ->  | AP89: =AO89-AM89 ->  | AQ89: =AP89*IF(H89="Use Default",I89,I90) ->  | AR89: =AQ89+AK89 ->  | AS89: =(AE89-AA89)/AA89 ->  | AT89: =AS89*U89 ->  | AU89: =AC89*IF(Q89="",Q90,Q89)*2 ->  | AV89: =AU89/2 ->  | AW89: =AV89*IF(T89="",T90,T89) ->  | AX89: =AW89*AT89 ->  | AY89: =AX89*R89 ->  | AZ89: =AX89*'AC model'!$D$18 ->  | BA89: =AR89-AY89+AZ89 -> 
F90: =IF(F89="Use Local Value", "Enter Local Value","") ->  | H90: =IF(H89="Use Local Value", "Enter Local Value","") ->  | J90: =IF(J89="Use Local Value", "Enter Local Value","") ->  | L90: =IF(L89="Use Local Value","Enter Local Value","") ->  | N90: =IF(N89="Use Local Value","Enter Local Value","") ->  | P90: =IF(P89="Use Local Value","Enter Local Value","") ->  | S90: =IF(S89="Use Local Value", "Enter Local Value","") -> 
A92: No | B92: <Add network desc> | C92: =IF(A92="No","",1-'RF model'!$C$14) ->  | E92: =IF(A92="No","",0.6) ->  | F92: Use Default | G92: =IF(A92="No","",IF(F92="Use Default",13.3*(VLOOKUP('Start Page'!$G$4,'RF Workings'!$E$3:$G$21,2)/'RF Workings'!$F$7),"")) ->  | H92: Use Default | I92: =IF(A92="No","",IF(H92="Use Default",0.7*(VLOOKUP('Start Page'!$G$4,'RF Workings'!$E$3:$G$21,2)/'RF Workings'!$F$7),"")) ->  | J92: Use Default | K92: =IF(A92="No","",IF(J92="Use Default",IF($F$1="Non-PTE",$AB$3,$AA$3),"")) ->  | L92: Use Default | M92: =IF(A92="No","",IF(L92="Use Default",IF($F$1="Non-PTE",$AB$4,$AA$4),"")) ->  | N92: Use Default | O92: =IF(A92="No","",IF(N92="Use Default",IF($F$1="Non-PTE",$AB$5,$AA$5),"")) ->  | P92: Use Default | Q92: =IF(A92="No","",(IF(P92="Use Default",IF($F$1="Non-PTE",$AB$6,$AA$6),""))) ->  | S92: Use Default | T92: =IF(A92="No","",IF(S92="Use Default",IF('MCC Model '!$F$1="Non-PTE",$AB$7,$AA$7),"")) ->  | U92: =IF(A92="No","",0.66) ->  | V92: =IF(A92="Yes",(IF(BA92<0,0,BA92)),"") ->  | W92: =IF(A92="Yes",V92*C92*D92,"") ->  | AA92: =IF(F82="Non-PTE",AB89,AA89) -> 6 | AB92: =IF(AND(N92="Use Default",P92="Use Default"),Q92/O92,IF(AND(N92="Use Local Value",P92="Use Default"),Q92/O93,IF(AND(N92="Use Default",P92="Use Local Value"),Q93/O92,IF(AND(N92="Use Local Value",P92="Use Local Value"),Q93/O93))))*IF($M92="",$M93,$M92)/IF($Q92="",Q93,$Q92) ->  | AC92: =AA92*AB92 ->  | AD92: =1/IF(Q92="",Q93,Q92) ->  | AE92: =AA92*((AC92+AD92)/AC92)^E92 ->  | AF92: =AA92/((IF(K92="",K93,K92)/(IF(Q92="",Q93,Q92)*2))) ->  | AG92: =AF92/2 ->  | AH92: =AE92/((IF(K92="",K93,K92)/(IF(Q92="",Q93,Q92)*2))) ->  | AI92: =AH92/2 ->  | AJ92: =AI92-AG92 ->  | AK92: =AJ92*IF(F92="Use Default",G92,G93) ->  | AL92: =AA92*IF(K92="",K93,K92)/((IF(K92="",K93,K92)/(IF(Q92="",Q93,Q92)*2))) ->  | AM92: =AL92/2 ->  | AN92: =AE92*IF(K92="",K93,K92)/((IF(K92="",K93,K92)/(IF(Q92="",Q93,Q92)*2))) ->  | AO92: =AN92/2 ->  | AP92: =AO92-AM92 ->  | AQ92: =AP92*IF(H92="Use Default",I92,I93) ->  | AR92: =AQ92+AK92 ->  | AS92: =(AE92-AA92)/AA92 ->  | AT92: =AS92*U92 ->  | AU92: =AC92*IF(Q92="",Q93,Q92)*2 ->  | AV92: =AU92/2 ->  | AW92: =AV92*IF(T92="",T93,T92) ->  | AX92: =AW92*AT92 ->  | AY92: =AX92*R92 ->  | AZ92: =AX92*'AC model'!$D$18 ->  | BA92: =AR92-AY92+AZ92 -> 
F93: =IF(F92="Use Local Value", "Enter Local Value","") ->  | H93: =IF(H92="Use Local Value", "Enter Local Value","") ->  | J93: =IF(J92="Use Local Value", "Enter Local Value","") ->  | L93: =IF(L92="Use Local Value","Enter Local Value","") ->  | N93: =IF(N92="Use Local Value","Enter Local Value","") ->  | P93: =IF(P92="Use Local Value","Enter Local Value","") ->  | S93: =IF(S92="Use Local Value", "Enter Local Value","") -> 
A95: No | B95: <Add network desc> | C95: =IF(A95="No","",1-'RF model'!$C$14) ->  | E95: =IF(A95="No","",0.6) ->  | F95: Use Default | G95: =IF(A95="No","",IF(F95="Use Default",13.3*(VLOOKUP('Start Page'!$G$4,'RF Workings'!$E$3:$G$21,2)/'RF Workings'!$F$7),"")) ->  | H95: Use Default | I95: =IF(A95="No","",IF(H95="Use Default",0.7*(VLOOKUP('Start Page'!$G$4,'RF Workings'!$E$3:$G$21,2)/'RF Workings'!$F$7),"")) ->  | J95: Use Default | K95: =IF(A95="No","",IF(J95="Use Default",IF($F$1="Non-PTE",$AB$3,$AA$3),"")) ->  | L95: Use Default | M95: =IF(A95="No","",IF(L95="Use Default",IF($F$1="Non-PTE",$AB$4,$AA$4),"")) ->  | N95: Use Default | O95: =IF(A95="No","",IF(N95="Use Default",IF($F$1="Non-PTE",$AB$5,$AA$5),"")) ->  | P95: Use Default | Q95: =IF(A95="No","",(IF(P95="Use Default",IF($F$1="Non-PTE",$AB$6,$AA$6),""))) ->  | S95: Use Default | T95: =IF(A95="No","",IF(S95="Use Default",IF('MCC Model '!$F$1="Non-PTE",$AB$7,$AA$7),"")) ->  | U95: =IF(A95="No","",0.66) ->  | V95: =IF(A95="Yes",(IF(BA95<0,0,BA95)),"") ->  | W95: =IF(A95="Yes",V95*C95*D95,"") ->  | AA95: =IF(F85="Non-PTE",AB92,AA92) -> 6 | AB95: =IF(AND(N95="Use Default",P95="Use Default"),Q95/O95,IF(AND(N95="Use Local Value",P95="Use Default"),Q95/O96,IF(AND(N95="Use Default",P95="Use Local Value"),Q96/O95,IF(AND(N95="Use Local Value",P95="Use Local Value"),Q96/O96))))*IF($M95="",$M96,$M95)/IF($Q95="",Q96,$Q95) ->  | AC95: =AA95*AB95 ->  | AD95: =1/IF(Q95="",Q96,Q95) ->  | AE95: =AA95*((AC95+AD95)/AC95)^E95 ->  | AF95: =AA95/((IF(K95="",K96,K95)/(IF(Q95="",Q96,Q95)*2))) ->  | AG95: =AF95/2 ->  | AH95: =AE95/((IF(K95="",K96,K95)/(IF(Q95="",Q96,Q95)*2))) ->  | AI95: =AH95/2 ->  | AJ95: =AI95-AG95 ->  | AK95: =AJ95*IF(F95="Use Default",G95,G96) ->  | AL95: =AA95*IF(K95="",K96,K95)/((IF(K95="",K96,K95)/(IF(Q95="",Q96,Q95)*2))) ->  | AM95: =AL95/2 ->  | AN95: =AE95*IF(K95="",K96,K95)/((IF(K95="",K96,K95)/(IF(Q95="",Q96,Q95)*2))) ->  | AO95: =AN95/2 ->  | AP95: =AO95-AM95 ->  | AQ95: =AP95*IF(H95="Use Default",I95,I96) ->  | AR95: =AQ95+AK95 ->  | AS95: =(AE95-AA95)/AA95 ->  | AT95: =AS95*U95 ->  | AU95: =AC95*IF(Q95="",Q96,Q95)*2 ->  | AV95: =AU95/2 ->  | AW95: =AV95*IF(T95="",T96,T95) ->  | AX95: =AW95*AT95 ->  | AY95: =AX95*R95 ->  | AZ95: =AX95*'AC model'!$D$18 ->  | BA95: =AR95-AY95+AZ95 -> 
F96: =IF(F95="Use Local Value", "Enter Local Value","") ->  | H96: =IF(H95="Use Local Value", "Enter Local Value","") ->  | J96: =IF(J95="Use Local Value", "Enter Local Value","") ->  | L96: =IF(L95="Use Local Value","Enter Local Value","") ->  | N96: =IF(N95="Use Local Value","Enter Local Value","") ->  | P96: =IF(P95="Use Local Value","Enter Local Value","") ->  | S96: =IF(S95="Use Local Value", "Enter Local Value","") -> 
A98: No | B98: <Add network desc> | C98: =IF(A98="No","",1-'RF model'!$C$14) ->  | E98: =IF(A98="No","",0.6) ->  | F98: Use Default | G98: =IF(A98="No","",IF(F98="Use Default",13.3*(VLOOKUP('Start Page'!$G$4,'RF Workings'!$E$3:$G$21,2)/'RF Workings'!$F$7),"")) ->  | H98: Use Default | I98: =IF(A98="No","",IF(H98="Use Default",0.7*(VLOOKUP('Start Page'!$G$4,'RF Workings'!$E$3:$G$21,2)/'RF Workings'!$F$7),"")) ->  | J98: Use Default | K98: =IF(A98="No","",IF(J98="Use Default",IF($F$1="Non-PTE",$AB$3,$AA$3),"")) ->  | L98: Use Default | M98: =IF(A98="No","",IF(L98="Use Default",IF($F$1="Non-PTE",$AB$4,$AA$4),"")) ->  | N98: Use Default | O98: =IF(A98="No","",IF(N98="Use Default",IF($F$1="Non-PTE",$AB$5,$AA$5),"")) ->  | P98: Use Default | Q98: =IF(A98="No","",(IF(P98="Use Default",IF($F$1="Non-PTE",$AB$6,$AA$6),""))) ->  | S98: Use Default | T98: =IF(A98="No","",IF(S98="Use Default",IF('MCC Model '!$F$1="Non-PTE",$AB$7,$AA$7),"")) ->  | U98: =IF(A98="No","",0.66) ->  | V98: =IF(A98="Yes",(IF(BA98<0,0,BA98)),"") ->  | W98: =IF(A98="Yes",V98*C98*D98,"") ->  | AA98: =IF(F88="Non-PTE",AB95,AA95) -> 6 | AB98: =IF(AND(N98="Use Default",P98="Use Default"),Q98/O98,IF(AND(N98="Use Local Value",P98="Use Default"),Q98/O99,IF(AND(N98="Use Default",P98="Use Local Value"),Q99/O98,IF(AND(N98="Use Local Value",P98="Use Local Value"),Q99/O99))))*IF($M98="",$M99,$M98)/IF($Q98="",Q99,$Q98) ->  | AC98: =AA98*AB98 ->  | AD98: =1/IF(Q98="",Q99,Q98) ->  | AE98: =AA98*((AC98+AD98)/AC98)^E98 ->  | AF98: =AA98/((IF(K98="",K99,K98)/(IF(Q98="",Q99,Q98)*2))) ->  | AG98: =AF98/2 ->  | AH98: =AE98/((IF(K98="",K99,K98)/(IF(Q98="",Q99,Q98)*2))) ->  | AI98: =AH98/2 ->  | AJ98: =AI98-AG98 ->  | AK98: =AJ98*IF(F98="Use Default",G98,G99) ->  | AL98: =AA98*IF(K98="",K99,K98)/((IF(K98="",K99,K98)/(IF(Q98="",Q99,Q98)*2))) ->  | AM98: =AL98/2 ->  | AN98: =AE98*IF(K98="",K99,K98)/((IF(K98="",K99,K98)/(IF(Q98="",Q99,Q98)*2))) ->  | AO98: =AN98/2 ->  | AP98: =AO98-AM98 ->  | AQ98: =AP98*IF(H98="Use Default",I98,I99) ->  | AR98: =AQ98+AK98 ->  | AS98: =(AE98-AA98)/AA98 ->  | AT98: =AS98*U98 ->  | AU98: =AC98*IF(Q98="",Q99,Q98)*2 ->  | AV98: =AU98/2 ->  | AW98: =AV98*IF(T98="",T99,T98) ->  | AX98: =AW98*AT98 ->  | AY98: =AX98*R98 ->  | AZ98: =AX98*'AC model'!$D$18 ->  | BA98: =AR98-AY98+AZ98 -> 
F99: =IF(F98="Use Local Value", "Enter Local Value","") ->  | H99: =IF(H98="Use Local Value", "Enter Local Value","") ->  | J99: =IF(J98="Use Local Value", "Enter Local Value","") ->  | L99: =IF(L98="Use Local Value","Enter Local Value","") ->  | N99: =IF(N98="Use Local Value","Enter Local Value","") ->  | P99: =IF(P98="Use Local Value","Enter Local Value","") ->  | S99: =IF(S98="Use Local Value", "Enter Local Value","") -> 
A101: No | B101: <Add network desc> | C101: =IF(A101="No","",1-'RF model'!$C$14) ->  | E101: =IF(A101="No","",0.6) ->  | F101: Use Default | G101: =IF(A101="No","",IF(F101="Use Default",13.3*(VLOOKUP('Start Page'!$G$4,'RF Workings'!$E$3:$G$21,2)/'RF Workings'!$F$7),"")) ->  | H101: Use Default | I101: =IF(A101="No","",IF(H101="Use Default",0.7*(VLOOKUP('Start Page'!$G$4,'RF Workings'!$E$3:$G$21,2)/'RF Workings'!$F$7),"")) ->  | J101: Use Default | K101: =IF(A101="No","",IF(J101="Use Default",IF($F$1="Non-PTE",$AB$3,$AA$3),"")) ->  | L101: Use Default | M101: =IF(A101="No","",IF(L101="Use Default",IF($F$1="Non-PTE",$AB$4,$AA$4),"")) ->  | N101: Use Default | O101: =IF(A101="No","",IF(N101="Use Default",IF($F$1="Non-PTE",$AB$5,$AA$5),"")) ->  | P101: Use Default | Q101: =IF(A101="No","",(IF(P101="Use Default",IF($F$1="Non-PTE",$AB$6,$AA$6),""))) ->  | S101: Use Default | T101: =IF(A101="No","",IF(S101="Use Default",IF('MCC Model '!$F$1="Non-PTE",$AB$7,$AA$7),"")) ->  | U101: =IF(A101="No","",0.66) ->  | V101: =IF(A101="Yes",(IF(BA101<0,0,BA101)),"") ->  | W101: =IF(A101="Yes",V101*C101*D101,"") ->  | AA101: =IF(F91="Non-PTE",AB98,AA98) -> 6 | AB101: =IF(AND(N101="Use Default",P101="Use Default"),Q101/O101,IF(AND(N101="Use Local Value",P101="Use Default"),Q101/O102,IF(AND(N101="Use Default",P101="Use Local Value"),Q102/O101,IF(AND(N101="Use Local Value",P101="Use Local Value"),Q102/O102))))*IF($M101="",$M102,$M101)/IF($Q101="",Q102,$Q101) ->  | AC101: =AA101*AB101 ->  | AD101: =1/IF(Q101="",Q102,Q101) ->  | AE101: =AA101*((AC101+AD101)/AC101)^E101 ->  | AF101: =AA101/((IF(K101="",K102,K101)/(IF(Q101="",Q102,Q101)*2))) ->  | AG101: =AF101/2 ->  | AH101: =AE101/((IF(K101="",K102,K101)/(IF(Q101="",Q102,Q101)*2))) ->  | AI101: =AH101/2 ->  | AJ101: =AI101-AG101 ->  | AK101: =AJ101*IF(F101="Use Default",G101,G102) ->  | AL101: =AA101*IF(K101="",K102,K101)/((IF(K101="",K102,K101)/(IF(Q101="",Q102,Q101)*2))) ->  | AM101: =AL101/2 ->  | AN101: =AE101*IF(K101="",K102,K101)/((IF(K101="",K102,K101)/(IF(Q101="",Q102,Q101)*2))) ->  | AO101: =AN101/2 ->  | AP101: =AO101-AM101 ->  | AQ101: =AP101*IF(H101="Use Default",I101,I102) ->  | AR101: =AQ101+AK101 ->  | AS101: =(AE101-AA101)/AA101 ->  | AT101: =AS101*U101 ->  | AU101: =AC101*IF(Q101="",Q102,Q101)*2 ->  | AV101: =AU101/2 ->  | AW101: =AV101*IF(T101="",T102,T101) ->  | AX101: =AW101*AT101 ->  | AY101: =AX101*R101 ->  | AZ101: =AX101*'AC model'!$D$18 ->  | BA101: =AR101-AY101+AZ101 -> 
F102: =IF(F101="Use Local Value", "Enter Local Value","") ->  | H102: =IF(H101="Use Local Value", "Enter Local Value","") ->  | J102: =IF(J101="Use Local Value", "Enter Local Value","") ->  | L102: =IF(L101="Use Local Value","Enter Local Value","") ->  | N102: =IF(N101="Use Local Value","Enter Local Value","") ->  | P102: =IF(P101="Use Local Value","Enter Local Value","") ->  | S102: =IF(S101="Use Local Value", "Enter Local Value","") -> 
A104: No | B104: <Add network desc> | C104: =IF(A104="No","",1-'RF model'!$C$14) ->  | E104: =IF(A104="No","",0.6) ->  | F104: Use Default | G104: =IF(A104="No","",IF(F104="Use Default",13.3*(VLOOKUP('Start Page'!$G$4,'RF Workings'!$E$3:$G$21,2)/'RF Workings'!$F$7),"")) ->  | H104: Use Default | I104: =IF(A104="No","",IF(H104="Use Default",0.7*(VLOOKUP('Start Page'!$G$4,'RF Workings'!$E$3:$G$21,2)/'RF Workings'!$F$7),"")) ->  | J104: Use Default | K104: =IF(A104="No","",IF(J104="Use Default",IF($F$1="Non-PTE",$AB$3,$AA$3),"")) ->  | L104: Use Default | M104: =IF(A104="No","",IF(L104="Use Default",IF($F$1="Non-PTE",$AB$4,$AA$4),"")) ->  | N104: Use Default | O104: =IF(A104="No","",IF(N104="Use Default",IF($F$1="Non-PTE",$AB$5,$AA$5),"")) ->  | P104: Use Default | Q104: =IF(A104="No","",(IF(P104="Use Default",IF($F$1="Non-PTE",$AB$6,$AA$6),""))) ->  | S104: Use Default | T104: =IF(A104="No","",IF(S104="Use Default",IF('MCC Model '!$F$1="Non-PTE",$AB$7,$AA$7),"")) ->  | U104: =IF(A104="No","",0.66) ->  | V104: =IF(A104="Yes",(IF(BA104<0,0,BA104)),"") ->  | W104: =IF(A104="Yes",V104*C104*D104,"") ->  | AA104: =IF(F94="Non-PTE",AB101,AA101) -> 6 | AB104: =IF(AND(N104="Use Default",P104="Use Default"),Q104/O104,IF(AND(N104="Use Local Value",P104="Use Default"),Q104/O105,IF(AND(N104="Use Default",P104="Use Local Value"),Q105/O104,IF(AND(N104="Use Local Value",P104="Use Local Value"),Q105/O105))))*IF($M104="",$M105,$M104)/IF($Q104="",Q105,$Q104) ->  | AC104: =AA104*AB104 ->  | AD104: =1/IF(Q104="",Q105,Q104) ->  | AE104: =AA104*((AC104+AD104)/AC104)^E104 ->  | AF104: =AA104/((IF(K104="",K105,K104)/(IF(Q104="",Q105,Q104)*2))) ->  | AG104: =AF104/2 ->  | AH104: =AE104/((IF(K104="",K105,K104)/(IF(Q104="",Q105,Q104)*2))) ->  | AI104: =AH104/2 ->  | AJ104: =AI104-AG104 ->  | AK104: =AJ104*IF(F104="Use Default",G104,G105) ->  | AL104: =AA104*IF(K104="",K105,K104)/((IF(K104="",K105,K104)/(IF(Q104="",Q105,Q104)*2))) ->  | AM104: =AL104/2 ->  | AN104: =AE104*IF(K104="",K105,K104)/((IF(K104="",K105,K104)/(IF(Q104="",Q105,Q104)*2))) ->  | AO104: =AN104/2 ->  | AP104: =AO104-AM104 ->  | AQ104: =AP104*IF(H104="Use Default",I104,I105) ->  | AR104: =AQ104+AK104 ->  | AS104: =(AE104-AA104)/AA104 ->  | AT104: =AS104*U104 ->  | AU104: =AC104*IF(Q104="",Q105,Q104)*2 ->  | AV104: =AU104/2 ->  | AW104: =AV104*IF(T104="",T105,T104) ->  | AX104: =AW104*AT104 ->  | AY104: =AX104*R104 ->  | AZ104: =AX104*'AC model'!$D$18 ->  | BA104: =AR104-AY104+AZ104 -> 
F105: =IF(F104="Use Local Value", "Enter Local Value","") ->  | H105: =IF(H104="Use Local Value", "Enter Local Value","") ->  | J105: =IF(J104="Use Local Value", "Enter Local Value","") ->  | L105: =IF(L104="Use Local Value","Enter Local Value","") ->  | N105: =IF(N104="Use Local Value","Enter Local Value","") ->  | P105: =IF(P104="Use Local Value","Enter Local Value","") ->  | S105: =IF(S104="Use Local Value", "Enter Local Value","") -> 
A107: No | B107: <Add network desc> | C107: =IF(A107="No","",1-'RF model'!$C$14) ->  | E107: =IF(A107="No","",0.6) ->  | F107: Use Default | G107: =IF(A107="No","",IF(F107="Use Default",13.3*(VLOOKUP('Start Page'!$G$4,'RF Workings'!$E$3:$G$21,2)/'RF Workings'!$F$7),"")) ->  | H107: Use Default | I107: =IF(A107="No","",IF(H107="Use Default",0.7*(VLOOKUP('Start Page'!$G$4,'RF Workings'!$E$3:$G$21,2)/'RF Workings'!$F$7),"")) ->  | J107: Use Default | K107: =IF(A107="No","",IF(J107="Use Default",IF($F$1="Non-PTE",$AB$3,$AA$3),"")) ->  | L107: Use Default | M107: =IF(A107="No","",IF(L107="Use Default",IF($F$1="Non-PTE",$AB$4,$AA$4),"")) ->  | N107: Use Default | O107: =IF(A107="No","",IF(N107="Use Default",IF($F$1="Non-PTE",$AB$5,$AA$5),"")) ->  | P107: Use Default | Q107: =IF(A107="No","",(IF(P107="Use Default",IF($F$1="Non-PTE",$AB$6,$AA$6),""))) ->  | S107: Use Default | T107: =IF(A107="No","",IF(S107="Use Default",IF('MCC Model '!$F$1="Non-PTE",$AB$7,$AA$7),"")) ->  | U107: =IF(A107="No","",0.66) ->  | V107: =IF(A107="Yes",(IF(BA107<0,0,BA107)),"") ->  | W107: =IF(A107="Yes",V107*C107*D107,"") ->  | AA107: =IF(F97="Non-PTE",AB104,AA104) -> 6 | AB107: =IF(AND(N107="Use Default",P107="Use Default"),Q107/O107,IF(AND(N107="Use Local Value",P107="Use Default"),Q107/O108,IF(AND(N107="Use Default",P107="Use Local Value"),Q108/O107,IF(AND(N107="Use Local Value",P107="Use Local Value"),Q108/O108))))*IF($M107="",$M108,$M107)/IF($Q107="",Q108,$Q107) ->  | AC107: =AA107*AB107 ->  | AD107: =1/IF(Q107="",Q108,Q107) ->  | AE107: =AA107*((AC107+AD107)/AC107)^E107 ->  | AF107: =AA107/((IF(K107="",K108,K107)/(IF(Q107="",Q108,Q107)*2))) ->  | AG107: =AF107/2 ->  | AH107: =AE107/((IF(K107="",K108,K107)/(IF(Q107="",Q108,Q107)*2))) ->  | AI107: =AH107/2 ->  | AJ107: =AI107-AG107 ->  | AK107: =AJ107*IF(F107="Use Default",G107,G108) ->  | AL107: =AA107*IF(K107="",K108,K107)/((IF(K107="",K108,K107)/(IF(Q107="",Q108,Q107)*2))) ->  | AM107: =AL107/2 ->  | AN107: =AE107*IF(K107="",K108,K107)/((IF(K107="",K108,K107)/(IF(Q107="",Q108,Q107)*2))) ->  | AO107: =AN107/2 ->  | AP107: =AO107-AM107 ->  | AQ107: =AP107*IF(H107="Use Default",I107,I108) ->  | AR107: =AQ107+AK107 ->  | AS107: =(AE107-AA107)/AA107 ->  | AT107: =AS107*U107 ->  | AU107: =AC107*IF(Q107="",Q108,Q107)*2 ->  | AV107: =AU107/2 ->  | AW107: =AV107*IF(T107="",T108,T107) ->  | AX107: =AW107*AT107 ->  | AY107: =AX107*R107 ->  | AZ107: =AX107*'AC model'!$D$18 ->  | BA107: =AR107-AY107+AZ107 -> 
F108: =IF(F107="Use Local Value", "Enter Local Value","") ->  | H108: =IF(H107="Use Local Value", "Enter Local Value","") ->  | J108: =IF(J107="Use Local Value", "Enter Local Value","") ->  | L108: =IF(L107="Use Local Value","Enter Local Value","") ->  | N108: =IF(N107="Use Local Value","Enter Local Value","") ->  | P108: =IF(P107="Use Local Value","Enter Local Value","") ->  | S108: =IF(S107="Use Local Value", "Enter Local Value","") -> 
A110: No | B110: <Add network desc> | C110: =IF(A110="No","",1-'RF model'!$C$14) ->  | E110: =IF(A110="No","",0.6) ->  | F110: Use Default | G110: =IF(A110="No","",IF(F110="Use Default",13.3*(VLOOKUP('Start Page'!$G$4,'RF Workings'!$E$3:$G$21,2)/'RF Workings'!$F$7),"")) ->  | H110: Use Default | I110: =IF(A110="No","",IF(H110="Use Default",0.7*(VLOOKUP('Start Page'!$G$4,'RF Workings'!$E$3:$G$21,2)/'RF Workings'!$F$7),"")) ->  | J110: Use Default | K110: =IF(A110="No","",IF(J110="Use Default",IF($F$1="Non-PTE",$AB$3,$AA$3),"")) ->  | L110: Use Default | M110: =IF(A110="No","",IF(L110="Use Default",IF($F$1="Non-PTE",$AB$4,$AA$4),"")) ->  | N110: Use Default | O110: =IF(A110="No","",IF(N110="Use Default",IF($F$1="Non-PTE",$AB$5,$AA$5),"")) ->  | P110: Use Default | Q110: =IF(A110="No","",(IF(P110="Use Default",IF($F$1="Non-PTE",$AB$6,$AA$6),""))) ->  | S110: Use Default | T110: =IF(A110="No","",IF(S110="Use Default",IF('MCC Model '!$F$1="Non-PTE",$AB$7,$AA$7),"")) ->  | U110: =IF(A110="No","",0.66) ->  | V110: =IF(A110="Yes",(IF(BA110<0,0,BA110)),"") ->  | W110: =IF(A110="Yes",V110*C110*D110,"") ->  | AA110: =IF(F100="Non-PTE",AB107,AA107) -> 6 | AB110: =IF(AND(N110="Use Default",P110="Use Default"),Q110/O110,IF(AND(N110="Use Local Value",P110="Use Default"),Q110/O111,IF(AND(N110="Use Default",P110="Use Local Value"),Q111/O110,IF(AND(N110="Use Local Value",P110="Use Local Value"),Q111/O111))))*IF($M110="",$M111,$M110)/IF($Q110="",Q111,$Q110) ->  | AC110: =AA110*AB110 ->  | AD110: =1/IF(Q110="",Q111,Q110) ->  | AE110: =AA110*((AC110+AD110)/AC110)^E110 ->  | AF110: =AA110/((IF(K110="",K111,K110)/(IF(Q110="",Q111,Q110)*2))) ->  | AG110: =AF110/2 ->  | AH110: =AE110/((IF(K110="",K111,K110)/(IF(Q110="",Q111,Q110)*2))) ->  | AI110: =AH110/2 ->  | AJ110: =AI110-AG110 ->  | AK110: =AJ110*IF(F110="Use Default",G110,G111) ->  | AL110: =AA110*IF(K110="",K111,K110)/((IF(K110="",K111,K110)/(IF(Q110="",Q111,Q110)*2))) ->  | AM110: =AL110/2 ->  | AN110: =AE110*IF(K110="",K111,K110)/((IF(K110="",K111,K110)/(IF(Q110="",Q111,Q110)*2))) ->  | AO110: =AN110/2 ->  | AP110: =AO110-AM110 ->  | AQ110: =AP110*IF(H110="Use Default",I110,I111) ->  | AR110: =AQ110+AK110 ->  | AS110: =(AE110-AA110)/AA110 ->  | AT110: =AS110*U110 ->  | AU110: =AC110*IF(Q110="",Q111,Q110)*2 ->  | AV110: =AU110/2 ->  | AW110: =AV110*IF(T110="",T111,T110) ->  | AX110: =AW110*AT110 ->  | AY110: =AX110*R110 ->  | AZ110: =AX110*'AC model'!$D$18 ->  | BA110: =AR110-AY110+AZ110 -> 
F111: =IF(F110="Use Local Value", "Enter Local Value","") ->  | H111: =IF(H110="Use Local Value", "Enter Local Value","") ->  | J111: =IF(J110="Use Local Value", "Enter Local Value","") ->  | L111: =IF(L110="Use Local Value","Enter Local Value","") ->  | N111: =IF(N110="Use Local Value","Enter Local Value","") ->  | P111: =IF(P110="Use Local Value","Enter Local Value","") ->  | S111: =IF(S110="Use Local Value", "Enter Local Value","") -> 
A113: No | B113: <Add network desc> | C113: =IF(A113="No","",1-'RF model'!$C$14) ->  | E113: =IF(A113="No","",0.6) ->  | F113: Use Default | G113: =IF(A113="No","",IF(F113="Use Default",13.3*(VLOOKUP('Start Page'!$G$4,'RF Workings'!$E$3:$G$21,2)/'RF Workings'!$F$7),"")) ->  | H113: Use Default | I113: =IF(A113="No","",IF(H113="Use Default",0.7*(VLOOKUP('Start Page'!$G$4,'RF Workings'!$E$3:$G$21,2)/'RF Workings'!$F$7),"")) ->  | J113: Use Default | K113: =IF(A113="No","",IF(J113="Use Default",IF($F$1="Non-PTE",$AB$3,$AA$3),"")) ->  | L113: Use Default | M113: =IF(A113="No","",IF(L113="Use Default",IF($F$1="Non-PTE",$AB$4,$AA$4),"")) ->  | N113: Use Default | O113: =IF(A113="No","",IF(N113="Use Default",IF($F$1="Non-PTE",$AB$5,$AA$5),"")) ->  | P113: Use Default | Q113: =IF(A113="No","",(IF(P113="Use Default",IF($F$1="Non-PTE",$AB$6,$AA$6),""))) ->  | S113: Use Default | T113: =IF(A113="No","",IF(S113="Use Default",IF('MCC Model '!$F$1="Non-PTE",$AB$7,$AA$7),"")) ->  | U113: =IF(A113="No","",0.66) ->  | V113: =IF(A113="Yes",(IF(BA113<0,0,BA113)),"") ->  | W113: =IF(A113="Yes",V113*C113*D113,"") ->  | AA113: =IF(F103="Non-PTE",AB110,AA110) -> 6 | AB113: =IF(AND(N113="Use Default",P113="Use Default"),Q113/O113,IF(AND(N113="Use Local Value",P113="Use Default"),Q113/O114,IF(AND(N113="Use Default",P113="Use Local Value"),Q114/O113,IF(AND(N113="Use Local Value",P113="Use Local Value"),Q114/O114))))*IF($M113="",$M114,$M113)/IF($Q113="",Q114,$Q113) ->  | AC113: =AA113*AB113 ->  | AD113: =1/IF(Q113="",Q114,Q113) ->  | AE113: =AA113*((AC113+AD113)/AC113)^E113 ->  | AF113: =AA113/((IF(K113="",K114,K113)/(IF(Q113="",Q114,Q113)*2))) ->  | AG113: =AF113/2 ->  | AH113: =AE113/((IF(K113="",K114,K113)/(IF(Q113="",Q114,Q113)*2))) ->  | AI113: =AH113/2 ->  | AJ113: =AI113-AG113 ->  | AK113: =AJ113*IF(F113="Use Default",G113,G114) ->  | AL113: =AA113*IF(K113="",K114,K113)/((IF(K113="",K114,K113)/(IF(Q113="",Q114,Q113)*2))) ->  | AM113: =AL113/2 ->  | AN113: =AE113*IF(K113="",K114,K113)/((IF(K113="",K114,K113)/(IF(Q113="",Q114,Q113)*2))) ->  | AO113: =AN113/2 ->  | AP113: =AO113-AM113 ->  | AQ113: =AP113*IF(H113="Use Default",I113,I114) ->  | AR113: =AQ113+AK113 ->  | AS113: =(AE113-AA113)/AA113 ->  | AT113: =AS113*U113 ->  | AU113: =AC113*IF(Q113="",Q114,Q113)*2 ->  | AV113: =AU113/2 ->  | AW113: =AV113*IF(T113="",T114,T113) ->  | AX113: =AW113*AT113 ->  | AY113: =AX113*R113 ->  | AZ113: =AX113*'AC model'!$D$18 ->  | BA113: =AR113-AY113+AZ113 -> 
F114: =IF(F113="Use Local Value", "Enter Local Value","") ->  | H114: =IF(H113="Use Local Value", "Enter Local Value","") ->  | J114: =IF(J113="Use Local Value", "Enter Local Value","") ->  | L114: =IF(L113="Use Local Value","Enter Local Value","") ->  | N114: =IF(N113="Use Local Value","Enter Local Value","") ->  | P114: =IF(P113="Use Local Value","Enter Local Value","") ->  | S114: =IF(S113="Use Local Value", "Enter Local Value","") -> 
A116: No | B116: <Add network desc> | C116: =IF(A116="No","",1-'RF model'!$C$14) ->  | E116: =IF(A116="No","",0.6) ->  | F116: Use Default | G116: =IF(A116="No","",IF(F116="Use Default",13.3*(VLOOKUP('Start Page'!$G$4,'RF Workings'!$E$3:$G$21,2)/'RF Workings'!$F$7),"")) ->  | H116: Use Default | I116: =IF(A116="No","",IF(H116="Use Default",0.7*(VLOOKUP('Start Page'!$G$4,'RF Workings'!$E$3:$G$21,2)/'RF Workings'!$F$7),"")) ->  | J116: Use Default | K116: =IF(A116="No","",IF(J116="Use Default",IF($F$1="Non-PTE",$AB$3,$AA$3),"")) ->  | L116: Use Default | M116: =IF(A116="No","",IF(L116="Use Default",IF($F$1="Non-PTE",$AB$4,$AA$4),"")) ->  | N116: Use Default | O116: =IF(A116="No","",IF(N116="Use Default",IF($F$1="Non-PTE",$AB$5,$AA$5),"")) ->  | P116: Use Default | Q116: =IF(A116="No","",(IF(P116="Use Default",IF($F$1="Non-PTE",$AB$6,$AA$6),""))) ->  | S116: Use Default | T116: =IF(A116="No","",IF(S116="Use Default",IF('MCC Model '!$F$1="Non-PTE",$AB$7,$AA$7),"")) ->  | U116: =IF(A116="No","",0.66) ->  | V116: =IF(A116="Yes",(IF(BA116<0,0,BA116)),"") ->  | W116: =IF(A116="Yes",V116*C116*D116,"") ->  | AA116: =IF(F106="Non-PTE",AB113,AA113) -> 6 | AB116: =IF(AND(N116="Use Default",P116="Use Default"),Q116/O116,IF(AND(N116="Use Local Value",P116="Use Default"),Q116/O117,IF(AND(N116="Use Default",P116="Use Local Value"),Q117/O116,IF(AND(N116="Use Local Value",P116="Use Local Value"),Q117/O117))))*IF($M116="",$M117,$M116)/IF($Q116="",Q117,$Q116) ->  | AC116: =AA116*AB116 ->  | AD116: =1/IF(Q116="",Q117,Q116) ->  | AE116: =AA116*((AC116+AD116)/AC116)^E116 ->  | AF116: =AA116/((IF(K116="",K117,K116)/(IF(Q116="",Q117,Q116)*2))) ->  | AG116: =AF116/2 ->  | AH116: =AE116/((IF(K116="",K117,K116)/(IF(Q116="",Q117,Q116)*2))) ->  | AI116: =AH116/2 ->  | AJ116: =AI116-AG116 ->  | AK116: =AJ116*IF(F116="Use Default",G116,G117) ->  | AL116: =AA116*IF(K116="",K117,K116)/((IF(K116="",K117,K116)/(IF(Q116="",Q117,Q116)*2))) ->  | AM116: =AL116/2 ->  | AN116: =AE116*IF(K116="",K117,K116)/((IF(K116="",K117,K116)/(IF(Q116="",Q117,Q116)*2))) ->  | AO116: =AN116/2 ->  | AP116: =AO116-AM116 ->  | AQ116: =AP116*IF(H116="Use Default",I116,I117) ->  | AR116: =AQ116+AK116 ->  | AS116: =(AE116-AA116)/AA116 ->  | AT116: =AS116*U116 ->  | AU116: =AC116*IF(Q116="",Q117,Q116)*2 ->  | AV116: =AU116/2 ->  | AW116: =AV116*IF(T116="",T117,T116) ->  | AX116: =AW116*AT116 ->  | AY116: =AX116*R116 ->  | AZ116: =AX116*'AC model'!$D$18 ->  | BA116: =AR116-AY116+AZ116 -> 
F117: =IF(F116="Use Local Value", "Enter Local Value","") ->  | H117: =IF(H116="Use Local Value", "Enter Local Value","") ->  | J117: =IF(J116="Use Local Value", "Enter Local Value","") ->  | L117: =IF(L116="Use Local Value","Enter Local Value","") ->  | N117: =IF(N116="Use Local Value","Enter Local Value","") ->  | P117: =IF(P116="Use Local Value","Enter Local Value","") ->  | S117: =IF(S116="Use Local Value", "Enter Local Value","") -> 
A119: No | B119: <Add network desc> | C119: =IF(A119="No","",1-'RF model'!$C$14) ->  | E119: =IF(A119="No","",0.6) ->  | F119: Use Default | G119: =IF(A119="No","",IF(F119="Use Default",13.3*(VLOOKUP('Start Page'!$G$4,'RF Workings'!$E$3:$G$21,2)/'RF Workings'!$F$7),"")) ->  | H119: Use Default | I119: =IF(A119="No","",IF(H119="Use Default",0.7*(VLOOKUP('Start Page'!$G$4,'RF Workings'!$E$3:$G$21,2)/'RF Workings'!$F$7),"")) ->  | J119: Use Default | K119: =IF(A119="No","",IF(J119="Use Default",IF($F$1="Non-PTE",$AB$3,$AA$3),"")) ->  | L119: Use Default | M119: =IF(A119="No","",IF(L119="Use Default",IF($F$1="Non-PTE",$AB$4,$AA$4),"")) ->  | N119: Use Default | O119: =IF(A119="No","",IF(N119="Use Default",IF($F$1="Non-PTE",$AB$5,$AA$5),"")) ->  | P119: Use Default | Q119: =IF(A119="No","",(IF(P119="Use Default",IF($F$1="Non-PTE",$AB$6,$AA$6),""))) ->  | S119: Use Default | T119: =IF(A119="No","",IF(S119="Use Default",IF('MCC Model '!$F$1="Non-PTE",$AB$7,$AA$7),"")) ->  | U119: =IF(A119="No","",0.66) ->  | V119: =IF(A119="Yes",(IF(BA119<0,0,BA119)),"") ->  | W119: =IF(A119="Yes",V119*C119*D119,"") ->  | AA119: =IF(F109="Non-PTE",AB116,AA116) -> 6 | AB119: =IF(AND(N119="Use Default",P119="Use Default"),Q119/O119,IF(AND(N119="Use Local Value",P119="Use Default"),Q119/O120,IF(AND(N119="Use Default",P119="Use Local Value"),Q120/O119,IF(AND(N119="Use Local Value",P119="Use Local Value"),Q120/O120))))*IF($M119="",$M120,$M119)/IF($Q119="",Q120,$Q119) ->  | AC119: =AA119*AB119 ->  | AD119: =1/IF(Q119="",Q120,Q119) ->  | AE119: =AA119*((AC119+AD119)/AC119)^E119 ->  | AF119: =AA119/((IF(K119="",K120,K119)/(IF(Q119="",Q120,Q119)*2))) ->  | AG119: =AF119/2 ->  | AH119: =AE119/((IF(K119="",K120,K119)/(IF(Q119="",Q120,Q119)*2))) ->  | AI119: =AH119/2 ->  | AJ119: =AI119-AG119 ->  | AK119: =AJ119*IF(F119="Use Default",G119,G120) ->  | AL119: =AA119*IF(K119="",K120,K119)/((IF(K119="",K120,K119)/(IF(Q119="",Q120,Q119)*2))) ->  | AM119: =AL119/2 ->  | AN119: =AE119*IF(K119="",K120,K119)/((IF(K119="",K120,K119)/(IF(Q119="",Q120,Q119)*2))) ->  | AO119: =AN119/2 ->  | AP119: =AO119-AM119 ->  | AQ119: =AP119*IF(H119="Use Default",I119,I120) ->  | AR119: =AQ119+AK119 ->  | AS119: =(AE119-AA119)/AA119 ->  | AT119: =AS119*U119 ->  | AU119: =AC119*IF(Q119="",Q120,Q119)*2 ->  | AV119: =AU119/2 ->  | AW119: =AV119*IF(T119="",T120,T119) ->  | AX119: =AW119*AT119 ->  | AY119: =AX119*R119 ->  | AZ119: =AX119*'AC model'!$D$18 ->  | BA119: =AR119-AY119+AZ119 -> 
F120: =IF(F119="Use Local Value", "Enter Local Value","") ->  | H120: =IF(H119="Use Local Value", "Enter Local Value","") ->  | J120: =IF(J119="Use Local Value", "Enter Local Value","") ->  | L120: =IF(L119="Use Local Value","Enter Local Value","") ->  | N120: =IF(N119="Use Local Value","Enter Local Value","") ->  | P120: =IF(P119="Use Local Value","Enter Local Value","") ->  | S120: =IF(S119="Use Local Value", "Enter Local Value","") -> 
A122: No | B122: <Add network desc> | C122: =IF(A122="No","",1-'RF model'!$C$14) ->  | E122: =IF(A122="No","",0.6) ->  | F122: Use Default | G122: =IF(A122="No","",IF(F122="Use Default",13.3*(VLOOKUP('Start Page'!$G$4,'RF Workings'!$E$3:$G$21,2)/'RF Workings'!$F$7),"")) ->  | H122: Use Default | I122: =IF(A122="No","",IF(H122="Use Default",0.7*(VLOOKUP('Start Page'!$G$4,'RF Workings'!$E$3:$G$21,2)/'RF Workings'!$F$7),"")) ->  | J122: Use Default | K122: =IF(A122="No","",IF(J122="Use Default",IF($F$1="Non-PTE",$AB$3,$AA$3),"")) ->  | L122: Use Default | M122: =IF(A122="No","",IF(L122="Use Default",IF($F$1="Non-PTE",$AB$4,$AA$4),"")) ->  | N122: Use Default | O122: =IF(A122="No","",IF(N122="Use Default",IF($F$1="Non-PTE",$AB$5,$AA$5),"")) ->  | P122: Use Default | Q122: =IF(A122="No","",(IF(P122="Use Default",IF($F$1="Non-PTE",$AB$6,$AA$6),""))) ->  | S122: Use Default | T122: =IF(A122="No","",IF(S122="Use Default",IF('MCC Model '!$F$1="Non-PTE",$AB$7,$AA$7),"")) ->  | U122: =IF(A122="No","",0.66) ->  | V122: =IF(A122="Yes",(IF(BA122<0,0,BA122)),"") ->  | W122: =IF(A122="Yes",V122*C122*D122,"") ->  | AA122: =IF(F112="Non-PTE",AB119,AA119) -> 6 | AB122: =IF(AND(N122="Use Default",P122="Use Default"),Q122/O122,IF(AND(N122="Use Local Value",P122="Use Default"),Q122/O123,IF(AND(N122="Use Default",P122="Use Local Value"),Q123/O122,IF(AND(N122="Use Local Value",P122="Use Local Value"),Q123/O123))))*IF($M122="",$M123,$M122)/IF($Q122="",Q123,$Q122) ->  | AC122: =AA122*AB122 ->  | AD122: =1/IF(Q122="",Q123,Q122) ->  | AE122: =AA122*((AC122+AD122)/AC122)^E122 ->  | AF122: =AA122/((IF(K122="",K123,K122)/(IF(Q122="",Q123,Q122)*2))) ->  | AG122: =AF122/2 ->  | AH122: =AE122/((IF(K122="",K123,K122)/(IF(Q122="",Q123,Q122)*2))) ->  | AI122: =AH122/2 ->  | AJ122: =AI122-AG122 ->  | AK122: =AJ122*IF(F122="Use Default",G122,G123) ->  | AL122: =AA122*IF(K122="",K123,K122)/((IF(K122="",K123,K122)/(IF(Q122="",Q123,Q122)*2))) ->  | AM122: =AL122/2 ->  | AN122: =AE122*IF(K122="",K123,K122)/((IF(K122="",K123,K122)/(IF(Q122="",Q123,Q122)*2))) ->  | AO122: =AN122/2 ->  | AP122: =AO122-AM122 ->  | AQ122: =AP122*IF(H122="Use Default",I122,I123) ->  | AR122: =AQ122+AK122 ->  | AS122: =(AE122-AA122)/AA122 ->  | AT122: =AS122*U122 ->  | AU122: =AC122*IF(Q122="",Q123,Q122)*2 ->  | AV122: =AU122/2 ->  | AW122: =AV122*IF(T122="",T123,T122) ->  | AX122: =AW122*AT122 ->  | AY122: =AX122*R122 ->  | AZ122: =AX122*'AC model'!$D$18 ->  | BA122: =AR122-AY122+AZ122 -> 
F123: =IF(F122="Use Local Value", "Enter Local Value","") ->  | H123: =IF(H122="Use Local Value", "Enter Local Value","") ->  | J123: =IF(J122="Use Local Value", "Enter Local Value","") ->  | L123: =IF(L122="Use Local Value","Enter Local Value","") ->  | N123: =IF(N122="Use Local Value","Enter Local Value","") ->  | P123: =IF(P122="Use Local Value","Enter Local Value","") ->  | S123: =IF(S122="Use Local Value", "Enter Local Value","") -> 
A125: No | B125: <Add network desc> | C125: =IF(A125="No","",1-'RF model'!$C$14) ->  | E125: =IF(A125="No","",0.6) ->  | F125: Use Default | G125: =IF(A125="No","",IF(F125="Use Default",13.3*(VLOOKUP('Start Page'!$G$4,'RF Workings'!$E$3:$G$21,2)/'RF Workings'!$F$7),"")) ->  | H125: Use Default | I125: =IF(A125="No","",IF(H125="Use Default",0.7*(VLOOKUP('Start Page'!$G$4,'RF Workings'!$E$3:$G$21,2)/'RF Workings'!$F$7),"")) ->  | J125: Use Default | K125: =IF(A125="No","",IF(J125="Use Default",IF($F$1="Non-PTE",$AB$3,$AA$3),"")) ->  | L125: Use Default | M125: =IF(A125="No","",IF(L125="Use Default",IF($F$1="Non-PTE",$AB$4,$AA$4),"")) ->  | N125: Use Default | O125: =IF(A125="No","",IF(N125="Use Default",IF($F$1="Non-PTE",$AB$5,$AA$5),"")) ->  | P125: Use Default | Q125: =IF(A125="No","",(IF(P125="Use Default",IF($F$1="Non-PTE",$AB$6,$AA$6),""))) ->  | S125: Use Default | T125: =IF(A125="No","",IF(S125="Use Default",IF('MCC Model '!$F$1="Non-PTE",$AB$7,$AA$7),"")) ->  | U125: =IF(A125="No","",0.66) ->  | V125: =IF(A125="Yes",(IF(BA125<0,0,BA125)),"") ->  | W125: =IF(A125="Yes",V125*C125*D125,"") ->  | AA125: =IF(F115="Non-PTE",AB122,AA122) -> 6 | AB125: =IF(AND(N125="Use Default",P125="Use Default"),Q125/O125,IF(AND(N125="Use Local Value",P125="Use Default"),Q125/O126,IF(AND(N125="Use Default",P125="Use Local Value"),Q126/O125,IF(AND(N125="Use Local Value",P125="Use Local Value"),Q126/O126))))*IF($M125="",$M126,$M125)/IF($Q125="",Q126,$Q125) ->  | AC125: =AA125*AB125 ->  | AD125: =1/IF(Q125="",Q126,Q125) ->  | AE125: =AA125*((AC125+AD125)/AC125)^E125 ->  | AF125: =AA125/((IF(K125="",K126,K125)/(IF(Q125="",Q126,Q125)*2))) ->  | AG125: =AF125/2 ->  | AH125: =AE125/((IF(K125="",K126,K125)/(IF(Q125="",Q126,Q125)*2))) ->  | AI125: =AH125/2 ->  | AJ125: =AI125-AG125 ->  | AK125: =AJ125*IF(F125="Use Default",G125,G126) ->  | AL125: =AA125*IF(K125="",K126,K125)/((IF(K125="",K126,K125)/(IF(Q125="",Q126,Q125)*2))) ->  | AM125: =AL125/2 ->  | AN125: =AE125*IF(K125="",K126,K125)/((IF(K125="",K126,K125)/(IF(Q125="",Q126,Q125)*2))) ->  | AO125: =AN125/2 ->  | AP125: =AO125-AM125 ->  | AQ125: =AP125*IF(H125="Use Default",I125,I126) ->  | AR125: =AQ125+AK125 ->  | AS125: =(AE125-AA125)/AA125 ->  | AT125: =AS125*U125 ->  | AU125: =AC125*IF(Q125="",Q126,Q125)*2 ->  | AV125: =AU125/2 ->  | AW125: =AV125*IF(T125="",T126,T125) ->  | AX125: =AW125*AT125 ->  | AY125: =AX125*R125 ->  | AZ125: =AX125*'AC model'!$D$18 ->  | BA125: =AR125-AY125+AZ125 -> 
F126: =IF(F125="Use Local Value", "Enter Local Value","") ->  | H126: =IF(H125="Use Local Value", "Enter Local Value","") ->  | J126: =IF(J125="Use Local Value", "Enter Local Value","") ->  | L126: =IF(L125="Use Local Value","Enter Local Value","") ->  | N126: =IF(N125="Use Local Value","Enter Local Value","") ->  | P126: =IF(P125="Use Local Value","Enter Local Value","") ->  | S126: =IF(S125="Use Local Value", "Enter Local Value","") -> 
A128: No | B128: <Add network desc> | C128: =IF(A128="No","",1-'RF model'!$C$14) ->  | E128: =IF(A128="No","",0.6) ->  | F128: Use Default | G128: =IF(A128="No","",IF(F128="Use Default",13.3*(VLOOKUP('Start Page'!$G$4,'RF Workings'!$E$3:$G$21,2)/'RF Workings'!$F$7),"")) ->  | H128: Use Default | I128: =IF(A128="No","",IF(H128="Use Default",0.7*(VLOOKUP('Start Page'!$G$4,'RF Workings'!$E$3:$G$21,2)/'RF Workings'!$F$7),"")) ->  | J128: Use Default | K128: =IF(A128="No","",IF(J128="Use Default",IF($F$1="Non-PTE",$AB$3,$AA$3),"")) ->  | L128: Use Default | M128: =IF(A128="No","",IF(L128="Use Default",IF($F$1="Non-PTE",$AB$4,$AA$4),"")) ->  | N128: Use Default | O128: =IF(A128="No","",IF(N128="Use Default",IF($F$1="Non-PTE",$AB$5,$AA$5),"")) ->  | P128: Use Default | Q128: =IF(A128="No","",(IF(P128="Use Default",IF($F$1="Non-PTE",$AB$6,$AA$6),""))) ->  | S128: Use Default | T128: =IF(A128="No","",IF(S128="Use Default",IF('MCC Model '!$F$1="Non-PTE",$AB$7,$AA$7),"")) ->  | U128: =IF(A128="No","",0.66) ->  | V128: =IF(A128="Yes",(IF(BA128<0,0,BA128)),"") ->  | W128: =IF(A128="Yes",V128*C128*D128,"") ->  | AA128: =IF(F118="Non-PTE",AB125,AA125) -> 6 | AB128: =IF(AND(N128="Use Default",P128="Use Default"),Q128/O128,IF(AND(N128="Use Local Value",P128="Use Default"),Q128/O129,IF(AND(N128="Use Default",P128="Use Local Value"),Q129/O128,IF(AND(N128="Use Local Value",P128="Use Local Value"),Q129/O129))))*IF($M128="",$M129,$M128)/IF($Q128="",Q129,$Q128) ->  | AC128: =AA128*AB128 ->  | AD128: =1/IF(Q128="",Q129,Q128) ->  | AE128: =AA128*((AC128+AD128)/AC128)^E128 ->  | AF128: =AA128/((IF(K128="",K129,K128)/(IF(Q128="",Q129,Q128)*2))) ->  | AG128: =AF128/2 ->  | AH128: =AE128/((IF(K128="",K129,K128)/(IF(Q128="",Q129,Q128)*2))) ->  | AI128: =AH128/2 ->  | AJ128: =AI128-AG128 ->  | AK128: =AJ128*IF(F128="Use Default",G128,G129) ->  | AL128: =AA128*IF(K128="",K129,K128)/((IF(K128="",K129,K128)/(IF(Q128="",Q129,Q128)*2))) ->  | AM128: =AL128/2 ->  | AN128: =AE128*IF(K128="",K129,K128)/((IF(K128="",K129,K128)/(IF(Q128="",Q129,Q128)*2))) ->  | AO128: =AN128/2 ->  | AP128: =AO128-AM128 ->  | AQ128: =AP128*IF(H128="Use Default",I128,I129) ->  | AR128: =AQ128+AK128 ->  | AS128: =(AE128-AA128)/AA128 ->  | AT128: =AS128*U128 ->  | AU128: =AC128*IF(Q128="",Q129,Q128)*2 ->  | AV128: =AU128/2 ->  | AW128: =AV128*IF(T128="",T129,T128) ->  | AX128: =AW128*AT128 ->  | AY128: =AX128*R128 ->  | AZ128: =AX128*'AC model'!$D$18 ->  | BA128: =AR128-AY128+AZ128 -> 
F129: =IF(F128="Use Local Value", "Enter Local Value","") ->  | H129: =IF(H128="Use Local Value", "Enter Local Value","") ->  | J129: =IF(J128="Use Local Value", "Enter Local Value","") ->  | L129: =IF(L128="Use Local Value","Enter Local Value","") ->  | N129: =IF(N128="Use Local Value","Enter Local Value","") ->  | P129: =IF(P128="Use Local Value","Enter Local Value","") ->  | S129: =IF(S128="Use Local Value", "Enter Local Value","") -> 
A131: No | B131: <Add network desc> | C131: =IF(A131="No","",1-'RF model'!$C$14) ->  | E131: =IF(A131="No","",0.6) ->  | F131: Use Default | G131: =IF(A131="No","",IF(F131="Use Default",13.3*(VLOOKUP('Start Page'!$G$4,'RF Workings'!$E$3:$G$21,2)/'RF Workings'!$F$7),"")) ->  | H131: Use Default | I131: =IF(A131="No","",IF(H131="Use Default",0.7*(VLOOKUP('Start Page'!$G$4,'RF Workings'!$E$3:$G$21,2)/'RF Workings'!$F$7),"")) ->  | J131: Use Default | K131: =IF(A131="No","",IF(J131="Use Default",IF($F$1="Non-PTE",$AB$3,$AA$3),"")) ->  | L131: Use Default | M131: =IF(A131="No","",IF(L131="Use Default",IF($F$1="Non-PTE",$AB$4,$AA$4),"")) ->  | N131: Use Default | O131: =IF(A131="No","",IF(N131="Use Default",IF($F$1="Non-PTE",$AB$5,$AA$5),"")) ->  | P131: Use Default | Q131: =IF(A131="No","",(IF(P131="Use Default",IF($F$1="Non-PTE",$AB$6,$AA$6),""))) ->  | S131: Use Default | T131: =IF(A131="No","",IF(S131="Use Default",IF('MCC Model '!$F$1="Non-PTE",$AB$7,$AA$7),"")) ->  | U131: =IF(A131="No","",0.66) ->  | V131: =IF(A131="Yes",(IF(BA131<0,0,BA131)),"") ->  | W131: =IF(A131="Yes",V131*C131*D131,"") ->  | AA131: =IF(F121="Non-PTE",AB128,AA128) -> 6 | AB131: =IF(AND(N131="Use Default",P131="Use Default"),Q131/O131,IF(AND(N131="Use Local Value",P131="Use Default"),Q131/O132,IF(AND(N131="Use Default",P131="Use Local Value"),Q132/O131,IF(AND(N131="Use Local Value",P131="Use Local Value"),Q132/O132))))*IF($M131="",$M132,$M131)/IF($Q131="",Q132,$Q131) ->  | AC131: =AA131*AB131 ->  | AD131: =1/IF(Q131="",Q132,Q131) ->  | AE131: =AA131*((AC131+AD131)/AC131)^E131 ->  | AF131: =AA131/((IF(K131="",K132,K131)/(IF(Q131="",Q132,Q131)*2))) ->  | AG131: =AF131/2 ->  | AH131: =AE131/((IF(K131="",K132,K131)/(IF(Q131="",Q132,Q131)*2))) ->  | AI131: =AH131/2 ->  | AJ131: =AI131-AG131 ->  | AK131: =AJ131*IF(F131="Use Default",G131,G132) ->  | AL131: =AA131*IF(K131="",K132,K131)/((IF(K131="",K132,K131)/(IF(Q131="",Q132,Q131)*2))) ->  | AM131: =AL131/2 ->  | AN131: =AE131*IF(K131="",K132,K131)/((IF(K131="",K132,K131)/(IF(Q131="",Q132,Q131)*2))) ->  | AO131: =AN131/2 ->  | AP131: =AO131-AM131 ->  | AQ131: =AP131*IF(H131="Use Default",I131,I132) ->  | AR131: =AQ131+AK131 ->  | AS131: =(AE131-AA131)/AA131 ->  | AT131: =AS131*U131 ->  | AU131: =AC131*IF(Q131="",Q132,Q131)*2 ->  | AV131: =AU131/2 ->  | AW131: =AV131*IF(T131="",T132,T131) ->  | AX131: =AW131*AT131 ->  | AY131: =AX131*R131 ->  | AZ131: =AX131*'AC model'!$D$18 ->  | BA131: =AR131-AY131+AZ131 -> 
F132: =IF(F131="Use Local Value", "Enter Local Value","") ->  | H132: =IF(H131="Use Local Value", "Enter Local Value","") ->  | J132: =IF(J131="Use Local Value", "Enter Local Value","") ->  | L132: =IF(L131="Use Local Value","Enter Local Value","") ->  | N132: =IF(N131="Use Local Value","Enter Local Value","") ->  | P132: =IF(P131="Use Local Value","Enter Local Value","") ->  | S132: =IF(S131="Use Local Value", "Enter Local Value","") -> 
A134: No | B134: <Add network desc> | C134: =IF(A134="No","",1-'RF model'!$C$14) ->  | E134: =IF(A134="No","",0.6) ->  | F134: Use Default | G134: =IF(A134="No","",IF(F134="Use Default",13.3*(VLOOKUP('Start Page'!$G$4,'RF Workings'!$E$3:$G$21,2)/'RF Workings'!$F$7),"")) ->  | H134: Use Default | I134: =IF(A134="No","",IF(H134="Use Default",0.7*(VLOOKUP('Start Page'!$G$4,'RF Workings'!$E$3:$G$21,2)/'RF Workings'!$F$7),"")) ->  | J134: Use Default | K134: =IF(A134="No","",IF(J134="Use Default",IF($F$1="Non-PTE",$AB$3,$AA$3),"")) ->  | L134: Use Default | M134: =IF(A134="No","",IF(L134="Use Default",IF($F$1="Non-PTE",$AB$4,$AA$4),"")) ->  | N134: Use Default | O134: =IF(A134="No","",IF(N134="Use Default",IF($F$1="Non-PTE",$AB$5,$AA$5),"")) ->  | P134: Use Default | Q134: =IF(A134="No","",(IF(P134="Use Default",IF($F$1="Non-PTE",$AB$6,$AA$6),""))) ->  | S134: Use Default | T134: =IF(A134="No","",IF(S134="Use Default",IF('MCC Model '!$F$1="Non-PTE",$AB$7,$AA$7),"")) ->  | U134: =IF(A134="No","",0.66) ->  | V134: =IF(A134="Yes",(IF(BA134<0,0,BA134)),"") ->  | W134: =IF(A134="Yes",V134*C134*D134,"") ->  | AA134: =IF(F124="Non-PTE",AB131,AA131) -> 6 | AB134: =IF(AND(N134="Use Default",P134="Use Default"),Q134/O134,IF(AND(N134="Use Local Value",P134="Use Default"),Q134/O135,IF(AND(N134="Use Default",P134="Use Local Value"),Q135/O134,IF(AND(N134="Use Local Value",P134="Use Local Value"),Q135/O135))))*IF($M134="",$M135,$M134)/IF($Q134="",Q135,$Q134) ->  | AC134: =AA134*AB134 ->  | AD134: =1/IF(Q134="",Q135,Q134) ->  | AE134: =AA134*((AC134+AD134)/AC134)^E134 ->  | AF134: =AA134/((IF(K134="",K135,K134)/(IF(Q134="",Q135,Q134)*2))) ->  | AG134: =AF134/2 ->  | AH134: =AE134/((IF(K134="",K135,K134)/(IF(Q134="",Q135,Q134)*2))) ->  | AI134: =AH134/2 ->  | AJ134: =AI134-AG134 ->  | AK134: =AJ134*IF(F134="Use Default",G134,G135) ->  | AL134: =AA134*IF(K134="",K135,K134)/((IF(K134="",K135,K134)/(IF(Q134="",Q135,Q134)*2))) ->  | AM134: =AL134/2 ->  | AN134: =AE134*IF(K134="",K135,K134)/((IF(K134="",K135,K134)/(IF(Q134="",Q135,Q134)*2))) ->  | AO134: =AN134/2 ->  | AP134: =AO134-AM134 ->  | AQ134: =AP134*IF(H134="Use Default",I134,I135) ->  | AR134: =AQ134+AK134 ->  | AS134: =(AE134-AA134)/AA134 ->  | AT134: =AS134*U134 ->  | AU134: =AC134*IF(Q134="",Q135,Q134)*2 ->  | AV134: =AU134/2 ->  | AW134: =AV134*IF(T134="",T135,T134) ->  | AX134: =AW134*AT134 ->  | AY134: =AX134*R134 ->  | AZ134: =AX134*'AC model'!$D$18 ->  | BA134: =AR134-AY134+AZ134 -> 
F135: =IF(F134="Use Local Value", "Enter Local Value","") ->  | H135: =IF(H134="Use Local Value", "Enter Local Value","") ->  | J135: =IF(J134="Use Local Value", "Enter Local Value","") ->  | L135: =IF(L134="Use Local Value","Enter Local Value","") ->  | N135: =IF(N134="Use Local Value","Enter Local Value","") ->  | P135: =IF(P134="Use Local Value","Enter Local Value","") ->  | S135: =IF(S134="Use Local Value", "Enter Local Value","") -> 
A137: No | B137: <Add network desc> | C137: =IF(A137="No","",1-'RF model'!$C$14) ->  | E137: =IF(A137="No","",0.6) ->  | F137: Use Default | G137: =IF(A137="No","",IF(F137="Use Default",13.3*(VLOOKUP('Start Page'!$G$4,'RF Workings'!$E$3:$G$21,2)/'RF Workings'!$F$7),"")) ->  | H137: Use Default | I137: =IF(A137="No","",IF(H137="Use Default",0.7*(VLOOKUP('Start Page'!$G$4,'RF Workings'!$E$3:$G$21,2)/'RF Workings'!$F$7),"")) ->  | J137: Use Default | K137: =IF(A137="No","",IF(J137="Use Default",IF($F$1="Non-PTE",$AB$3,$AA$3),"")) ->  | L137: Use Default | M137: =IF(A137="No","",IF(L137="Use Default",IF($F$1="Non-PTE",$AB$4,$AA$4),"")) ->  | N137: Use Default | O137: =IF(A137="No","",IF(N137="Use Default",IF($F$1="Non-PTE",$AB$5,$AA$5),"")) ->  | P137: Use Default | Q137: =IF(A137="No","",(IF(P137="Use Default",IF($F$1="Non-PTE",$AB$6,$AA$6),""))) ->  | S137: Use Default | T137: =IF(A137="No","",IF(S137="Use Default",IF('MCC Model '!$F$1="Non-PTE",$AB$7,$AA$7),"")) ->  | U137: =IF(A137="No","",0.66) ->  | V137: =IF(A137="Yes",(IF(BA137<0,0,BA137)),"") ->  | W137: =IF(A137="Yes",V137*C137*D137,"") ->  | AA137: =IF(F127="Non-PTE",AB134,AA134) -> 6 | AB137: =IF(AND(N137="Use Default",P137="Use Default"),Q137/O137,IF(AND(N137="Use Local Value",P137="Use Default"),Q137/O138,IF(AND(N137="Use Default",P137="Use Local Value"),Q138/O137,IF(AND(N137="Use Local Value",P137="Use Local Value"),Q138/O138))))*IF($M137="",$M138,$M137)/IF($Q137="",Q138,$Q137) ->  | AC137: =AA137*AB137 ->  | AD137: =1/IF(Q137="",Q138,Q137) ->  | AE137: =AA137*((AC137+AD137)/AC137)^E137 ->  | AF137: =AA137/((IF(K137="",K138,K137)/(IF(Q137="",Q138,Q137)*2))) ->  | AG137: =AF137/2 ->  | AH137: =AE137/((IF(K137="",K138,K137)/(IF(Q137="",Q138,Q137)*2))) ->  | AI137: =AH137/2 ->  | AJ137: =AI137-AG137 ->  | AK137: =AJ137*IF(F137="Use Default",G137,G138) ->  | AL137: =AA137*IF(K137="",K138,K137)/((IF(K137="",K138,K137)/(IF(Q137="",Q138,Q137)*2))) ->  | AM137: =AL137/2 ->  | AN137: =AE137*IF(K137="",K138,K137)/((IF(K137="",K138,K137)/(IF(Q137="",Q138,Q137)*2))) ->  | AO137: =AN137/2 ->  | AP137: =AO137-AM137 ->  | AQ137: =AP137*IF(H137="Use Default",I137,I138) ->  | AR137: =AQ137+AK137 ->  | AS137: =(AE137-AA137)/AA137 ->  | AT137: =AS137*U137 ->  | AU137: =AC137*IF(Q137="",Q138,Q137)*2 ->  | AV137: =AU137/2 ->  | AW137: =AV137*IF(T137="",T138,T137) ->  | AX137: =AW137*AT137 ->  | AY137: =AX137*R137 ->  | AZ137: =AX137*'AC model'!$D$18 ->  | BA137: =AR137-AY137+AZ137 -> 
F138: =IF(F137="Use Local Value", "Enter Local Value","") ->  | H138: =IF(H137="Use Local Value", "Enter Local Value","") ->  | J138: =IF(J137="Use Local Value", "Enter Local Value","") ->  | L138: =IF(L137="Use Local Value","Enter Local Value","") ->  | N138: =IF(N137="Use Local Value","Enter Local Value","") ->  | P138: =IF(P137="Use Local Value","Enter Local Value","") ->  | S138: =IF(S137="Use Local Value", "Enter Local Value","") -> 
A140: No | B140: <Add network desc> | C140: =IF(A140="No","",1-'RF model'!$C$14) ->  | E140: =IF(A140="No","",0.6) ->  | F140: Use Default | G140: =IF(A140="No","",IF(F140="Use Default",13.3*(VLOOKUP('Start Page'!$G$4,'RF Workings'!$E$3:$G$21,2)/'RF Workings'!$F$7),"")) ->  | H140: Use Default | I140: =IF(A140="No","",IF(H140="Use Default",0.7*(VLOOKUP('Start Page'!$G$4,'RF Workings'!$E$3:$G$21,2)/'RF Workings'!$F$7),"")) ->  | J140: Use Default | K140: =IF(A140="No","",IF(J140="Use Default",IF($F$1="Non-PTE",$AB$3,$AA$3),"")) ->  | L140: Use Default | M140: =IF(A140="No","",IF(L140="Use Default",IF($F$1="Non-PTE",$AB$4,$AA$4),"")) ->  | N140: Use Default | O140: =IF(A140="No","",IF(N140="Use Default",IF($F$1="Non-PTE",$AB$5,$AA$5),"")) ->  | P140: Use Default | Q140: =IF(A140="No","",(IF(P140="Use Default",IF($F$1="Non-PTE",$AB$6,$AA$6),""))) ->  | S140: Use Default | T140: =IF(A140="No","",IF(S140="Use Default",IF('MCC Model '!$F$1="Non-PTE",$AB$7,$AA$7),"")) ->  | U140: =IF(A140="No","",0.66) ->  | V140: =IF(A140="Yes",(IF(BA140<0,0,BA140)),"") ->  | W140: =IF(A140="Yes",V140*C140*D140,"") ->  | AA140: =IF(F130="Non-PTE",AB137,AA137) -> 6 | AB140: =IF(AND(N140="Use Default",P140="Use Default"),Q140/O140,IF(AND(N140="Use Local Value",P140="Use Default"),Q140/O141,IF(AND(N140="Use Default",P140="Use Local Value"),Q141/O140,IF(AND(N140="Use Local Value",P140="Use Local Value"),Q141/O141))))*IF($M140="",$M141,$M140)/IF($Q140="",Q141,$Q140) ->  | AC140: =AA140*AB140 ->  | AD140: =1/IF(Q140="",Q141,Q140) ->  | AE140: =AA140*((AC140+AD140)/AC140)^E140 ->  | AF140: =AA140/((IF(K140="",K141,K140)/(IF(Q140="",Q141,Q140)*2))) ->  | AG140: =AF140/2 ->  | AH140: =AE140/((IF(K140="",K141,K140)/(IF(Q140="",Q141,Q140)*2))) ->  | AI140: =AH140/2 ->  | AJ140: =AI140-AG140 ->  | AK140: =AJ140*IF(F140="Use Default",G140,G141) ->  | AL140: =AA140*IF(K140="",K141,K140)/((IF(K140="",K141,K140)/(IF(Q140="",Q141,Q140)*2))) ->  | AM140: =AL140/2 ->  | AN140: =AE140*IF(K140="",K141,K140)/((IF(K140="",K141,K140)/(IF(Q140="",Q141,Q140)*2))) ->  | AO140: =AN140/2 ->  | AP140: =AO140-AM140 ->  | AQ140: =AP140*IF(H140="Use Default",I140,I141) ->  | AR140: =AQ140+AK140 ->  | AS140: =(AE140-AA140)/AA140 ->  | AT140: =AS140*U140 ->  | AU140: =AC140*IF(Q140="",Q141,Q140)*2 ->  | AV140: =AU140/2 ->  | AW140: =AV140*IF(T140="",T141,T140) ->  | AX140: =AW140*AT140 ->  | AY140: =AX140*R140 ->  | AZ140: =AX140*'AC model'!$D$18 ->  | BA140: =AR140-AY140+AZ140 -> 
F141: =IF(F140="Use Local Value", "Enter Local Value","") ->  | H141: =IF(H140="Use Local Value", "Enter Local Value","") ->  | J141: =IF(J140="Use Local Value", "Enter Local Value","") ->  | L141: =IF(L140="Use Local Value","Enter Local Value","") ->  | N141: =IF(N140="Use Local Value","Enter Local Value","") ->  | P141: =IF(P140="Use Local Value","Enter Local Value","") ->  | S141: =IF(S140="Use Local Value", "Enter Local Value","") -> 
A143: No | B143: <Add network desc> | C143: =IF(A143="No","",1-'RF model'!$C$14) ->  | E143: =IF(A143="No","",0.6) ->  | F143: Use Default | G143: =IF(A143="No","",IF(F143="Use Default",13.3*(VLOOKUP('Start Page'!$G$4,'RF Workings'!$E$3:$G$21,2)/'RF Workings'!$F$7),"")) ->  | H143: Use Default | I143: =IF(A143="No","",IF(H143="Use Default",0.7*(VLOOKUP('Start Page'!$G$4,'RF Workings'!$E$3:$G$21,2)/'RF Workings'!$F$7),"")) ->  | J143: Use Default | K143: =IF(A143="No","",IF(J143="Use Default",IF($F$1="Non-PTE",$AB$3,$AA$3),"")) ->  | L143: Use Default | M143: =IF(A143="No","",IF(L143="Use Default",IF($F$1="Non-PTE",$AB$4,$AA$4),"")) ->  | N143: Use Default | O143: =IF(A143="No","",IF(N143="Use Default",IF($F$1="Non-PTE",$AB$5,$AA$5),"")) ->  | P143: Use Default | Q143: =IF(A143="No","",(IF(P143="Use Default",IF($F$1="Non-PTE",$AB$6,$AA$6),""))) ->  | S143: Use Default | T143: =IF(A143="No","",IF(S143="Use Default",IF('MCC Model '!$F$1="Non-PTE",$AB$7,$AA$7),"")) ->  | U143: =IF(A143="No","",0.66) ->  | V143: =IF(A143="Yes",(IF(BA143<0,0,BA143)),"") ->  | W143: =IF(A143="Yes",V143*C143*D143,"") ->  | AA143: =IF(F133="Non-PTE",AB140,AA140) -> 6 | AB143: =IF(AND(N143="Use Default",P143="Use Default"),Q143/O143,IF(AND(N143="Use Local Value",P143="Use Default"),Q143/O144,IF(AND(N143="Use Default",P143="Use Local Value"),Q144/O143,IF(AND(N143="Use Local Value",P143="Use Local Value"),Q144/O144))))*IF($M143="",$M144,$M143)/IF($Q143="",Q144,$Q143) ->  | AC143: =AA143*AB143 ->  | AD143: =1/IF(Q143="",Q144,Q143) ->  | AE143: =AA143*((AC143+AD143)/AC143)^E143 ->  | AF143: =AA143/((IF(K143="",K144,K143)/(IF(Q143="",Q144,Q143)*2))) ->  | AG143: =AF143/2 ->  | AH143: =AE143/((IF(K143="",K144,K143)/(IF(Q143="",Q144,Q143)*2))) ->  | AI143: =AH143/2 ->  | AJ143: =AI143-AG143 ->  | AK143: =AJ143*IF(F143="Use Default",G143,G144) ->  | AL143: =AA143*IF(K143="",K144,K143)/((IF(K143="",K144,K143)/(IF(Q143="",Q144,Q143)*2))) ->  | AM143: =AL143/2 ->  | AN143: =AE143*IF(K143="",K144,K143)/((IF(K143="",K144,K143)/(IF(Q143="",Q144,Q143)*2))) ->  | AO143: =AN143/2 ->  | AP143: =AO143-AM143 ->  | AQ143: =AP143*IF(H143="Use Default",I143,I144) ->  | AR143: =AQ143+AK143 ->  | AS143: =(AE143-AA143)/AA143 ->  | AT143: =AS143*U143 ->  | AU143: =AC143*IF(Q143="",Q144,Q143)*2 ->  | AV143: =AU143/2 ->  | AW143: =AV143*IF(T143="",T144,T143) ->  | AX143: =AW143*AT143 ->  | AY143: =AX143*R143 ->  | AZ143: =AX143*'AC model'!$D$18 ->  | BA143: =AR143-AY143+AZ143 -> 
F144: =IF(F143="Use Local Value", "Enter Local Value","") ->  | H144: =IF(H143="Use Local Value", "Enter Local Value","") ->  | J144: =IF(J143="Use Local Value", "Enter Local Value","") ->  | L144: =IF(L143="Use Local Value","Enter Local Value","") ->  | N144: =IF(N143="Use Local Value","Enter Local Value","") ->  | P144: =IF(P143="Use Local Value","Enter Local Value","") ->  | S144: =IF(S143="Use Local Value", "Enter Local Value","") -> 
A146: No | B146: <Add network desc> | C146: =IF(A146="No","",1-'RF model'!$C$14) ->  | E146: =IF(A146="No","",0.6) ->  | F146: Use Default | G146: =IF(A146="No","",IF(F146="Use Default",13.3*(VLOOKUP('Start Page'!$G$4,'RF Workings'!$E$3:$G$21,2)/'RF Workings'!$F$7),"")) ->  | H146: Use Default | I146: =IF(A146="No","",IF(H146="Use Default",0.7*(VLOOKUP('Start Page'!$G$4,'RF Workings'!$E$3:$G$21,2)/'RF Workings'!$F$7),"")) ->  | J146: Use Default | K146: =IF(A146="No","",IF(J146="Use Default",IF($F$1="Non-PTE",$AB$3,$AA$3),"")) ->  | L146: Use Default | M146: =IF(A146="No","",IF(L146="Use Default",IF($F$1="Non-PTE",$AB$4,$AA$4),"")) ->  | N146: Use Default | O146: =IF(A146="No","",IF(N146="Use Default",IF($F$1="Non-PTE",$AB$5,$AA$5),"")) ->  | P146: Use Default | Q146: =IF(A146="No","",(IF(P146="Use Default",IF($F$1="Non-PTE",$AB$6,$AA$6),""))) ->  | S146: Use Default | T146: =IF(A146="No","",IF(S146="Use Default",IF('MCC Model '!$F$1="Non-PTE",$AB$7,$AA$7),"")) ->  | U146: =IF(A146="No","",0.66) ->  | V146: =IF(A146="Yes",(IF(BA146<0,0,BA146)),"") ->  | W146: =IF(A146="Yes",V146*C146*D146,"") ->  | AA146: =IF(F136="Non-PTE",AB143,AA143) -> 6 | AB146: =IF(AND(N146="Use Default",P146="Use Default"),Q146/O146,IF(AND(N146="Use Local Value",P146="Use Default"),Q146/O147,IF(AND(N146="Use Default",P146="Use Local Value"),Q147/O146,IF(AND(N146="Use Local Value",P146="Use Local Value"),Q147/O147))))*IF($M146="",$M147,$M146)/IF($Q146="",Q147,$Q146) ->  | AC146: =AA146*AB146 ->  | AD146: =1/IF(Q146="",Q147,Q146) ->  | AE146: =AA146*((AC146+AD146)/AC146)^E146 ->  | AF146: =AA146/((IF(K146="",K147,K146)/(IF(Q146="",Q147,Q146)*2))) ->  | AG146: =AF146/2 ->  | AH146: =AE146/((IF(K146="",K147,K146)/(IF(Q146="",Q147,Q146)*2))) ->  | AI146: =AH146/2 ->  | AJ146: =AI146-AG146 ->  | AK146: =AJ146*IF(F146="Use Default",G146,G147) ->  | AL146: =AA146*IF(K146="",K147,K146)/((IF(K146="",K147,K146)/(IF(Q146="",Q147,Q146)*2))) ->  | AM146: =AL146/2 ->  | AN146: =AE146*IF(K146="",K147,K146)/((IF(K146="",K147,K146)/(IF(Q146="",Q147,Q146)*2))) ->  | AO146: =AN146/2 ->  | AP146: =AO146-AM146 ->  | AQ146: =AP146*IF(H146="Use Default",I146,I147) ->  | AR146: =AQ146+AK146 ->  | AS146: =(AE146-AA146)/AA146 ->  | AT146: =AS146*U146 ->  | AU146: =AC146*IF(Q146="",Q147,Q146)*2 ->  | AV146: =AU146/2 ->  | AW146: =AV146*IF(T146="",T147,T146) ->  | AX146: =AW146*AT146 ->  | AY146: =AX146*R146 ->  | AZ146: =AX146*'AC model'!$D$18 ->  | BA146: =AR146-AY146+AZ146 -> 
F147: =IF(F146="Use Local Value", "Enter Local Value","") ->  | H147: =IF(H146="Use Local Value", "Enter Local Value","") ->  | J147: =IF(J146="Use Local Value", "Enter Local Value","") ->  | L147: =IF(L146="Use Local Value","Enter Local Value","") ->  | N147: =IF(N146="Use Local Value","Enter Local Value","") ->  | P147: =IF(P146="Use Local Value","Enter Local Value","") ->  | S147: =IF(S146="Use Local Value", "Enter Local Value","") -> 
A149: No | B149: <Add network desc> | C149: =IF(A149="No","",1-'RF model'!$C$14) ->  | E149: =IF(A149="No","",0.6) ->  | F149: Use Default | G149: =IF(A149="No","",IF(F149="Use Default",13.3*(VLOOKUP('Start Page'!$G$4,'RF Workings'!$E$3:$G$21,2)/'RF Workings'!$F$7),"")) ->  | H149: Use Default | I149: =IF(A149="No","",IF(H149="Use Default",0.7*(VLOOKUP('Start Page'!$G$4,'RF Workings'!$E$3:$G$21,2)/'RF Workings'!$F$7),"")) ->  | J149: Use Default | K149: =IF(A149="No","",IF(J149="Use Default",IF($F$1="Non-PTE",$AB$3,$AA$3),"")) ->  | L149: Use Default | M149: =IF(A149="No","",IF(L149="Use Default",IF($F$1="Non-PTE",$AB$4,$AA$4),"")) ->  | N149: Use Default | O149: =IF(A149="No","",IF(N149="Use Default",IF($F$1="Non-PTE",$AB$5,$AA$5),"")) ->  | P149: Use Default | Q149: =IF(A149="No","",(IF(P149="Use Default",IF($F$1="Non-PTE",$AB$6,$AA$6),""))) ->  | S149: Use Default | T149: =IF(A149="No","",IF(S149="Use Default",IF('MCC Model '!$F$1="Non-PTE",$AB$7,$AA$7),"")) ->  | U149: =IF(A149="No","",0.66) ->  | V149: =IF(A149="Yes",(IF(BA149<0,0,BA149)),"") ->  | W149: =IF(A149="Yes",V149*C149*D149,"") ->  | AA149: =IF(F139="Non-PTE",AB146,AA146) -> 6 | AB149: =IF(AND(N149="Use Default",P149="Use Default"),Q149/O149,IF(AND(N149="Use Local Value",P149="Use Default"),Q149/O150,IF(AND(N149="Use Default",P149="Use Local Value"),Q150/O149,IF(AND(N149="Use Local Value",P149="Use Local Value"),Q150/O150))))*IF($M149="",$M150,$M149)/IF($Q149="",Q150,$Q149) ->  | AC149: =AA149*AB149 ->  | AD149: =1/IF(Q149="",Q150,Q149) ->  | AE149: =AA149*((AC149+AD149)/AC149)^E149 ->  | AF149: =AA149/((IF(K149="",K150,K149)/(IF(Q149="",Q150,Q149)*2))) ->  | AG149: =AF149/2 ->  | AH149: =AE149/((IF(K149="",K150,K149)/(IF(Q149="",Q150,Q149)*2))) ->  | AI149: =AH149/2 ->  | AJ149: =AI149-AG149 ->  | AK149: =AJ149*IF(F149="Use Default",G149,G150) ->  | AL149: =AA149*IF(K149="",K150,K149)/((IF(K149="",K150,K149)/(IF(Q149="",Q150,Q149)*2))) ->  | AM149: =AL149/2 ->  | AN149: =AE149*IF(K149="",K150,K149)/((IF(K149="",K150,K149)/(IF(Q149="",Q150,Q149)*2))) ->  | AO149: =AN149/2 ->  | AP149: =AO149-AM149 ->  | AQ149: =AP149*IF(H149="Use Default",I149,I150) ->  | AR149: =AQ149+AK149 ->  | AS149: =(AE149-AA149)/AA149 ->  | AT149: =AS149*U149 ->  | AU149: =AC149*IF(Q149="",Q150,Q149)*2 ->  | AV149: =AU149/2 ->  | AW149: =AV149*IF(T149="",T150,T149) ->  | AX149: =AW149*AT149 ->  | AY149: =AX149*R149 ->  | AZ149: =AX149*'AC model'!$D$18 ->  | BA149: =AR149-AY149+AZ149 -> 
F150: =IF(F149="Use Local Value", "Enter Local Value","") ->  | H150: =IF(H149="Use Local Value", "Enter Local Value","") ->  | J150: =IF(J149="Use Local Value", "Enter Local Value","") ->  | L150: =IF(L149="Use Local Value","Enter Local Value","") ->  | N150: =IF(N149="Use Local Value","Enter Local Value","") ->  | P150: =IF(P149="Use Local Value","Enter Local Value","") ->  | S150: =IF(S149="Use Local Value", "Enter Local Value","") -> 
A152: No | B152: <Add network desc> | C152: =IF(A152="No","",1-'RF model'!$C$14) ->  | E152: =IF(A152="No","",0.6) ->  | F152: Use Default | G152: =IF(A152="No","",IF(F152="Use Default",13.3*(VLOOKUP('Start Page'!$G$4,'RF Workings'!$E$3:$G$21,2)/'RF Workings'!$F$7),"")) ->  | H152: Use Default | I152: =IF(A152="No","",IF(H152="Use Default",0.7*(VLOOKUP('Start Page'!$G$4,'RF Workings'!$E$3:$G$21,2)/'RF Workings'!$F$7),"")) ->  | J152: Use Default | K152: =IF(A152="No","",IF(J152="Use Default",IF($F$1="Non-PTE",$AB$3,$AA$3),"")) ->  | L152: Use Default | M152: =IF(A152="No","",IF(L152="Use Default",IF($F$1="Non-PTE",$AB$4,$AA$4),"")) ->  | N152: Use Default | O152: =IF(A152="No","",IF(N152="Use Default",IF($F$1="Non-PTE",$AB$5,$AA$5),"")) ->  | P152: Use Default | Q152: =IF(A152="No","",(IF(P152="Use Default",IF($F$1="Non-PTE",$AB$6,$AA$6),""))) ->  | S152: Use Default | T152: =IF(A152="No","",IF(S152="Use Default",IF('MCC Model '!$F$1="Non-PTE",$AB$7,$AA$7),"")) ->  | U152: =IF(A152="No","",0.66) ->  | V152: =IF(A152="Yes",(IF(BA152<0,0,BA152)),"") ->  | W152: =IF(A152="Yes",V152*C152*D152,"") ->  | AA152: =IF(F142="Non-PTE",AB149,AA149) -> 6 | AB152: =IF(AND(N152="Use Default",P152="Use Default"),Q152/O152,IF(AND(N152="Use Local Value",P152="Use Default"),Q152/O153,IF(AND(N152="Use Default",P152="Use Local Value"),Q153/O152,IF(AND(N152="Use Local Value",P152="Use Local Value"),Q153/O153))))*IF($M152="",$M153,$M152)/IF($Q152="",Q153,$Q152) ->  | AC152: =AA152*AB152 ->  | AD152: =1/IF(Q152="",Q153,Q152) ->  | AE152: =AA152*((AC152+AD152)/AC152)^E152 ->  | AF152: =AA152/((IF(K152="",K153,K152)/(IF(Q152="",Q153,Q152)*2))) ->  | AG152: =AF152/2 ->  | AH152: =AE152/((IF(K152="",K153,K152)/(IF(Q152="",Q153,Q152)*2))) ->  | AI152: =AH152/2 ->  | AJ152: =AI152-AG152 ->  | AK152: =AJ152*IF(F152="Use Default",G152,G153) ->  | AL152: =AA152*IF(K152="",K153,K152)/((IF(K152="",K153,K152)/(IF(Q152="",Q153,Q152)*2))) ->  | AM152: =AL152/2 ->  | AN152: =AE152*IF(K152="",K153,K152)/((IF(K152="",K153,K152)/(IF(Q152="",Q153,Q152)*2))) ->  | AO152: =AN152/2 ->  | AP152: =AO152-AM152 ->  | AQ152: =AP152*IF(H152="Use Default",I152,I153) ->  | AR152: =AQ152+AK152 ->  | AS152: =(AE152-AA152)/AA152 ->  | AT152: =AS152*U152 ->  | AU152: =AC152*IF(Q152="",Q153,Q152)*2 ->  | AV152: =AU152/2 ->  | AW152: =AV152*IF(T152="",T153,T152) ->  | AX152: =AW152*AT152 ->  | AY152: =AX152*R152 ->  | AZ152: =AX152*'AC model'!$D$18 ->  | BA152: =AR152-AY152+AZ152 -> 
F153: =IF(F152="Use Local Value", "Enter Local Value","") ->  | H153: =IF(H152="Use Local Value", "Enter Local Value","") ->  | J153: =IF(J152="Use Local Value", "Enter Local Value","") ->  | L153: =IF(L152="Use Local Value","Enter Local Value","") ->  | N153: =IF(N152="Use Local Value","Enter Local Value","") ->  | P153: =IF(P152="Use Local Value","Enter Local Value","") ->  | S153: =IF(S152="Use Local Value", "Enter Local Value","") -> 
A155: No | B155: <Add network desc> | C155: =IF(A155="No","",1-'RF model'!$C$14) ->  | E155: =IF(A155="No","",0.6) ->  | F155: Use Default | G155: =IF(A155="No","",IF(F155="Use Default",13.3*(VLOOKUP('Start Page'!$G$4,'RF Workings'!$E$3:$G$21,2)/'RF Workings'!$F$7),"")) ->  | H155: Use Default | I155: =IF(A155="No","",IF(H155="Use Default",0.7*(VLOOKUP('Start Page'!$G$4,'RF Workings'!$E$3:$G$21,2)/'RF Workings'!$F$7),"")) ->  | J155: Use Default | K155: =IF(A155="No","",IF(J155="Use Default",IF($F$1="Non-PTE",$AB$3,$AA$3),"")) ->  | L155: Use Default | M155: =IF(A155="No","",IF(L155="Use Default",IF($F$1="Non-PTE",$AB$4,$AA$4),"")) ->  | N155: Use Default | O155: =IF(A155="No","",IF(N155="Use Default",IF($F$1="Non-PTE",$AB$5,$AA$5),"")) ->  | P155: Use Default | Q155: =IF(A155="No","",(IF(P155="Use Default",IF($F$1="Non-PTE",$AB$6,$AA$6),""))) ->  | S155: Use Default | T155: =IF(A155="No","",IF(S155="Use Default",IF('MCC Model '!$F$1="Non-PTE",$AB$7,$AA$7),"")) ->  | U155: =IF(A155="No","",0.66) ->  | V155: =IF(A155="Yes",(IF(BA155<0,0,BA155)),"") ->  | W155: =IF(A155="Yes",V155*C155*D155,"") ->  | AA155: =IF(F145="Non-PTE",AB152,AA152) -> 6 | AB155: =IF(AND(N155="Use Default",P155="Use Default"),Q155/O155,IF(AND(N155="Use Local Value",P155="Use Default"),Q155/O156,IF(AND(N155="Use Default",P155="Use Local Value"),Q156/O155,IF(AND(N155="Use Local Value",P155="Use Local Value"),Q156/O156))))*IF($M155="",$M156,$M155)/IF($Q155="",Q156,$Q155) ->  | AC155: =AA155*AB155 ->  | AD155: =1/IF(Q155="",Q156,Q155) ->  | AE155: =AA155*((AC155+AD155)/AC155)^E155 ->  | AF155: =AA155/((IF(K155="",K156,K155)/(IF(Q155="",Q156,Q155)*2))) ->  | AG155: =AF155/2 ->  | AH155: =AE155/((IF(K155="",K156,K155)/(IF(Q155="",Q156,Q155)*2))) ->  | AI155: =AH155/2 ->  | AJ155: =AI155-AG155 ->  | AK155: =AJ155*IF(F155="Use Default",G155,G156) ->  | AL155: =AA155*IF(K155="",K156,K155)/((IF(K155="",K156,K155)/(IF(Q155="",Q156,Q155)*2))) ->  | AM155: =AL155/2 ->  | AN155: =AE155*IF(K155="",K156,K155)/((IF(K155="",K156,K155)/(IF(Q155="",Q156,Q155)*2))) ->  | AO155: =AN155/2 ->  | AP155: =AO155-AM155 ->  | AQ155: =AP155*IF(H155="Use Default",I155,I156) ->  | AR155: =AQ155+AK155 ->  | AS155: =(AE155-AA155)/AA155 ->  | AT155: =AS155*U155 ->  | AU155: =AC155*IF(Q155="",Q156,Q155)*2 ->  | AV155: =AU155/2 ->  | AW155: =AV155*IF(T155="",T156,T155) ->  | AX155: =AW155*AT155 ->  | AY155: =AX155*R155 ->  | AZ155: =AX155*'AC model'!$D$18 ->  | BA155: =AR155-AY155+AZ155 -> 
F156: =IF(F155="Use Local Value", "Enter Local Value","") ->  | H156: =IF(H155="Use Local Value", "Enter Local Value","") ->  | J156: =IF(J155="Use Local Value", "Enter Local Value","") ->  | L156: =IF(L155="Use Local Value","Enter Local Value","") ->  | N156: =IF(N155="Use Local Value","Enter Local Value","") ->  | P156: =IF(P155="Use Local Value","Enter Local Value","") ->  | S156: =IF(S155="Use Local Value", "Enter Local Value","") -> 
A158: No | B158: <Add network desc> | C158: =IF(A158="No","",1-'RF model'!$C$14) ->  | E158: =IF(A158="No","",0.6) ->  | F158: Use Default | G158: =IF(A158="No","",IF(F158="Use Default",13.3*(VLOOKUP('Start Page'!$G$4,'RF Workings'!$E$3:$G$21,2)/'RF Workings'!$F$7),"")) ->  | H158: Use Default | I158: =IF(A158="No","",IF(H158="Use Default",0.7*(VLOOKUP('Start Page'!$G$4,'RF Workings'!$E$3:$G$21,2)/'RF Workings'!$F$7),"")) ->  | J158: Use Default | K158: =IF(A158="No","",IF(J158="Use Default",IF($F$1="Non-PTE",$AB$3,$AA$3),"")) ->  | L158: Use Default | M158: =IF(A158="No","",IF(L158="Use Default",IF($F$1="Non-PTE",$AB$4,$AA$4),"")) ->  | N158: Use Default | O158: =IF(A158="No","",IF(N158="Use Default",IF($F$1="Non-PTE",$AB$5,$AA$5),"")) ->  | P158: Use Default | Q158: =IF(A158="No","",(IF(P158="Use Default",IF($F$1="Non-PTE",$AB$6,$AA$6),""))) ->  | S158: Use Default | T158: =IF(A158="No","",IF(S158="Use Default",IF('MCC Model '!$F$1="Non-PTE",$AB$7,$AA$7),"")) ->  | U158: =IF(A158="No","",0.66) ->  | V158: =IF(A158="Yes",(IF(BA158<0,0,BA158)),"") ->  | W158: =IF(A158="Yes",V158*C158*D158,"") ->  | AA158: =IF(F148="Non-PTE",AB155,AA155) -> 6 | AB158: =IF(AND(N158="Use Default",P158="Use Default"),Q158/O158,IF(AND(N158="Use Local Value",P158="Use Default"),Q158/O159,IF(AND(N158="Use Default",P158="Use Local Value"),Q159/O158,IF(AND(N158="Use Local Value",P158="Use Local Value"),Q159/O159))))*IF($M158="",$M159,$M158)/IF($Q158="",Q159,$Q158) ->  | AC158: =AA158*AB158 ->  | AD158: =1/IF(Q158="",Q159,Q158) ->  | AE158: =AA158*((AC158+AD158)/AC158)^E158 ->  | AF158: =AA158/((IF(K158="",K159,K158)/(IF(Q158="",Q159,Q158)*2))) ->  | AG158: =AF158/2 ->  | AH158: =AE158/((IF(K158="",K159,K158)/(IF(Q158="",Q159,Q158)*2))) ->  | AI158: =AH158/2 ->  | AJ158: =AI158-AG158 ->  | AK158: =AJ158*IF(F158="Use Default",G158,G159) ->  | AL158: =AA158*IF(K158="",K159,K158)/((IF(K158="",K159,K158)/(IF(Q158="",Q159,Q158)*2))) ->  | AM158: =AL158/2 ->  | AN158: =AE158*IF(K158="",K159,K158)/((IF(K158="",K159,K158)/(IF(Q158="",Q159,Q158)*2))) ->  | AO158: =AN158/2 ->  | AP158: =AO158-AM158 ->  | AQ158: =AP158*IF(H158="Use Default",I158,I159) ->  | AR158: =AQ158+AK158 ->  | AS158: =(AE158-AA158)/AA158 ->  | AT158: =AS158*U158 ->  | AU158: =AC158*IF(Q158="",Q159,Q158)*2 ->  | AV158: =AU158/2 ->  | AW158: =AV158*IF(T158="",T159,T158) ->  | AX158: =AW158*AT158 ->  | AY158: =AX158*R158 ->  | AZ158: =AX158*'AC model'!$D$18 ->  | BA158: =AR158-AY158+AZ158 -> 
F159: =IF(F158="Use Local Value", "Enter Local Value","") ->  | H159: =IF(H158="Use Local Value", "Enter Local Value","") ->  | J159: =IF(J158="Use Local Value", "Enter Local Value","") ->  | L159: =IF(L158="Use Local Value","Enter Local Value","") ->  | N159: =IF(N158="Use Local Value","Enter Local Value","") ->  | P159: =IF(P158="Use Local Value","Enter Local Value","") ->  | S159: =IF(S158="Use Local Value", "Enter Local Value","") -> 

Sheet Result Page
A1: 65 | B1: Result page
B3: Area Type | C3: ='Start Page'!$G$3 -> Non-PTE
B4: Year of Calculation | C4: ='Start Page'!$G$4 -> 2023/24
B8: Revenue Forgone
A10: 66 | C10: Observed Concessionary Journeys | H10: ='Start Page'!$G$6 -> 0
A11: 67 | C11: Average Fare Forgone (£) | H11: ='AF model'!$C$10 -> 0
A12: 68 | C12: Reimbursement Factor (%) | H12: ='RF model'!$C$14 -> 
A13: 69 | C13: Total Reimbursement for Revenue Forgone (£) | H13: =$H$12*$H$11*$H$10 -> 
B15: Additional Costs
A17: 70 | C17: Generation Factor (%) | H17: =(1-$H$12) -> 
A18: 71 | C18: Marginal Operating Costs (£ per trip) | H18: ='AC model'!D18 -> 0.07859948844
A19: 72 | C19: Total Marginal Operating Costs (£) | H19: =H10*H17*H18 -> 
A20: 73 | C20: Scheme Administration Costs (£) | H20: ='AC model'!D9 -> 0
A21: 74 | C21: Total Marginal Capacity Costs (£) | H21: ='MCC Model '!$W$8 -> 0
A22: 75 | C22: PVR Costs (£) | H22: ='AC model'!$D$29 -> 0
A23: 76 | C23: Total Reimbursement for Additional Costs | H23: =H19+H20+H21+H22 -> 
A26: 77 | B26: Total Reimbursement | H26: =$H$23+$H$13 -> 

Sheet Update Inflation
B1: Master Index | F1: Updated index | K1: Workings | L1: Change in CPI index
B2: Year | C2: CPI /GDP Deflator | F2: Year | G2: CPI Index | H2: GDP deflator | I2: Updated Index | K2: Year | L2: CPI/GDP Deflator | M2: GDP Deflator
B3: 2005/6 | C3: 78.9 | F3: 2005/6 | G3: 78.9 | H3: 0.0275755709 | I3: 78.9 | K3: 2005/6 | L3: =C3 -> 78.9
B4: 2006/7 | C4: 81.4 | F4: 2006/7 | G4: 81.4 | H4: 0.02993598856 | I4: 81.4 | K4: 2006/7 | L4: =C4 -> 81.4
B5: 2007/8 | C5: 83.4 | F5: 2007/8 | G5: 83.4 | H5: 0.02362868287 | I5: 83.4 | K5: 2007/8 | L5: 83.4
B6: 2008/9 | C6: 85.8 | F6: 2008/9 | G6: 85.8 | H6: 0.03612629824 | I6: 85.8 | K6: 2008/9 | L6: 85.8
B7: 2009/10 | C7: 88.7 | F7: 2009/10 | G7: 88.7 | H7: 0.0133790209 | I7: 88.7 | K7: 2009/10 | L7: 88.7
B8: 2010/11 | C8: 92.2 | F8: 2010/11 | G8: 92.2 | H8: 0.01668046758 | I8: 92.2 | K8: 2010/11 | L8: 92.2 | N8: 100
B9: 2011/12 | C9: 95.4 | F9: 2011/12 | G9: 95.4 | H9: 0.01772428181 | I9: ='Update Inflation'!C9 -> 95.4 | K9: 2011/12 | L9: 95.4 | M9: 0.01772428181 | N9: =N8*(1+M9) -> 101.7724282 | O9: 92.2
B10: 2012/13 | C10: 98.1 | F10: 2012/13 | G10: 98.1 | H10: 0.01732695211 | I10: ='Update Inflation'!C10 -> 98.1 | K10: 2012/13 | L10: =C10 -> 98.1 | M10: 0.01732695211 | N10: =N9*(1+M10) -> 103.5358342 | O10: 95.4
B11: 2013/14 | C11: 99.7 | F11: 2013/14 | G11: 99.7 | H11: 0.0207896386 | I11: ='Update Inflation'!C11 -> 99.7 | K11: 2013/14 | L11: 99.7 | M11: 0.0207896386 | N11: =N10*(1+M11) -> 105.6883067 | O11: 98.1
B12: 2014/15 | C12: 99.7 | F12: 2014/15 | G12: 99.7 | H12: 0.01100871084 | I12: ='Update Inflation'!C12 -> 99.7 | K12: 2014/15 | L12: 99.7 | M12: 0.01100871084 | N12: =N11*(1+M12) -> 106.8517988 | O12: 99.7
B13: 2015/16 | C13: 100.2 | F13: 2015/16 | G13: 100.2 | H13: 0.007963634471 | I13: ='Update Inflation'!C13 -> 100.2 | K13: 2015/16 | L13: 100.2 | M13: 0.007963634471 | N13: 107.7027274 | O13: 99.7
B14: 2016/17 | C14: 102.5 | F14: 2016/17 | G14: 102.5 | H14: 0.02053038649 | I14: ='Update Inflation'!C14 -> 102.5 | K14: 2016/17 | L14: 102.5 | M14: 0.02053038649 | N14: 109.913906 | O14: 100.2
B15: 2017/18 | C15: 105 | F15: 2017/18 | G15: 105 | H15: 0.01667658049 | I15: ='Update Inflation'!C15 -> 105 | K15: 2017/18 | L15: 105 | M15: 0.01667658049 | N15: 111.7468941 | O15: 102.5
B16: 2018/19 | C16: =G16 -> 107 | F16: 2018/19 | G16: 107 | H16: 0.01786516133 | I16: ='Update Inflation'!C16 -> 107 | K16: 2018/19 | L16: 107 | M16: 0.01786516133 | N16: =N15*(1+M16) -> 113.7432704 | O16: 105
B17: 2019/20 | C17: =G17 -> 108.6 | F17: 2019/20 | G17: 108.6 | H17: 0.02600522647 | I17: ='Update Inflation'!C17 -> 108.6 | K17: 2019/20 | L17: 108.6 | M17: 0.02600522647 | N17: 116.7011899 | O17: 107
B18: 2020/21 | C18: =G18 -> 109.4 | F18: 2020/21 | G18: 109.4 | H18: 0.06408168193 | I18: ='Update Inflation'!C18 -> 109.4 | K18: 2020/21 | L18: 109.4 | M18: 0.06408168193 | N18: 124.1795985 | O18: 108.6
B19: 2021/22 | C19: =G19 -> 117.1 | F19: 2021/22 | G19: 117.1 | H19: -0.004734478088 | I19: ='Update Inflation'!C19 -> 117.1 | K19: 2021/22 | L19: =C19 -> 117.1 | M19: -0.004734478088 | N19: 123.5916729 | O19: 109.4
B20: 2022/23 | C20: =C19*(1+H20) -> 122.7903058 | F20: 2022/23 | H20: 0.0485935592 | I20: ='Update Inflation'!C20 -> 122.7903058 | K20: 2022/23 | L20: =C20 -> 122.7903058 | M20: 0.0485935592 | N20: 129.5974322 | O20: 117.1
B21: 2023/24 | C21: =C20*(1+H21) -> 126.7595386 | F21: 2023/24 | H21: 0.03232529494 | I21: ='Update Inflation'!C21 -> 126.7595386 | K21: 2023/24 | L21: =C21 -> 126.7595386 | M21: 0.03232529494 | N21: 133.7867074 | O21: 122.8
B22: TOOL TO UPDATE CPI INDEX/GDP DEFLATOR | F22: 78
B23: To obtain up to date CPI index follow: https://www.ons.gov.uk/economy/inflationandpriceindices/timeseries/d7bt/mm23
B24: To obtain up to date GDP deflators follow: https://www.gov.uk/government/collections/gdp-deflators-at-market-prices-and-money-gdp
C25: 79 | D25: 80
B26: Year | C26: Updated CPI Index | D26: GDP Deflator | F26: Enter updated GDP/CPI values in C27:D39
B27: 2011/12 | E27: =IF(AND(C27<>"",D27<>""),"DO NOT ENTER BOTH CPI AND GDP DEFLATORS","") -> 
B28: 2012/13 | E28: =IF(AND(C28<>"",D28<>""),"DO NOT ENTER BOTH CPI AND GDP DEFLATORS","") -> 
B29: 2013/14
B30: 2014/15
B31: 2015/16
B32: 2016/17
B33: 2017/18
B34: 2018/19
B35: 2019/20
B36: 2020/21
B37: 2021/21
B38: 2022/23
B39: 2023/24
C40: 81 | D40: 82

Sheet AF Workings
A1: (2) Interpolation | K1: (3) Average fare | P1: (4) Degenerate price ratio | T1: (5) Interpolation | AD1: (6) Degenerate Cash Fare journeys
D3: Input values | E3: Interpolation | W3: Input values | X3: Interpolation
E4: Lower band | F4: Upper band | G4: Factor | H4: Int'lated value | P4: Area | Q4: ='Start Page'!$G$3 -> Non-PTE | X4: Lower band | Y4: Upper band | Z4: Factor | AA4: Int'lated value
B5: Weekly ticket price | D5: ='AF model'!C23/'AF model'!C21 ->  | E5: =ROUNDDOWN(D5,0) ->  | F5: =ROUNDUP(D5,0) ->  | G5: =D5-E5 ->  | U5: Weekly ticket price | W5: =$R$9 ->  | X5: =ROUNDDOWN(W5,0) ->  | Y5: =ROUNDUP(W5,0) ->  | Z5: =W5-X5 ->  | AE5: Cash Fare | AF5: Daily | AG5: Weekly
B6: Daily Ticket Price | D6: ='AF model'!C22/'AF model'!C21 ->  | E6: =ROUNDDOWN(D6,0) ->  | F6: =ROUNDUP(D6,0) ->  | G6: =D6-E6 ->  | L6: Cash Fare | M6: Daily | N6: Weekly | Q6: RF | R6: Price ratio | U6: Daily Ticket Price | W6: =$R$8 ->  | X6: =ROUNDDOWN(W6,0) ->  | Y6: =ROUNDUP(W6,0) ->  | Z6: =W6-X6 ->  | AD6: Price ratio | AE6: =1 -> 1 | AF6: =W6 ->  | AG6: =W5 -> 
B7: Weekly Tickets | E7: =VLOOKUP(E$5,$A$35:$AJ$76,2) ->  | F7: =VLOOKUP(F$5,$A$35:$AJ$76,2) ->  | G7: =G5 ->  | H7: =E7+G7*(F7-E7) ->  | K7: Price ratio | L7: 1 | M7: =D6 ->  | N7: =D5 ->  | P7: Cash Fare | Q7: =IF($Q$4="Non-PTE", EXP('RF Workings'!$G$40*((L12*VLOOKUP('Start Page'!$G$4, 'RF Workings'!$E$3:$G$21, 3)/1.2)^'RF Workings'!$G$39)), EXP('RF Workings'!$F$40*((L12*VLOOKUP('Start Page'!$G$4, 'RF Workings'!$E$3:$G$21, 3)/1.12)^'RF Workings'!$F$39))) ->  | R7: 1 | U7: Weekly Tickets | X7: =VLOOKUP(X$5,$A$35:$AJ$76,2) ->  | Y7: =VLOOKUP(Y$5,$A$35:$AJ$76,2) ->  | Z7: =Z5 ->  | AA7: =X7+Z7*(Y7-X7) ->  | AD7: Tickets sold (from Look Up Table) | AE7: =AA11-H11*Q7 ->  | AF7: =AA9 ->  | AG7: =AA7 -> 
B8: Weekly journeys | E8: =VLOOKUP(E$5,$A$35:$AJ$76,3) ->  | F8: =VLOOKUP(F$5,$A$35:$AJ$76,3) ->  | G8: =G5 ->  | H8: =E8+G8*(F8-E8) ->  | K8: Price per ticket | L8: ='AF model'!C21 ->  | M8: ='AF model'!C22 ->  | N8: ='AF model'!C23 ->  | P8: Daily | Q8: =IF($Q$4="Non-PTE", EXP('RF Workings'!$G$40*((M12*VLOOKUP('Start Page'!$G$4, 'RF Workings'!$E$3:$G$21, 3)/1.2)^'RF Workings'!$G$39)), EXP('RF Workings'!$F$40*((M12*VLOOKUP('Start Page'!$G$4, 'RF Workings'!$E$3:$G$21, 3)/1.12)^'RF Workings'!$F$39))) ->  | R8: =(1+Q8)*D6 ->  | U8: Weekly journeys | X8: =VLOOKUP(X$5,$A$35:$AJ$76,3) ->  | Y8: =VLOOKUP(Y$5,$A$35:$AJ$76,3) ->  | Z8: =Z5 ->  | AA8: =X8+Z8*(Y8-X8) ->  | AD8: Journeys made (from Look Up Table) | AE8: =AA11-H11*Q7 ->  | AF8: =AA10 ->  | AG8: =AA8 -> 
B9: Daily Tickets | E9: =VLOOKUP($E$5,$A$35:$AJ$76,$E15)+$G$5*(VLOOKUP($F$5,$A$35:$AJ$76,E$15)-VLOOKUP($E$5,$A$35:$AJ$76,E$15)) ->  | F9: =VLOOKUP($E$5,$A$35:$AJ$76,$F15)+$G$5*(VLOOKUP($F$5,$A$35:$AJ$76,F$15)-VLOOKUP($E$5,$A$35:$AJ$76,F$15)) ->  | G9: =IF(G6=0,G5,G6) ->  | H9: =E9+G9*(F9-E9) ->  | K9: Tickets sold (from Look Up Table) | L9: =H11 ->  | M9: =H9 ->  | N9: =H7 ->  | P9: Weekly | Q9: =IF($Q$4="Non-PTE", EXP('RF Workings'!$G$40*((N12*VLOOKUP('Start Page'!$G$4, 'RF Workings'!$E$3:$G$21, 3)/1.2)^'RF Workings'!$G$39)), EXP('RF Workings'!$F$40*((N12*VLOOKUP('Start Page'!$G$4, 'RF Workings'!$E$3:$G$21, 3)/1.12)^'RF Workings'!$F$39))) ->  | R9: =(1+Q9)*D5 ->  | U9: Daily Tickets | X9: =VLOOKUP($X$5,$A$35:$AJ$76,$X14)+Z5*(VLOOKUP($Y$5,$A$35:$AJ$76,$X14)-VLOOKUP($X$5,$A$35:$AJ$76,$X14)) ->  | Y9: =VLOOKUP($X$5,$A$35:$AJ$76,$Y14)+Z5*(VLOOKUP($Y$5,$A$35:$AJ$76,$Y14)-VLOOKUP($X$5,$A$35:$AJ$76,$Y14)) ->  | Z9: =IF(Z6=0,Z5,Z6) ->  | AA9: =X9+Z9*(Y9-X9) -> 
B10: Daily journeys | E10: =VLOOKUP($E$5,$A$35:$AJ$76,$E16)+$G$5*(VLOOKUP($F$5,$A$35:$AJ$76,E$16)-VLOOKUP($E$5,$A$35:$AJ$76,E$16)) ->  | F10: =VLOOKUP($E$5,$A$35:$AJ$76,$F16)+$G$5*(VLOOKUP($F$5,$A$35:$AJ$76,F$16)-VLOOKUP($E$5,$A$35:$AJ$76,F$16)) ->  | G10: =IF(G6=0,G5,G6) ->  | H10: =E10+G10*(F10-E10) ->  | K10: journeys made (from Look Up Table) | L10: =H11 ->  | M10: =H10 ->  | N10: =H8 ->  | U10: Daily journeys | X10: =VLOOKUP($X$5,$A$35:$AJ$76,$X15)+Z5*(VLOOKUP($Y$5,$A$35:$AJ$76,$X15)-VLOOKUP($X$5,$A$35:$AJ$76,$X15)) ->  | Y10: =VLOOKUP($X$5,$A$35:$AJ$76,$Y15)+Z5*(VLOOKUP($Y$5,$A$35:$AJ$76,$Y15)-VLOOKUP($X$5,$A$35:$AJ$76,$Y15)) ->  | Z10: =IF(Z6=0,Z5,Z6) ->  | AA10: =X10+Z10*(Y10-X10) -> 
B11: Cash Fare journeys | E11: =VLOOKUP($E$5,$A$35:$AJ$76,$E17)+$G$5*(VLOOKUP($F$5,$A$35:$AJ$76,E$17)-VLOOKUP($E$5,$A$35:$AJ$76,E$17)) ->  | F11: =VLOOKUP($E$5,$A$35:$AJ$76,$F17)+$G$5*(VLOOKUP($F$5,$A$35:$AJ$76,F$17)-VLOOKUP($E$5,$A$35:$AJ$76,F$17)) ->  | G11: =IF(G6=0,G5,G6) ->  | H11: =E11+G11*(F11-E11) ->  | K11: journeys per ticket | L11: =IF(L9=0,0,L10/L9) ->  | M11: =IF(M9=0,0,M10/M9) ->  | N11: =IF(N9=0,0,N10/N9) ->  | U11: Cash Fare journeys | X11: =VLOOKUP($X$5,$A$35:$AJ$76,$X16)+Z5*(VLOOKUP($Y$5,$A$35:$AJ$76,$X16)-VLOOKUP($X$5,$A$35:$AJ$76,$X16)) ->  | Y11: =VLOOKUP($X$5,$A$35:$AJ$76,$Y16)+Z5*(VLOOKUP($Y$5,$A$35:$AJ$76,$Y16)-VLOOKUP($X$5,$A$35:$AJ$76,$Y16)) ->  | Z11: =IF(Z6=0,Z5,Z6) ->  | AA11: =X11+Z11*(Y11-X11) -> 
B12: Check journey total | E12: =E8+E10+E11 ->  | F12: =F8+F10+F11 ->  | H12: =H8+H10+H11 ->  | K12: Price per journey | L12: =IF(L11=0,L8,L$8/L11) ->  | M12: =IF(M11=0,M8,M$8/M11) ->  | N12: =IF(N11=0,N8,N$8/N11) ->  | U12: Check journey total | X12: =X8+X10+X11 ->  | Y12: =Y8+Y10+Y11 ->  | AA12: =AA8+AA10+AA11 -> 
X13: Column offset
E14: Column offset | U14: Daily Tickets | X14: =7+3*($X$6-1) ->  | Y14: =7+3*($Y$6-1) -> 
B15: Daily Tickets | E15: =7+3*($E$6-1) ->  | F15: =7+3*($F$6-1) ->  | U15: Daily journeys | X15: =8+3*($X$6-1) ->  | Y15: =8+3*($Y$6-1) -> 
B16: Daily journeys | E16: =8+3*($E$6-1) ->  | F16: =8+3*($F$6-1) ->  | U16: Cash Fare journeys | X16: =9+3*($X$6-1) ->  | Y16: =9+3*($Y$6-1) -> 
B17: Cash Fare journeys | E17: =9+3*($E$6-1) ->  | F17: =9+3*($F$6-1) -> 
A18: Discount factor | E18: =1-(E7*E5+E9*E6+E11)/E12 ->  | F18: =1-(F7*F5+F9*F6+F11)/F12 ->  | H18: =1-(H7*D5+H9*D6+H11)/H12 ->  | K18: Discount factor | L18: =1-(SUMPRODUCT(L12:N12,L10:N10)/SUM(L10:N10))/L12 ->  | M18: =1-(SUMPRODUCT(L8:N8,L9:N9)/SUM(L10:N10))/L12 ->  | Z18: Discount factor | AA18: =1-(AA7*W5+AA9*W6+AA11)/AA12 ->  | AF18: Discount factor | AG18: =1-SUMPRODUCT(AE7:AG7,AE6:AG6)/SUM(AE8:AG8) -> 
E19: Average | F19: =AVERAGE(E18:F18) ->  | L19: =L18-H18-0 ->  | M19: =M18-L18-0 -> 
C21: Distribution of tickets and journeys | V21: Distribution of tickets and journeys | AE21: Distribution of tickets and journeys
C22: Journeys | D22: Weekly | E22: =E8/E$12 ->  | F22: =F8/F$12 ->  | H22: =H8/H$12 ->  | V22: Journeys | W22: Weekly | X22: =X8/X$12 ->  | Y22: =Y8/Y$12 ->  | AA22: =AA8/AA$12 ->  | AE22: Journeys | AF22: Cash Fare | AG22: =AE8/SUM($AE$8:$AG$8) -> 
D23: Daily | E23: =E10/E$12 ->  | F23: =F10/F$12 ->  | H23: =H10/H$12 ->  | W23: Daily | X23: =X10/X$12 ->  | Y23: =Y10/Y$12 ->  | AA23: =AA10/AA$12 ->  | AF23: Daily | AG23: =AF8/SUM($AE$8:$AG$8) -> 
D24: Cash Fare | E24: =E11/E$12 ->  | F24: =F11/F$12 ->  | H24: =H11/H$12 ->  | W24: Cash Fare | X24: =X11/X$12 ->  | Y24: =Y11/Y$12 ->  | AA24: =AA11/AA$12 ->  | AF24: Weekly | AG24: =AG8/SUM($AE$8:$AG$8) -> 
C25: Tickets | D25: Weekly | E25: =E7/(E$7+E$9+E$11) ->  | F25: =F7/(F$7+F$9+F$11) ->  | H25: =H7/(H$7+H$9+H$11) ->  | V25: Tickets | W25: Weekly | X25: =X7/(X$7+X$9+X$11) ->  | Y25: =Y7/(Y$7+Y$9+Y$11) ->  | AA25: =AA7/(AA$7+AA$9+AA$11) ->  | AE25: Tickets | AF25: Cash Fare | AG25: =AE7/SUM($AE$7:$AG$7) -> 
D26: Daily | E26: =E9/(E$7+E$9+E$11) ->  | F26: =F9/(F$7+F$9+F$11) ->  | H26: =H9/(H$7+H$9+H$11) ->  | W26: Daily | X26: =X9/(X$7+X$9+X$11) ->  | Y26: =Y9/(Y$7+Y$9+Y$11) ->  | AA26: =AA9/(AA$7+AA$9+AA$11) ->  | AF26: Daily | AG26: =AF7/SUM($AE$7:$AG$7) -> 
D27: Cash Fare | E27: =E11/(E$7+E$9+E$11) ->  | F27: =F11/(F$7+F$9+F$11) ->  | H27: =H11/(H$7+H$9+H$11) ->  | W27: Cash Fare | X27: =X11/(X$7+X$9+X$11) ->  | Y27: =Y11/(Y$7+Y$9+Y$11) ->  | AA27: =AA11/(AA$7+AA$9+AA$11) ->  | AF27: Weekly | AG27: =AG7/SUM($AE$7:$AG$7) -> 
A30: (1) NowCard Data - Lookup Table
A32: Weekly Ticket Price as Multiple of Cash Fare per Journey | B32: Weekly Tickets | D32: No Day Ticket | G32: Daily Ticket Price as Multiple of Cash Fare per Journey
G33: 1 | J33: 2 | M33: 3 | P33: 4 | S33: 5 | V33: 6 | Y33: 7 | AB33: 8 | AE33: 9 | AH33: 10
B34: Weekly Tickets | C34: Weekly Journeys | D34: Daily Tickets | E34: Daily Journeys | F34: Cash Fare Journeys | G34: Daily Tickets | H34: Daily Journeys | I34: Cash Fare Journeys | J34: Daily Tickets | K34: Daily Journeys | L34: Cash Fare Journeys | M34: Daily Tickets | N34: Daily Journeys | O34: Cash Fare Journeys | P34: Daily Tickets | Q34: Daily Journeys | R34: Cash Fare Journeys | S34: Daily Tickets | T34: Daily Journeys | U34: Cash Fare Journeys | V34: Daily Tickets | W34: Daily Journeys | X34: Cash Fare Journeys | Y34: Daily Tickets | Z34: Daily Journeys | AA34: Cash Fare Journeys | AB34: Daily Tickets | AC34: Daily Journeys | AD34: Cash Fare Journeys | AE34: Daily Tickets | AF34: Daily Journeys | AG34: Cash Fare Journeys | AH34: Daily Tickets | AI34: Daily Journeys | AJ34: Cash Fare Journeys
A35: 0 | B35: 0 | C35: 0 | D35: 0 | E35: 0 | F35: 591063.2808 | G35: 280070 | H35: 591063.2808 | I35: 0 | J35: 179204 | K35: 475998.9853 | L35: 115064.2954 | M35: 43917 | N35: 175755.5628 | O35: 415307.7179 | P35: 21313 | Q35: 102059.2228 | R35: 489004.0579 | S35: 6392 | T35: 38074.30392 | U35: 552988.9768 | V35: 2215 | W35: 15571.84387 | X35: 575491.4369 | Y35: 906 | Z35: 7265.049851 | AA35: 583798.2309 | AB35: 320 | AC35: 2991.812034 | AD35: 588071.4687 | AE35: 135 | AF35: 1438.246619 | AG35: 589625.0341 | AH35: 75 | AI35: 874.4156844 | AJ35: 590188.8651
A36: 1 | B36: 123557 | C36: 591063.2808 | D36: 0 | E36: 0 | F36: 0 | G36: 0 | H36: 0 | I36: 0 | J36: 0 | K36: 0 | L36: 0 | M36: 0 | N36: 0 | O36: 0 | P36: 0 | Q36: 0 | R36: 0 | S36: 0 | T36: 0 | U36: 0 | V36: 0 | W36: 0 | X36: 0 | Y36: 0 | Z36: 0 | AA36: 0 | AB36: 0 | AC36: 0 | AD36: 0 | AE36: 0 | AF36: 0 | AG36: 0 | AH36: 0 | AI36: 0 | AJ36: 0
A37: 2 | B37: 100948 | C37: 565087.5792 | D37: 0 | E37: 0 | F37: 25975.70152 | G37: 22609 | H37: 25975.70152 | I37: 5.327819963e-08 | J37: 0 | K37: 0 | L37: 25975.70152 | M37: 0 | N37: 0 | O37: 25975.70152 | P37: 0 | Q37: 0 | R37: 25975.70152 | S37: 0 | T37: 0 | U37: 25975.70152 | V37: 0 | W37: 0 | X37: 25975.70152 | Y37: 0 | Z37: 0 | AA37: 25975.70152 | AB37: 0 | AC37: 0 | AD37: 25975.70152 | AE37: 0 | AF37: 0 | AG37: 25975.70152 | AH37: 0 | AI37: 0 | AJ37: 25975.70152
A38: 3 | B38: 68175 | C38: 491631.9719 | D38: 0 | E38: 0 | F38: 99431.30889 | G38: 61001 | H38: 99431.30889 | I38: 2.134038368e-07 | J38: 27154 | K38: 60560.23566 | L38: 38871.07323 | M38: 0 | N38: 0 | O38: 99431.30889 | P38: 0 | Q38: 0 | R38: 99431.30889 | S38: 0 | T38: 0 | U38: 99431.30889 | V38: 0 | W38: 0 | X38: 99431.30889 | Y38: 0 | Z38: 0 | AA38: 99431.30889 | AB38: 0 | AC38: 0 | AD38: 99431.30889 | AE38: 0 | AF38: 0 | AG38: 99431.30889 | AH38: 0 | AI38: 0 | AJ38: 99431.30889
A39: 4 | B39: 56508 | C39: 453453.1707 | D39: 0 | E39: 0 | F39: 137610.1101 | G39: 83644 | H39: 137610.1101 | I39: 2.626911737e-07 | J39: 37185 | K39: 84935.04331 | L39: 52675.06678 | M39: 2327 | N39: 7604.129383 | O39: 130005.9807 | P39: 0 | Q39: 0 | R39: 137610.1101 | S39: 0 | T39: 0 | U39: 137610.1101 | V39: 0 | W39: 0 | X39: 137610.1101 | Y39: 0 | Z39: 0 | AA39: 137610.1101 | AB39: 0 | AC39: 0 | AD39: 137610.1101 | AE39: 0 | AF39: 0 | AG39: 137610.1101 | AH39: 0 | AI39: 0 | AJ39: 137610.1101
A40: 5 | B40: 42106 | C40: 391624.7524 | D40: 0 | E40: 0 | F40: 199438.5284 | G40: 115094 | H40: 199438.5284 | I40: 2.096639946e-07 | J40: 58177 | K40: 134716.3123 | L40: 64722.21606 | M40: 4654 | N40: 16624.93765 | O40: 182813.5907 | P40: 1399 | Q40: 6021.360444 | R40: 193417.1679 | S40: 0 | T40: 0 | U40: 199438.5284 | V40: 0 | W40: 0 | X40: 199438.5284 | Y40: 0 | Z40: 0 | AA40: 199438.5284 | AB40: 0 | AC40: 0 | AD40: 199438.5284 | AE40: 0 | AF40: 0 | AG40: 199438.5284 | AH40: 0 | AI40: 0 | AJ40: 199438.5284
A41: 6 | B41: 33311 | C41: 344074.3773 | D41: 0 | E41: 0 | F41: 246988.9035 | G41: 139550 | H41: 246988.9035 | I41: 2.176093403e-07 | J41: 72036 | K41: 170145.481 | L41: 76843.42243 | M41: 7448 | N41: 26838.9264 | O41: 220149.9771 | P41: 2207 | Q41: 9782.97737 | R41: 237205.9261 | S41: 265 | T41: 1423.145915 | U41: 245565.7576 | V41: 0 | W41: 0 | X41: 246988.9035 | Y41: 0 | Z41: 0 | AA41: 246988.9035 | AB41: 0 | AC41: 0 | AD41: 246988.9035 | AE41: 0 | AF41: 0 | AG41: 246988.9035 | AH41: 0 | AI41: 0 | AJ41: 246988.9035
A42: 7 | B42: 26815 | C42: 302850.5817 | D42: 0 | E42: 0 | F42: 288212.699 | G42: 159692 | H42: 288212.699 | I42: 2.717715688e-07 | J42: 86387 | K42: 205010.7299 | L42: 83201.96909 | M42: 9970 | N42: 36336.82264 | O42: 251875.8764 | P42: 3305 | Q42: 14652.27728 | R42: 273560.4217 | S42: 407 | T42: 2229.888891 | U42: 285982.8101 | V42: 51 | W42: 323.9811487 | X42: 287888.7179 | Y42: 0 | Z42: 0 | AA42: 288212.699 | AB42: 0 | AC42: 0 | AD42: 288212.699 | AE42: 0 | AF42: 0 | AG42: 288212.699 | AH42: 0 | AI42: 0 | AJ42: 288212.699
A43: 8 | B43: 21320 | C43: 262631.7722 | D43: 0 | E43: 0 | F43: 328431.5086 | G43: 178719 | H43: 328431.5086 | I43: 2.845190465e-07 | J43: 98942 | K43: 237784.0213 | L43: 90647.48728 | M43: 12971 | N43: 47598.05079 | O43: 280833.4578 | P43: 4445 | Q43: 19896.58067 | R43: 308534.9279 | S43: 656 | T43: 3638.23582 | U43: 324793.2728 | V43: 101 | W43: 664.9279883 | X43: 327766.5806 | Y43: 26 | Z43: 189.5981462 | AA43: 328241.9104 | AB43: 0 | AC43: 0 | AD43: 328431.5086 | AE43: 0 | AF43: 0 | AG43: 328431.5086 | AH43: 0 | AI43: 0 | AJ43: 328431.5086
A44: 9 | B44: 16612 | C44: 223131.853 | D44: 0 | E44: 0 | F44: 367931.4278 | G44: 196746 | H44: 367931.4278 | I44: 2.422020771e-07 | J44: 111818 | K44: 271316.1352 | L44: 96615.29253 | M44: 15972 | N44: 59192.41482 | O44: 308739.013 | P44: 5827 | Q44: 26219.88472 | R44: 341711.5431 | S44: 937 | T44: 5253.803146 | U44: 362677.6246 | V44: 169 | W44: 1117.988379 | X44: 366813.4394 | Y44: 45 | Z44: 331.8438347 | AA44: 367599.5839 | AB44: 4 | AC44: 34.09031816 | AD44: 367897.3375 | AE44: 0 | AF44: 0 | AG44: 367931.4278 | AH44: 0 | AI44: 0 | AJ44: 367931.4278
A45: 10 | B45: 13431 | C45: 193199.9083 | D45: 0 | E45: 0 | F45: 397863.3725 | G45: 210133 | H45: 397863.3725 | I45: 2.136803232e-07 | J45: 121673 | K45: 297312.7021 | L45: 100550.6704 | M45: 18726 | N45: 69636.01959 | O45: 328227.3529 | P45: 6939 | Q45: 31321.29858 | R45: 366542.0739 | S45: 1182 | T45: 6631.102545 | U45: 391232.27 | V45: 218 | W45: 1449.984857 | X45: 396413.3876 | Y45: 60 | Z45: 446.137253 | AA45: 397417.2352 | AB45: 6 | AC45: 52.61294879 | AD45: 397810.7596 | AE45: 2 | AF45: 18.52263063 | AG45: 397844.8499 | AH45: 0 | AI45: 0 | AJ45: 397863.3725
A46: 11 | B46: 10517 | C46: 162808.5266 | D46: 0 | E46: 0 | F46: 428254.7541 | G46: 223224 | H46: 428254.7541 | I46: 1.860898919e-07 | J46: 131690 | K46: 324122.8819 | L46: 104131.8722 | M46: 21418 | N46: 80177.26185 | O46: 348077.4923 | P46: 8217 | Q46: 37229.1408 | R46: 391025.6133 | S46: 1477 | T46: 8326.763868 | U46: 419927.9903 | V46: 298 | W46: 1981.535095 | X46: 426273.219 | Y46: 78 | Z46: 586.2594182 | AA46: 427668.4947 | AB46: 12 | AC46: 104.3330691 | AD46: 428150.4211 | AE46: 3 | AF46: 28.69652851 | AG46: 428226.0576 | AH46: 1 | AI46: 10.17389789 | AJ46: 428244.5802
A47: 12 | B47: 8252 | C47: 136769.0069 | D47: 0 | E47: 0 | F47: 454294.2739 | G47: 234047 | H47: 454294.2739 | I47: 1.809094101e-07 | J47: 139937 | K47: 347145.9872 | L47: 107148.2867 | M47: 24076 | N47: 90620.8 | O47: 363673.4739 | P47: 9460 | Q47: 43049.37522 | R47: 411244.8986 | S47: 1785 | T47: 10110.87367 | U47: 444183.4002 | V47: 380 | W47: 2539.947518 | X47: 451754.3263 | Y47: 106 | Z47: 801.1169178 | AA47: 453493.1569 | AB47: 23 | AC47: 197.4349519 | AD47: 454096.8389 | AE47: 4 | AF47: 37.98576539 | AG47: 454256.2881 | AH47: 1 | AI47: 10.17389789 | AJ47: 454284.1
A48: 13 | B48: 6533 | C48: 115226.1395 | D48: 0 | E48: 0 | F48: 475837.1413 | G48: 242747 | H48: 475837.1413 | I48: 1.887674443e-07 | J48: 147002 | K48: 366814.0196 | L48: 109023.1216 | M48: 26449 | N48: 100003.9411 | O48: 375833.2001 | P48: 10626 | Q48: 48478.57445 | R48: 427358.5668 | S48: 2079 | T48: 11808.90488 | U48: 464028.2364 | V48: 469 | W48: 3137.030218 | X48: 472700.1111 | Y48: 128 | Z48: 969.5745227 | AA48: 474867.5668 | AB48: 27 | AC48: 234.349548 | AD48: 475602.7917 | AE48: 6 | AF48: 57.78290266 | AG48: 475779.3584 | AH48: 2 | AI48: 20.19384055 | AJ48: 475816.9474
A49: 14 | B49: 5316 | C49: 98804.82746 | D49: 0 | E49: 0 | F49: 492258.4533 | G49: 249152 | H49: 492258.4533 | I49: 1.972657628e-07 | J49: 152199 | K49: 381816.4116 | L49: 110442.0417 | M49: 28386 | N49: 107683.3876 | O49: 384575.0657 | P49: 11616 | Q49: 53102.47197 | R49: 439155.9813 | S49: 2355 | T49: 13388.42239 | U49: 478870.0309 | V49: 541 | W49: 3620.627131 | X49: 488637.8262 | Y49: 151 | Z49: 1142.387746 | AA49: 491116.0655 | AB49: 31 | AC49: 268.8909575 | AD49: 491989.5623 | AE49: 7 | AF49: 68.16339399 | AG49: 492190.2899 | AH49: 3 | AI49: 30.57433188 | AJ49: 492227.879
A50: 15 | B50: 4222 | C50: 82968.35358 | D50: 0 | E50: 0 | F50: 508094.9272 | G50: 255054 | H50: 508094.9272 | I50: 2.02388037e-07 | J50: 157068 | K50: 396419.571 | L50: 111675.3562 | M50: 30388 | N50: 115831.7699 | O50: 392263.1573 | P50: 12704 | Q50: 58266.55442 | R50: 449828.3728 | S50: 2668 | T50: 15224.2766 | U50: 492870.6506 | V50: 650 | W50: 4357.895537 | X50: 503737.0316 | Y50: 188 | Z50: 1422.379226 | AA50: 506672.548 | AB50: 39 | AC50: 337.7411599 | AD50: 507757.186 | AE50: 8 | AF50: 77.54388532 | AG50: 508017.3833 | AH50: 3 | AI50: 30.57433188 | AJ50: 508064.3528
A51: 16 | B51: 3284 | C51: 68405.9818 | D51: 0 | E51: 0 | F51: 522657.2989 | G51: 260249 | H51: 522657.2989 | I51: 2.075685188e-07 | J51: 161436 | K51: 410013.7044 | L51: 112643.5945 | M51: 32410 | N51: 124109.0088 | O51: 398548.2901 | P51: 13786 | Q51: 63468.17024 | R51: 459189.1287 | S51: 3037 | T51: 17379.37979 | U51: 505277.9192 | V51: 766 | W51: 5153.576066 | X51: 517503.7229 | Y51: 229 | Z51: 1745.670632 | AA51: 520911.6283 | AB51: 56 | AC51: 484.8549271 | AD51: 522172.444 | AE51: 13 | AF51: 124.6072217 | AG51: 522532.6917 | AH51: 4 | AI51: 40.66648398 | AJ51: 522616.6325
A52: 17 | B52: 2663 | C52: 58153.50107 | D52: 0 | E52: 0 | F52: 532909.7797 | G52: 263781 | H52: 532909.7797 | I52: 1.770677045e-07 | J52: 164460 | K52: 419686.9334 | L52: 113222.8462 | M52: 33969 | N52: 130507.5215 | O52: 402402.2582 | P52: 14660 | Q52: 67616.59192 | R52: 465293.1878 | S52: 3299 | T52: 18892.16486 | U52: 514017.6148 | V52: 845 | W52: 5685.996495 | X52: 527223.7832 | Y52: 252 | Z52: 1920.730428 | AA52: 530989.0493 | AB52: 61 | AC52: 528.9770311 | AD52: 532380.8026 | AE52: 15 | AF52: 144.1204987 | AG52: 532765.6592 | AH52: 5 | AI52: 50.84038187 | AJ52: 532858.9393
A53: 18 | B53: 2161 | C53: 49378.34575 | D53: 0 | E53: 0 | F53: 541684.935 | G53: 266688 | H53: 541684.935 | I53: 1.441221684e-07 | J53: 166993 | K53: 428010.9839 | L53: 113673.9511 | M53: 35293 | N53: 136067.4985 | O53: 405617.4365 | P53: 15438 | Q53: 71394.29284 | R53: 470290.6422 | S53: 3574 | T53: 20512.03048 | U53: 521172.9045 | V53: 940 | W53: 6336.0202 | X53: 535348.9148 | Y53: 284 | Z53: 2168.476047 | AA53: 539516.459 | AB53: 69 | AC53: 602.5081927 | AD53: 541082.4268 | AE53: 18 | AF53: 175.6836421 | AG53: 541509.2514 | AH53: 7 | AI53: 72.84818507 | AJ53: 541612.0868
A54: 19 | B54: 1725 | C54: 41293.34727 | D54: 0 | E54: 0 | F54: 549769.9335 | G54: 269246 | H54: 549769.9335 | I54: 1.17928721e-07 | J54: 169201 | K54: 435674.4024 | L54: 114095.531 | M54: 36617 | N54: 141667.9386 | O54: 408101.9949 | P54: 16196 | Q54: 75125.75544 | R54: 474644.178 | S54: 3879 | T54: 22302.99364 | U54: 527466.9398 | V54: 1036 | W54: 6994.731361 | X54: 542775.2021 | Y54: 325 | Z54: 2480.45644 | AA54: 547289.477 | AB54: 79 | AC54: 689.4508357 | AD54: 549080.4826 | AE54: 19 | AF54: 186.85754 | AG54: 549583.0759 | AH54: 8 | AI54: 84.02208295 | AJ54: 549685.9114
A55: 20 | B55: 1386 | C55: 34661.48683 | D55: 0 | E55: 0 | F55: 556401.7939 | G55: 271294 | H55: 556401.7939 | I55: 9.464565665e-08 | J55: 171027 | K55: 442046.6855 | L55: 114355.1084 | M55: 37772 | N55: 146518.3019 | O55: 409883.492 | P55: 16860 | Q55: 78372.73666 | R55: 478029.0573 | S55: 4139 | T55: 23822.28923 | U55: 532579.5047 | V55: 1117 | W55: 7552.844624 | X55: 548848.9493 | Y55: 359 | Z55: 2738.731278 | AA55: 553663.0626 | AB55: 87 | AC55: 759.4389743 | AD55: 555642.3549 | AE55: 21 | AF55: 206.6927225 | AG55: 556195.1012 | AH55: 9 | AI55: 94.47277058 | AJ55: 556307.3211
A56: 21 | B56: 1127 | C56: 29343.26054 | D56: 0 | E56: 0 | F56: 561720.0202 | G56: 272867 | H56: 561720.0202 | I56: 7.916241884e-08 | J56: 172450 | K56: 447191.2639 | L56: 114528.7563 | M56: 38711 | N56: 150545.6305 | O56: 411174.3897 | P56: 17450 | Q56: 81250.78464 | R56: 480469.2356 | S56: 4361 | T56: 25128.01803 | U56: 536592.0022 | V56: 1197 | W56: 8094.021828 | X56: 553625.9984 | Y56: 382 | Z56: 2913.909448 | AA56: 558806.1108 | AB56: 91 | AC56: 793.4357734 | AD56: 560926.5844 | AE56: 22 | AF56: 215.844515 | AG56: 561504.1757 | AH56: 9 | AI56: 94.47277058 | AJ56: 561625.5474
A57: 22 | B57: 880 | C57: 24022.13837 | D57: 0 | E57: 0 | F57: 567041.1424 | G57: 274383 | H57: 567041.1424 | I57: 6.61239028e-08 | J57: 173819 | K57: 452336.5928 | L57: 114704.5496 | M57: 39663 | N57: 154730.5885 | O57: 412310.5539 | P57: 18075 | Q57: 84372.04233 | R57: 482669.1 | S57: 4618 | T57: 26670.37652 | U57: 540370.7659 | V57: 1289 | W57: 8744.935929 | X57: 558296.2064 | Y57: 423 | Z57: 3243.675255 | AA57: 563797.4671 | AB57: 106 | AC57: 934.0416878 | AD57: 566107.1007 | AE57: 26 | AF57: 263.7962632 | AG57: 566777.3461 | AH57: 12 | AI57: 133.1774265 | AJ57: 566907.965
A58: 23 | B58: 749 | C58: 21065.81847 | D58: 0 | E58: 0 | F58: 569997.4623 | G58: 275202 | H58: 569997.4623 | I58: 5.506444722e-08 | J58: 174578 | K58: 455224.7656 | L58: 114772.6967 | M58: 40216 | N58: 157154.0831 | O58: 412843.3792 | P58: 18447 | Q58: 86202.41822 | R58: 483795.0441 | S58: 4764 | T58: 27527.01704 | U58: 542470.4452 | V58: 1336 | W58: 9070.302551 | X58: 560927.1597 | Y58: 442 | Z58: 3389.796336 | AA58: 566607.6659 | AB58: 111 | AC58: 976.6781483 | AD58: 569020.7841 | AE58: 27 | AF58: 273.5734578 | AG58: 569723.8888 | AH58: 12 | AI58: 133.1774265 | AJ58: 569864.2849
A59: 24 | B59: 591 | C59: 17340.31799 | D59: 0 | E59: 0 | F59: 573722.9628 | G59: 276199 | H59: 573722.9628 | I59: 4.179310054e-08 | J59: 175506 | K59: 458868.6574 | L59: 114854.3054 | M59: 40898 | N59: 160221.7045 | O59: 413501.2583 | P59: 18930 | Q59: 88620.07285 | R59: 485102.8899 | S59: 4975 | T59: 28785.9245 | U59: 544937.0383 | V59: 1419 | W59: 9643.176194 | X59: 564079.7866 | Y59: 480 | Z59: 3679.851778 | AA59: 570043.111 | AB59: 121 | AC59: 1062.86082 | AD59: 572660.1019 | AE59: 29 | AF59: 292.4688861 | AG59: 573430.4939 | AH59: 12 | AI59: 133.1774265 | AJ59: 573589.7853
A60: 25 | B60: 460 | C60: 14105.62277 | D60: 0 | E60: 0 | F60: 576957.658 | G60: 277042 | H60: 576957.658 | I60: 3.154855222e-08 | J60: 176301 | K60: 462047.4234 | L60: 114910.2346 | M60: 41485 | N60: 162924.2981 | O60: 414033.3599 | P60: 19358 | Q60: 90804.99299 | R60: 486152.665 | S60: 5183 | T60: 30028.25815 | U60: 546929.3998 | V60: 1512 | W60: 10272.64524 | X60: 566685.0127 | Y60: 508 | Z60: 3896.843696 | AA60: 573060.8143 | AB60: 130 | AC60: 1141.958296 | AD60: 575815.6997 | AE60: 31 | AF60: 313.2881903 | AG60: 576644.3698 | AH60: 13 | AI60: 144.6713393 | AJ60: 576812.9866
A61: 26 | B61: 381 | C61: 12079.97571 | D61: 0 | E61: 0 | F61: 578983.305 | G61: 277554 | H61: 578983.305 | I61: 2.363231033e-08 | J61: 176783 | K61: 464037.5627 | L61: 114945.7424 | M61: 41853 | N61: 164646.4527 | O61: 414336.8523 | P61: 19625 | Q61: 92199.02592 | R61: 486784.2791 | S61: 5307 | T61: 30808.90914 | U61: 548174.3959 | V61: 1575 | W61: 10723.77845 | X61: 568259.5266 | Y61: 542 | Z61: 4165.716571 | AA61: 574817.5885 | AB61: 141 | AC61: 1240.992049 | AD61: 577742.313 | AE61: 34 | AF61: 344.0325853 | AG61: 578639.2725 | AH61: 15 | AI61: 165.7719388 | AJ61: 578817.5331
A62: 27 | B62: 317 | C62: 10371.95661 | D62: 0 | E62: 0 | F62: 580691.3241 | G62: 277975 | H62: 580691.3241 | I62: 1.990702003e-08 | J62: 177181 | K62: 465718.8906 | L62: 114972.4335 | M62: 42167 | N62: 166132.8095 | O62: 414558.5147 | P62: 19861 | Q62: 93429.98456 | R62: 487261.3396 | S62: 5438 | T62: 31593.44271 | U62: 549097.8814 | V62: 1630 | W62: 11106.23601 | X62: 569585.0881 | Y62: 565 | Z62: 4344.728269 | AA62: 576346.5959 | AB62: 148 | AC62: 1304.471449 | AD62: 579386.8527 | AE62: 38 | AF62: 382.609731 | AG62: 580308.7144 | AH62: 17 | AI62: 185.8529363 | AJ62: 580505.4712
A63: 28 | B63: 257 | C63: 8710.011985 | D63: 0 | E63: 0 | F63: 582353.2688 | G63: 278358 | H63: 582353.2688 | I63: 1.443549991e-08 | J63: 177547 | K63: 467361.1169 | L63: 114992.1518 | M63: 42480 | N63: 167650.6186 | O63: 414702.6502 | P63: 20091 | Q63: 94677.39453 | R63: 487675.8742 | S63: 5562 | T63: 32388.2718 | U63: 549964.997 | V63: 1703 | W63: 11630.14555 | X63: 570723.1232 | Y63: 594 | Z63: 4589.459518 | AA63: 577763.8092 | AB63: 162 | AC63: 1438.132416 | AD63: 580915.1364 | AE63: 45 | AF63: 457.7492831 | AG63: 581895.5195 | AH63: 21 | AI63: 233.0163139 | AJ63: 582120.2525
A64: 29 | B64: 230 | C64: 7940.979 | D64: 0 | E64: 0 | F64: 583122.3018 | G64: 278535 | H64: 583122.3018 | I64: 1.408625394e-08 | J64: 177717 | K64: 468121.3301 | L64: 115000.9716 | M64: 42623 | N64: 168344.4481 | O64: 414777.8536 | P64: 20202 | Q64: 95261.44248 | R64: 487860.8593 | S64: 5617 | T64: 32727.92667 | U64: 550394.3751 | V64: 1728 | W64: 11804.38199 | X64: 571317.9198 | Y64: 604 | Z64: 4670.112509 | AA64: 578452.1892 | AB64: 166 | AC64: 1473.702388 | AD64: 581648.5994 | AE64: 47 | AF64: 476.3828567 | AG64: 582645.9189 | AH64: 21 | AI64: 233.0163139 | AJ64: 582889.2854
A65: 30 | B65: 193 | C65: 6854.384293 | D65: 0 | E65: 0 | F65: 584208.8965 | G65: 278780 | H65: 584208.8965 | I65: 1.373700798e-08 | J65: 177949 | K65: 469191.2397 | L65: 115017.6568 | M65: 42814 | N65: 169316.5494 | O65: 414892.347 | P65: 20354 | Q65: 96104.20434 | R65: 488104.6921 | S65: 5705 | T65: 33296.83129 | U65: 550912.0652 | V65: 1779 | W65: 12173.28522 | X65: 572035.6112 | Y65: 631 | Z65: 4888.894727 | AA65: 579320.0017 | AB65: 177 | AC65: 1576.666564 | AD65: 582632.2299 | AE65: 52 | AF65: 527.5944589 | AG65: 583681.302 | AH65: 23 | AI65: 255.7408353 | AJ65: 583953.1556
A66: 31 | B66: 157 | C66: 5761.490168 | D66: 0 | E66: 0 | F66: 585301.7906 | G66: 279016 | H66: 585301.7906 | I66: 1.129228622e-08 | J66: 178178 | K66: 470275.7423 | L66: 115026.0483 | M66: 43008 | N66: 170319.9161 | O66: 414981.8745 | P66: 20517 | Q66: 97003.96861 | R66: 488297.822 | S66: 5804 | T66: 33922.95592 | U66: 551378.8347 | V66: 1831 | W66: 12547.65499 | X66: 572754.1356 | Y66: 659 | Z66: 5112.209133 | AA66: 580189.5815 | AB66: 188 | AC66: 1675.412126 | AD66: 583626.3785 | AE66: 56 | AF66: 567.8252029 | AG66: 584733.9654 | AH66: 26 | AI66: 286.6461877 | AJ66: 585015.1444
A67: 32 | B67: 121 | C67: 4632.949214 | D67: 0 | E67: 0 | F67: 586430.3315 | G67: 279252 | H67: 586430.3315 | I67: 9.313225746e-09 | J67: 178409 | K67: 471397.2966 | L67: 115033.035 | M67: 43205 | N67: 171356.7742 | O67: 415073.5574 | P67: 20686 | Q67: 97946.36934 | R67: 488483.9622 | S67: 5904 | T67: 34570.01386 | U67: 551860.3177 | V67: 1885 | W67: 12946.24201 | X67: 573484.0895 | Y67: 685 | Z67: 5333.54024 | AA67: 581096.7913 | AB67: 200 | AC67: 1794.424945 | AD67: 584635.9066 | AE67: 63 | AF67: 643.4674115 | AG67: 585786.8641 | AH67: 30 | AI67: 333.7455163 | AJ67: 586096.586
A68: 33 | B68: 98 | C68: 3884.505734 | D68: 0 | E68: 0 | F68: 587178.775 | G68: 279409 | H68: 587178.775 | I68: 8.731149137e-09 | J68: 178565 | K68: 472144.6833 | L68: 115034.0917 | M68: 43335 | N68: 172039.6822 | O68: 415139.0929 | P68: 20790 | Q68: 98541.95201 | R68: 488636.823 | S68: 5972 | T68: 35006.0016 | U68: 552172.7734 | V68: 1916 | W68: 13171.52673 | X68: 574007.2483 | Y68: 702 | Z68: 5470.523188 | AA68: 581708.2518 | AB68: 207 | AC68: 1860.32501 | AD68: 585318.45 | AE68: 67 | AF68: 684.1117796 | AG68: 586494.6632 | AH68: 32 | AI68: 355.4680714 | AJ68: 586823.3069
A69: 34 | B69: 84 | C69: 3417.320789 | D69: 0 | E69: 0 | F69: 587645.96 | G69: 279501 | H69: 587645.96 | I69: 7.450580597e-09 | J69: 178650 | K69: 472602.1116 | L69: 115043.8483 | M69: 43408 | N69: 172464.3099 | O69: 415181.6501 | P69: 20857 | Q69: 98946.49215 | R69: 488699.4678 | S69: 6025 | T69: 35350.51127 | U69: 552295.4487 | V69: 1942 | W69: 13366.22054 | X69: 574279.7394 | Y69: 719 | Z69: 5608.82291 | AA69: 582037.1371 | AB69: 212 | AC69: 1909.588402 | AD69: 585736.3716 | AE69: 70 | AF69: 716.1383975 | AG69: 586929.8216 | AH69: 34 | AI69: 377.5109012 | AJ69: 587268.4491
A70: 35 | B70: 68 | C70: 2866.633841 | D70: 0 | E70: 0 | F70: 588196.6469 | G70: 279608 | H70: 588196.6469 | I70: 4.889443517e-09 | J70: 178752 | K70: 473145.9282 | L70: 115050.7187 | M70: 43501 | N70: 172984.947 | O70: 415211.6999 | P70: 20932 | Q70: 99407.79589 | R70: 488788.851 | S70: 6079 | T70: 35719.14097 | U70: 552477.5059 | V70: 1977 | W70: 13631.36368 | X70: 574565.2832 | Y70: 744 | Z70: 5809.856695 | AA70: 582386.7902 | AB70: 221 | AC70: 1994.190822 | AD70: 586202.4561 | AE70: 76 | AF70: 775.6721695 | AG70: 587420.9747 | AH70: 37 | AI70: 409.0893056 | AJ70: 587787.5576
A71: 36 | B71: 56 | C71: 2442.366088 | D71: 0 | E71: 0 | F71: 588620.9147 | G71: 279690 | H71: 588620.9147 | I71: 4.190951586e-09 | J71: 178830 | K71: 473564.6627 | L71: 115056.252 | M71: 43567 | N71: 173375.5611 | O71: 415245.3536 | P71: 20992 | Q71: 99777.23663 | R71: 488843.678 | S71: 6123 | T71: 36019.52887 | U71: 552601.3858 | V71: 2008 | W71: 13860.49717 | X71: 574760.4175 | Y71: 764 | Z71: 5970.488214 | AA71: 582650.4265 | AB71: 231 | AC71: 2081.442917 | AD71: 586539.4717 | AE71: 79 | AF71: 804.5559537 | AG71: 587816.3587 | AH71: 38 | AI71: 419.2632034 | AJ71: 588201.6515
A72: 37 | B72: 45 | C72: 2041.488415 | D72: 0 | E72: 0 | F72: 589021.7923 | G72: 279764 | H72: 589021.7923 | I72: 2.444721758e-09 | J72: 178902 | K72: 473963.0302 | L72: 115058.7621 | M72: 43628 | N72: 173749.5948 | O72: 415272.1975 | P72: 21045 | Q72: 100123.3225 | R72: 488898.4698 | S72: 6165 | T72: 36315.428 | U72: 552706.3643 | V72: 2036 | W72: 14079.61813 | X72: 574942.1742 | Y72: 783 | Z72: 6130.483707 | AA72: 582891.3086 | AB72: 242 | AC72: 2183.188454 | AD72: 586838.6039 | AE72: 82 | AF72: 839.7498215 | AG72: 588182.0425 | AH72: 41 | AI72: 454.4570712 | AJ72: 588567.3353
A73: 38 | B73: 36 | C73: 1705.580767 | D73: 0 | E73: 0 | F73: 589357.7 | G73: 279824 | H73: 589357.7 | I73: 1.513399184e-09 | J73: 178962 | K73: 474298.9379 | L73: 115058.7621 | M73: 43684 | N73: 174075.5442 | O73: 415282.1558 | P73: 21092 | Q73: 100419.8276 | R73: 488937.8724 | S73: 6200 | T73: 36560.16517 | U73: 552797.5348 | V73: 2061 | W73: 14269.88483 | X73: 575087.8152 | Y73: 798 | Z73: 6257.686228 | AA73: 583100.0138 | AB73: 251 | AC73: 2266.782097 | AD73: 587090.9179 | AE73: 87 | AF73: 889.1064523 | AG73: 588468.5935 | AH73: 44 | AI73: 485.2412183 | AJ73: 588872.4588
A74: 39 | B74: 29 | C74: 1436.299442 | D74: 0 | E74: 0 | F74: 589626.9813 | G74: 279870 | H74: 589626.9813 | I74: 1.047737896e-09 | J74: 179006 | K74: 474565.5927 | L74: 115061.3886 | M74: 43727 | N74: 174340.026 | O74: 415286.9554 | P74: 21132 | Q74: 100674.1625 | R74: 488952.8188 | S74: 6231 | T74: 36774.86806 | U74: 552852.1133 | V74: 2082 | W74: 14428.74592 | X74: 575198.2354 | Y74: 811 | Z74: 6363.949592 | AA74: 583263.0317 | AB74: 255 | AC74: 2307.986195 | AD74: 587318.9951 | AE74: 90 | AF74: 922.0514675 | AG74: 588704.9298 | AH74: 46 | AI74: 508.2024454 | AJ74: 589118.7789
A75: 40 | B75: 25 | C75: 1278.966091 | D75: 0 | E75: 0 | F75: 589784.3147 | G75: 279896 | H75: 589784.3147 | I75: 0 | J75: 179032 | K75: 474722.9261 | L75: 115061.3886 | M75: 43751 | N75: 174493.2508 | O75: 415291.0638 | P75: 21154 | Q75: 100819.9138 | R75: 488964.4009 | S75: 6251 | T75: 36912.01512 | U75: 552872.2995 | V75: 2096 | W75: 14533.45635 | X75: 575250.8583 | Y75: 819 | Z75: 6430.745503 | AA75: 583353.5692 | AB75: 259 | AC75: 2345.703278 | AD75: 587438.6114 | AE75: 91 | AF75: 934.73549 | AG75: 588849.5792 | AH75: 47 | AI75: 520.886468 | AJ75: 589263.4282
A76: More than 40 | B76: 0 | C76: 0 | D76: 0 | E76: 0 | F76: 591063.2808 | G76: 280070 | H76: 591063.2808 | I76: 0 | J76: 179204 | K76: 475998.9853 | L76: 115064.2954 | M76: 43917 | N76: 175755.5628 | O76: 415307.7179 | P76: 21313 | Q76: 102059.2228 | R76: 489004.0579 | S76: 6392 | T76: 38074.30392 | U76: 552988.9768 | V76: 2215 | W76: 15571.84387 | X76: 575491.4369 | Y76: 906 | Z76: 7265.049851 | AA76: 583798.2309 | AB76: 320 | AC76: 2991.812034 | AD76: 588071.4687 | AE76: 135 | AF76: 1438.246619 | AG76: 589625.0341 | AH76: 75 | AI76: 874.4156844 | AJ76: 590188.8651

Sheet RF Workings
E2: CPI Index | F2: CPI /GDP Deflator | G2: Deflation Factor
E3: 2005/6 | F3: ='Update Inflation'!I3 -> 78.9 | G3: =$F$3/F3 -> 1
E4: 2006/7 | F4: ='Update Inflation'!I4 -> 81.4 | G4: =$F$3/F4 -> 0.9692874693
E5: 2007/8 | F5: ='Update Inflation'!I5 -> 83.4 | G5: =$F$3/F5 -> 0.9460431655
E6: 2008/9 | F6: ='Update Inflation'!I6 -> 85.8 | G6: 0.9195804196
E7: 2009/10 | F7: ='Update Inflation'!I7 -> 88.7 | G7: 0.8895152198
E8: 2010/11 | F8: ='Update Inflation'!I8 -> 92.2 | G8: 0.8557483731
E9: 2011/12 | F9: ='Update Inflation'!I9 -> 95.4 | G9: 0.8270440252
E10: 2012/13 | F10: ='Update Inflation'!I10 -> 98.1 | G10: 0.8042813456
E11: 2013/14 | F11: ='Update Inflation'!I11 -> 99.7 | G11: 0.7913741224 | K11: CPI Index
E12: 2014/15 | F12: ='Update Inflation'!I12 -> 99.7 | G12: 0.7913741224 | K12: http://www.ons.gov.uk/economy/inflationandpriceindices/timeseries/d7bt/mm23#
E13: 2015/16 | F13: ='Update Inflation'!I13 -> 100.2 | G13: 0.7874251497 | K13: Choose CPI indices for March (End of Quarter 1)
C14: ='RF Workings'!G92 ->  | E14: 2016/17 | F14: ='Update Inflation'!I14 -> 102.5 | G14: =$F$3/F14 -> 0.7697560976
E15: 2017/18 | F15: ='Update Inflation'!I15 -> 105 | G15: 0.7514285714
E16: 2018/19 | F16: ='Update Inflation'!I16 -> 107 | G16: 0.7373831776
E17: 2019/20 | F17: ='Update Inflation'!I17 -> 108.6 | G17: =$F$3/F17 -> 0.726519337
E18: 2020/21 | F18: ='Update Inflation'!I18 -> 109.4 | G18: =$F$3/F18 -> 0.7212065814
E19: 2021/22 | F19: ='Update Inflation'!I19 -> 117.1 | G19: =$F$3/F19 -> 0.6737830914
E20: 2022/23 | F20: ='Update Inflation'!I20 -> 122.7903058 | G20: 0.6425588689
E21: 2023/24 | F21: ='Update Inflation'!I21 -> 126.7595386 | G21: =$F$3/F21 -> 0.6224383652
E23: Area Type | K23: GDP Deflator
E24: PTE | K24: https://www.gov.uk/government/statistics/gdp-deflators-at-market-prices-and-money-gdp-june-2017-quarterly-national-accounts-june-2017
E25: Non-PTE | K25: Choose Financial Year percentage
E28: Use 2005/6 Fare
E29: Yes
E30: No
E33: Single Demand Curve Parameters | F33: PTE | G33: Non-PTE
E34: Half/Flat Fare index in £2005/6 | F34: 0.36 | G34: 0.5
E35: Index of observed trips at half/flat fare (excluding abstraction) | F35: 70.9109596 | G35: 51.55992864
E36: Index of trips at half/flat fare (including abstraction) | F36: 72.65802437 | G36: 58.50537724
E37: Index of "old" passholder Trips | F37: 0.9417645075 | G37: 0.7684850467
E38: Constant k | F38: 100 | G38: 100
E39: λ | F39: 0.7231994448 | G39: 0.64055596
E40: β | F40: -0.6686907728 | G40: -0.8356666826
E41: Fare elasticity at £1 (2005/6) | F41: -0.5140157734 | G41: -0.6702574913
E43: National Bus Fare Index | F43: PTE | G43: Non-PTE
E44: Percentage change in fares between 2005/6 and 2010/11 | F44: 0.3282484223 | G44: 0.2064816431 | H44: Bus Fare Index 2011 Source: Monthly Digest of Statistics (Change in Fare between 2005/6 and 2006/7 assumed to be same as CPI)
E48: Using operator specific change in fares to calculate reimbursement
E50: Current nominal average fare foregone | G50: ='RF model'!C6 -> 0
E51: Current average Fare in 2005/6 prices | G51: =G50*VLOOKUP('Start Page'!G4,$E$3:$G$21,3,TRUE) -> 0
E52: Percentage Change in Average Fares between 2005/6 and the current year | G52: ='RF model'!C30 -> 0
E53: Estimated average fare in 2005/6 | G53: =G50/(1+G52) -> 0
E54: Average Fare index on SDC | G54: =G51/G53 -> 
E55: Reimbursement Factor | G55: =IF('Start Page'!G3="Non-PTE",EXP(G40*(G54^G39)),(EXP(F40*(G54^F39)))) -> 
E59: Using TCA wide average fare to calculate reimbursement factor
E61: Current nominal average fare foregone | G61: ='RF model'!C6 -> 0
E62: Average fare in 2005/6 prices | G62: =G61*VLOOKUP('Start Page'!G4,$E$3:$G$21,3,TRUE) -> 0
E63: Percentage change in fares between 2005/6 and 2010/11 | G63: ='RF model'!C35 -> 0
E64: Percentage change in operator specific nominal fares between 2010/11 and current reimbursement period | G64: ='RF model'!C36 -> 0
E65: Total change in fares between 2005/6 and current reimbursement period | G65: =((1+G63)*(1+G64)-1) -> 0
E66: Estimated average fare in 2005/6 | G66: =G61/(1+G65) -> 0
E67: Average Fare Index on SDC | G67: =G62/G66 -> 
E68: Reimbursement Factor | G68: =IF('Start Page'!G3="Non-PTE",EXP(G40*(G67^G39)),EXP(F40*(G67^F39))) -> 
E72: Using the National Bus Fare Index to calculate reimbursement
E74: Current nominal average fare foregone | G74: ='RF model'!C6 -> 0
E75: Average fare in 2005/6 prices | G75: =G74*VLOOKUP('Start Page'!$G$4,$E$3:$G$21,3, TRUE) -> 0
E76: Percentage change in nominal fares between 2005/6 and 2010/11 | G76: =IF('Start Page'!G3="Non-PTE",G44,F44) -> 0.2064816431
E77: Operator specific change in nominal fares deflator between 2010/11 and current reimbursement period | G77: ='RF model'!C39 -> 0
E78: Total percentage change in average fares since 2005/6 | G78: =((G76+1)*(G77+1)-1) -> 0.2064816431
E79: Estimated Average Fare in 2005/6 | G79: =G74/(1+G78) -> 0
E80: Average fare index on SDC | G80: =G75/G79 -> 
E81: Reimbursement Factor | G81: =IF('Start Page'!$G$3= "Non-PTE",EXP($G$40*(G80^$G$39)),EXP($F$40*(G80^$F$39))) -> 
E85: New Operator
E87: Current nominal average fare foregone | G87: ='RF model'!C6 -> 0
E88: Average fare in 2005/6 prices | G88: =G87*VLOOKUP('Start Page'!$G$4,$E$3:$G$21,3, TRUE) -> 0
E89: Percentage change in TCA wide nominal fares between 2005/6 and current reimbursement period | G89: ='RF model'!C48 -> 0
E90: Estimated Average Fare in 2005/6 | G90: =G87/(1+G89) -> 0
E91: Average fare index on SDC | G91: =G88/G90 -> 
E92: Reimbursement Factor | G92: =IF('Start Page'!$G$3= "Non-PTE",EXP($G$40*(G91^$G$39)),EXP($F$40*(G91^$F$39))) -> 
L787: Local Variations
L788: Yes
L789: No

Sheet MCC Example
B1: MARGINAL CAPACITY COSTS MODEL - WORKED EXAMPLE | E1: NPTE, 2009/10
B3: ASSUMPTIONS
B4: Mohring power | D4: 0.6 | E4: Default value
B5: Vehicle/mile cost | D5: 0.7 | E5: Default value
B6: Vehicle/hr cost | D6: 13.3 | E6: Default value
B7: Speed (mph) | D7: 10.9 | E7: Local
B8: Mean vehicle occupancy | D8: 17.8 | E8: Local
B9: Mean route length | D9: 10 | E9: Local
B10: Mean journey length | D10: 4.9 | E10: Local
B11: Average commercial fare | D11: 1.5 | E11: Local
B12: Commercial Journeys as a % of total | D12: 0.45 | E12: Local
B13: Service elasticity | D13: 0.66 | E13: Default value
B14: Marginal operating cost per generated journey | D14: 0.061 | E14: Local
B15: Net additional marginal capacity cost | D15: =D86 -> 0.06066850002
B17: Objective: To obtain marginal capacity costs per generated passenger
C19: Where
C20: χ is frequency in buses/hr
C21: B is pax boardings/hr/mile of route
C22: 0.6 is the Mohring power (a 10% increase in demand lead to 6% increase in frequency)
C23: 0 is the scenario without an additional passenger and 1 with one additional passenger
B25: The Mohring relationship is based on proportionate changes in demand and frequency so it is necessary to make assumptions on base frequency and base passenger boardings. These base assumptions have no impact on the estimated marginal capacity cost per generated passenger
B27: BASE FREQUENCY ASSUMPTION
B28: 10 minute frequency | C28: 6 | D28: buses/hr
C29: Where
C30: M is mean passenger journey length
C31: B is the mean rate of passenger boardings per km of route per hour
C32: Χ is frequency
B34: Implies | C34: =(D8*C28/D10)/C28 -> 3.632653061 | D34: pax boardings/km of route/bus
C35: =(D8*C28)/D10 -> 21.79591837 | D35: pax boardings/km of route/hour
B36: One additional passenger has the following impacts: | C36: =1/D9 -> 0.1 | D36: additional passenger/mile of route/hour
B37: Change in frequency (applying the mohring rule) | C37: =C28*((C35+C36)/C35)^0.6 -> 6.01650173 | D37: buses/hr
B39: Additional vehicle hour costs from generated passenger
C40: Where
C41: s is speed
C42: L is route length
C44: Without marginal passenger | D44: With marginal passenger
B45: Vehicle hours/hr (To operate one side) | C45: =C28/(D7/D9) -> 5.504587156 | D45: =C37/(D7/D9) -> 5.519726358
B46: Vehicle hours/hr (To operate both sides) | C46: =C45*2 -> 11.00917431 | D46: =D45*2 -> 11.03945272
B47: Change in vehicle hours | D47: =D45-C45 -> 0.01513920218
B48: Vehicle hour cost per hour | D48: =D6 -> 13.3
B49: Additional vehicle hour cost | D49: =D48*D47 -> 0.201351389
B51: Additional Vehicle mile costs from generated passenger
C52: Where
C53: Vhr is vehicle hours
C54: s is speed
C55: Without marginal passenger | D55: With marginal passenger
B56: Vm/hr(To operate one side) | C56: =C45*D7 -> 60 | D56: =D45*D7 -> 60.1650173
B57: Vm/hr(To operate both sides) | C57: =C56*2 -> 120 | D57: =D56*2 -> 120.3300346
B58: Change in vehicle miles | D58: =D56-C56 -> 0.1650173038
B59: Vehicle cost per mile | D59: =D5 -> 0.7
B60: Additional Vehile mile cost | D60: =D59*D58 -> 0.1155121127
B62: Commercial revenue generated from additional frequency
C63: Short run | D63: Long run
B64: Fare paying passengers' service frequency elasticity | C64: 0.38 | D64: 0.66 | E64: 10% change in service frequency leads to 6.6% change in commercial patronage
B65: % Change in frequency | C65: =(C37/C28-1)*100 -> 0.2750288396 | D65: =C65 -> 0.2750288396
B66: implying % Change in commercial patronage | C66: =C65*C64 -> 0.1045109591 | D66: =D65*D64 -> 0.1815190342
B67: Total boardings/hour (one way) | C67: =C34*C28*D9 -> 217.9591837 | D67: =C67 -> 217.9591837
B68: Total boardings/hour (both sides) | C68: =C67*2 -> 435.9183673 | D68: =C68 -> 435.9183673
B69: Commercial patronage as a proportion of total | C69: =D12 -> 0.45 | D69: =D12 -> 0.45
B70: implying commercial journeys | C70: =C69*C67 -> 98.08163265 | D70: =C70 -> 98.08163265
B71: Change in commercial journeys (from increased frequency) | C71: =C70*C66/100 -> 0.102506055 | D71: =D70*D66/100 -> 0.1780368323
B72: Commercial average fare | C72: =D11 -> 1.5 | D72: =D11 -> 1.5
B73: implying revenue gain | C73: =C72*C71 -> 0.1537590824 | D73: =D72*D71 -> 0.2670552484
B75: Increased cost from additional commercial passengers
B76: Marginal operating cost per additional passenger | C76: =D14 -> 0.061 | D76: =D14 -> 0.061
B77: Implying additional cost from commercial passengers | C77: =C71*C76 -> 0.006252869352 | D77: =D76*D71 -> 0.01086024677
B79: NET MARGINAL CAPACITY COSTS
B80: Gross additional cost per generated passenger journey
B81: Additional vehicle hour cost | D81: =D49 -> 0.201351389
B82: Additional vehicle mile cost | D82: =D60 -> 0.1155121127
B84: Revenue gain from additional commercial passengers | D84: =D73 -> 0.2670552484
B85: Additional marginal operating costs | D85: =D77 -> 0.01086024677
B86: Net additional marginal capacity cost | D86: =D81+D82-D84+D85 -> 0.06066850002
C168: Use Default Trip Length
C169: Use Local Trip Length
C171: Yes
C172: No

Sheet PTE
A1: ENTER OLD PAX RATIO CONCFARE/FREE | C1: 0.7529585054 | I1: Shifted demand functions
A2: IMPLIED ELAST AT FARE=1 (2005/6) | C2: =C40 -> -0.5140157734 | I2: Parameters | J2: Parameters
A3: Demand | D3: Demand | G3: Demand | H3: Shifted | I3: for lower | J3: for
A4: function | B4: OLD PASSHOLDER DEMAND | D4: function | G4: function | H4: demand | I4: piecewise | J4: single
A5: parameters | D5: parameters for lower piecewise section | G5: parameters approx single curve | H5: functions | I5: section | J5: curve
A6: k = | B6: 100 | D6: k = | E6: =B6 -> 100 | G6: =B6 -> 100 | H6: Full fare | I6: =B6 -> 100 | J6: =B6 -> 100
A7: b = | B7: =LN(C1)/A26^B8 -> -0.6425197168 | D7: b = | E7: =+B7-((LN(B6/(B6*B9)))/(A26^B8)) -> -0.7783852978 | G7: =(LN(B9)+B7*(A26^B8))/(A26^G8) -> -0.7038385589 | H7: abstraction | I7: =LN((B26+H9*(B6-(B6*B9)))/B6)/(A26^B8) -> -0.7232718204 | J7: =LN(H26/B6)/(A26^J8) -> -0.6686907728
A8: λ = | B8: 0.8 | D8: λ = | E8: =B8 -> 0.8 | G8: =(LN((LN(B9)+B7*(A18^B8))/(LN(B9)+B7*(A26^B8))))/LN(A18/A26) -> 0.7014608624 | H8: rate | I8: =B8 -> 0.8 | J8: =(LN(LN(H18/B6)/LN(H26/B6)))/(LN(A18/A26)) -> 0.7231994448
A9: Factor* = | B9: 0.9417645075 | C9: *=Old Passholder trips/Total Trips (2008/9)(from Last 2010 Draft Report MCL/PTE, Table 5) | H9: 0.3
E10: Revised demand curve | I10: Piecewise
G11: Matches | H11: Revised | I11: shifted
A12: Fare Index | C12: Target | F12: Targets | G12: B | H12: Targets | I12: function
A13: 1.5 | B13: =B$9*B$6*EXP(B$7*($A13^B$8)) -> 38.72407064 | D13: → | E13: =B13 -> 38.72407064 | G13: =G$6*EXP(G$7*($A13^G$8)) -> 39.24315535 | I13: =B13+$H$26-$F$26 -> 40.47113542 | J13: =J$6*EXP(J$7*($A13^J$8)) -> 40.79748179
A14: =A13-0.1 -> 1.4 | B14: 40.61688727 | D14: → | E14: =B14 -> 40.61688727 | G14: =G$6*EXP(G$7*($A14^G$8)) -> 41.01624403 | I14: 42.36395204 | J14: =J$6*EXP(J$7*($A14^J$8)) -> 42.61714238
A15: =A14-0.1 -> 1.3 | B15: 42.63151421 | D15: → | E15: 42.63151421 | G15: 42.91033599 | I15: 44.37857898 | J15: 44.55680909
A16: 1.2 | B16: 44.77970058 | D16: → | E16: 44.77970058 | G16: 44.93905323 | I16: 46.52676536 | J16: 46.62945074
A17: 1.1 | B17: 47.07506157 | D17: → | E17: 47.07506157 | G17: 47.11855602 | I17: 48.82212635 | J17: 48.85037572
A18: 1.061 | B18: 48.01350034 | D18: → | E18: 48.01350034 | F18: =E18 -> 48.01350034 | G18: 48.01350034 | H18: =F18+H26-F26 -> 49.76056512 | I18: 49.76056512 | J18: 49.76056512
A19: =A17-0.1 -> 1 | B19: 49.53356108 | D19: → | E19: 49.53356108 | G19: 49.46827856 | I19: 51.28062586 | J19: 51.23789593
A20: 0.9 | B20: 52.17418352 | D20: → | E20: 52.17418352 | G20: 52.01197479 | I20: 53.92124829 | J20: 53.81426675
A21: 0.8 | B21: 55.01989983 | D21: → | E21: 55.01989983 | G21: 54.77925594 | I21: 56.76696461 | J21: 56.60706307
A22: 0.7 | B22: 58.0991135 | D22: → | E22: 58.0991135 | G22: 57.80794538 | I22: 59.84617827 | J22: 59.65127744
A23: 0.6 | B23: 61.44793497 | D23: → | E23: 61.44793497 | G23: 61.14787332 | I23: 63.19499974 | J23: 62.99268512
A24: 0.5 | B24: 65.11399398 | D24: → | E24: =B24 -> 65.11399398 | G24: 64.86740274 | I24: 66.86105876 | J24: 66.69360182
A25: =A24-0.1 -> 0.4 | B25: 69.16339204 | D25: → | E25: =B25 -> 69.16339204 | G25: 69.06566505 | I25: 70.91045681 | J25: 70.84361949
A26: 0.36 | B26: 70.9109596 | C26: =$B$9*B6*C1 -> 70.9109596 | D26: → | E26: =B26 -> 70.9109596 | F26: =E26 -> 70.9109596 | G26: 70.9109596 | H26: =F26+(H9*(B6-B35)) -> 72.65802437 | I26: 72.65802437 | J26: 72.65802437
A27: 0.359 | B27: 70.95569868 | C27: =+C26-B26 -> 0 | E27: =E$6*EXP(E$7*($A27^E$8)) -> 70.9651627 | G27: 70.95849057 | I27: =I$6*EXP(I$7*($A27^I$8)) -> 72.70962911 | J27: 72.70467841 | O27: =EXP(0) -> 1
A28: 0.33 | B28: 72.27689371 | E28: 72.56908387 | G28: 72.3690028 | I28: 74.23540869 | J28: 74.08726526
A29: =A25-0.1 -> 0.3 | B29: 73.694973 | E29: 74.29753146 | G29: 73.8984598 | I29: 75.87697836 | J29: 75.58219017
A30: 0.2 | B30: 78.87540504 | E30: 80.67090112 | G30: 79.64424829 | I30: 81.90714841 | J30: 81.15574852
A31: 0.1 | B31: 85.05836312 | E31: 88.3940297 | G31: 86.93906964 | I31: 89.16952449 | J31: 88.11907393
A32: 0.075 | B32: 86.85782526 | E32: 90.66453112 | G32: 89.19136846 | I32: 91.29585459 | J32: 90.23763495
A33: 0.05 | B33: 88.82629655 | E33: 93.15969448 | G33: 91.75300692 | I33: 93.62823994 | J33: 92.62451882
A34: 0.025 | B34: 91.06540247 | E34: 96.01214206 | G34: 94.84476985 | I34: 96.2891944 | J34: 95.46499788
A35: 0 | B35: 94.17645075 | E35: =E$6*EXP(E$7*($A35^E$8)) -> 100 | F35: =E35 -> 100 | G35: 100 | H35: =F35 -> 100 | I35: =I$6*EXP(I$7*($A35^I$8)) -> 100 | J35: 100
E36: B
A40: Elasticity at Fare (index) = 1 is equal to | C40: =B8*B7*(1^B8) -> -0.5140157734 | G40: Elasticity at Fare Index = 1.061 is equal to | J40: =J8*J7*(1.061^J8) -> -0.5047551583
A41: for old-type passholders (2005/6 fares) | G41: for all passholders (2008/9 fares)
A42: Elast at Conc Fare (index) = 0.36 is equal to | C42: =B8*B7*(A26^B8) -> -0.2269961267
A43: for old-type passholders (2005/6 fares)

Sheet Non-PTE
A1: ENTER OLD PAX RATIO CONCFARE/FREE | C1: 0.6709294978 | I1: Shifted demand functions
A2: IMPLIED ELAST AT FARE=1 (2005/6) | C2: =C40 -> -0.6702574913 | I2: Parameters | J2: Parameters
A3: Demand | D3: Demand | G3: Demand | H3: Shifted | I3: Parameters | J3: for
A4: function | B4: OLD PASSHOLDER DEMAND | D4: function | G4: function | H4: demand | I4: piecewise | J4: single
A5: parameters | D5: parameters for lower piecewise section | G5: parameters approx single curve | H5: functions | I5: section | J5: curve
A6: k = | B6: 100 | D6: k = | E6: =B6 -> 100 | G6: =B6 -> 100 | H6: Full fare | I6: =B6 -> 100 | J6: =B6 -> 100
A7: b = | B7: =LN(C1)/A26^B8 -> -0.7447305458 | D7: b = | E7: =+B7-((LN(B6/(B6*B9)))/(A26^B8)) -> -1.23612949 | G7: =(LN(B9)+B7*(A26^B8))/(A26^G8) -> -1.011575193 | H7: abstraction | I7: =LN((B26+H9*(B6-(B6*B9)))/B6)/(A26^B8) -> -1.000307502 | J7: =LN(H26/B6)/(A26^J8) -> -0.8356666826
A8: λ = | B8: 0.9 | D8: λ = | E8: =B8 -> 0.9 | G8: =(LN((LN(B9)+B7*(A18^B8))/(LN(B9)+B7*(A26^B8))))/LN(A18/A26) -> 0.6107736835 | H8: rate | I8: =B8 -> 0.9 | J8: =(LN(LN(H18/B6)/LN(H26/B6)))/(LN(A18/A26)) -> 0.64055596
A9: Factor* = | B9: 0.7684850467 | C9: *=Old Passholder trips/Total Trips (2008/9)(from Last 2010 Draft Report MCL/PTE, Table 5) | H9: 0.3
E10: Revised demand curve | I10: Piecewise
G11: Matches | H11: Revised | I11: shifted
A12: Fare Index | C12: Target | F12: Targets | G12: B | H12: Targets | I12: function
A13: 1.5 | B13: =B$9*B$6*EXP(B$7*($A13^B$8)) -> 26.2884204 | D13: → | E13: =B13 -> 26.2884204 | G13: =G$6*EXP(G$7*($A13^G$8)) -> 27.36689516 | I13: =B13+$H$26-$F$26 -> 33.233869 | J13: =J$6*EXP(J$7*($A13^J$8)) -> 33.84086159
A14: =A13-0.1 -> 1.4 | B14: 28.04221289 | D14: → | E14: =B14 -> 28.04221289 | G14: =G$6*EXP(G$7*($A14^G$8)) -> 28.87005327 | I14: 34.98766149 | J14: =J$6*EXP(J$7*($A14^J$8)) -> 35.46372533
A15: =A14-0.1 -> 1.3 | B15: 29.92687102 | D15: → | E15: 29.92687102 | G15: 30.50176658 | I15: 36.87231962 | J15: 37.20976229
A16: 1.2 | B16: 31.95425578 | D16: → | E16: 31.95425578 | G16: 32.27966229 | I16: 38.89970438 | J16: 39.09446707
A17: 1.1 | B17: 34.13772799 | D17: → | E17: 34.13772799 | G17: 34.2251407 | I17: 41.08317659 | J17: 41.13647626
A18: 1.061 | B18: 35.03479665 | D18: → | E18: =B18 -> 35.03479665 | F18: =E18 -> 35.03479665 | G18: 35.03479665 | H18: =F18+H26-F26 -> 41.98024525 | I18: 41.98024525 | J18: 41.98024525
A19: =A17-0.1 -> 1 | B19: 36.49245278 | D19: → | E19: 36.49245278 | G19: 36.36457159 | I19: 43.43790138 | J19: 43.35853213
A20: 0.9 | B20: 39.03580571 | D20: → | E20: 39.03580571 | G20: 38.73102652 | I20: 45.98125431 | J20: 45.78886867
A21: 0.8 | B21: 41.78793204 | D21: → | E21: 41.78793204 | G21: 41.36687471 | I21: 48.73338064 | J21: 48.46327436
A22: 0.7 | B22: 44.77254796 | D22: → | E22: 44.77254796 | G22: 44.32783976 | I22: 51.71799656 | J22: 51.42829233
A23: 0.65 | B23: 46.3607113 | D23: → | E23: 46.3607113 | G23: 45.95286346 | I23: 53.3061599 | J23: 53.03848655
A24: 0.6 | B24: 48.01814625 | D24: → | E24: =B24 -> 48.01814625 | G24: 47.68967784 | I24: 54.96359485 | J24: 54.7464486
A25: 0.55 | B25: 49.74947527 | D25: → | E25: =B25 -> 49.74947527 | G25: 49.5527898 | I25: 56.69492387 | J25: 56.56397307
A26: 0.5 | B26: 51.55992864 | C26: =$B$9*B6*C1 -> 51.55992864 | D26: → | E26: =B26 -> 51.55992864 | F26: =E26 -> 51.55992864 | G26: 51.55992864 | H26: =F26+(H9*(B6-B35)) -> 58.50537724 | I26: 58.50537724 | J26: 58.50537724
A27: 0.499 | B27: 51.59698446 | C27: =+C26-B26 -> 0 | E27: =E$6*EXP(E$7*($A27^E$8)) -> 51.62144976 | G27: 51.60168326 | I27: =I$6*EXP(I$7*($A27^I$8)) -> 58.56186155 | J27: 58.5455836 | O27: =EXP(0) -> 1
A28: 0.4 | B28: 55.44317291 | E28: 58.16429465 | G28: 56.10050619 | I28: 64.499153 | J28: 62.8352099
A29: =A25-0.1 -> 0.45 | B29: 53.45550088 | E29: 54.74427039 | G29: 53.73315284 | I29: 61.41252893 | J29: 60.58834906
A30: 0.35 | B30: 57.53124088 | E30: 61.84523066 | G30: 58.69860294 | I30: 67.78282528 | J30: 65.27487579
A31: 0.25 | B31: =B$9*B$6*EXP(B$7*($A31^B$8)) -> 62.05172576 | E31: 70.11839763 | G31: 64.80507678 | I31: 75.03144487 | J31: 70.90291321
A32: 0.075 | B32: =B$9*B$6*EXP(B$7*($A32^B$8)) -> 71.48350496 | E32: 88.68130852 | G32: 81.2264655 | I32: 90.73699644 | J32: 85.29808215
A33: 0.05 | B33: =B$9*B$6*EXP(B$7*($A33^B$8)) -> 73.08282627 | E33: 91.99882176 | G33: 85.0171886 | I33: 93.47418466 | J33: 88.45774515
A34: 0.025 | B34: =B$9*B$6*EXP(B$7*($A34^B$8)) -> 74.80701509 | E34: 95.62939243 | G34: 89.91617222 | I34: 96.44818586 | J34: 92.43424195
A35: 0 | B35: =B$9*B$6*EXP(B$7*($A35^B$8)) -> 76.84850467 | E35: =E$6*EXP(E$7*($A35^E$8)) -> 100 | F35: =E35 -> 100 | G35: 100 | H35: =F35 -> 100 | I35: =I$6*EXP(I$7*($A35^I$8)) -> 100 | J35: 100
E36: B
A40: Elasticity at Fare (index) = 1 is equal to | C40: =B8*B7*(1^B8) -> -0.6702574913 | G40: Elasticity at Fare Index = 1.061 is equal to | J40: =J8*J7*(1.061^J8) -> -0.5559840162
A41: for old-type passholders (2005/6 fares) | G41: for all passholders (2008/9 fares)
A42: Elast at Conc Fare (index) = 0.5 is equal to | C42: =B8*B7*(A26^B8) -> -0.3591820961
A43: for old-type passholders (2005/6 fares)
